Workbook

Sheet Inputs
A1: Am I Diversified? An Exercise for Finance Students
A2: Developed by Bill Reese and Russ Robins
A4: Today's date | B4: =TODAY() -> 2021-02-08 | C4: Place the ticker symbols for the 30 stocks you select in the cells C15-C44 and click the "Download" cell. This spreadsheet will do the rest.
A5: Start date | B5: =DATE(YEAR(endDate)-5, MONTH(endDate), 15) -> 2016-02-15 | C5: The adjusted closing prices for those 30 stocks and for the S&P 500 will be downloaded from Yahoo! Finance for the most recent 61 months.
A6: End date | B6: =DATE(YEAR(B4), MONTH(B4), 15) -> 2021-02-15 | C6: The program will calculate the standard deviations of the monthly returns, build a correlation matrix, and a variance/covariance matrix.
C7: The standard deviations for 30 different equally-weighted portfolios will be calculated and graphed against the number of stocks in each portfolio.
C8: The solid black line on the graph is the standard deviation of the S&P 500.
C14: Ticker Symbol
B15: 1 | C15: NFLX
B16: 2 | C16: F
B17: 3 | C17: BA
B18: 4 | C18: CAT
B19: 5 | C19: AAPL
B20: 6 | C20: INTC
B21: 7 | C21: AXP
B22: 8 | C22: YUM
B23: 9 | C23: MSFT
B24: 10 | C24: CSCO
B25: 11 | C25: CVX
B26: 12 | C26: GOOGL
B27: 13 | C27: JPM
B28: 14 | C28: GE
B29: 15 | C29: WMT
B30: 16 | C30: IBM
B31: 17 | C31: DIS
B32: 18 | C32: TSLA
B33: 19 | C33: TRV
B34: 20 | C34: VZ
B35: 21 | C35: KR
B36: 22 | C36: HD
B37: 23 | C37: XOM
B38: 24 | C38: UNH
B39: 25 | C39: MMM
B40: 26 | C40: PFE
B41: 27 | C41: PG
B42: 28 | C42: KO
B43: 29 | C43: MCD
B44: 30 | C44: JNJ
... 2 more rows

Sheet price data
A1: Date | B1: NFLX | C1: F | D1: BA | E1: CAT | F1: AAPL | G1: INTC | H1: AXP | I1: YUM | J1: MSFT | K1: CSCO | L1: CVX | M1: GOOGL | N1: JPM | O1: GE | P1: WMT | Q1: IBM | R1: DIS | S1: TSLA | T1: TRV | U1: VZ | V1: KR | W1: HD | X1: XOM | Y1: UNH | Z1: MMM | AA1: PFE | AB1: PG | AC1: KO | AD1: MCD | AE1: JNJ | AF1: GSPC
A2: 2016-02-01 | B2: 93.410004 | C2: 9.847643 | D2: 105.987793 | E2: 58.690445 | F2: 22.361717 | G2: 25.712011 | H2: 51.252834 | I2: 47.765572 | J2: 46.429623 | K2: 22.282425 | L2: 67.276268 | M2: 717.219971 | N2: 48.887218 | O2: 25.328291 | P2: 59.179916 | Q2: 105.401176 | R2: 90.117691 | S2: 38.386002 | T2: 95.486359 | U2: 40.686329 | V2: 36.294163 | W2: 110.484222 | X2: 63.282223 | Y2: 110.082664 | Z2: 135.624008 | AA2: 23.090509 | AB2: 69.297058 | AC2: 36.610565 | AD2: 102.976006 | AE2: 91.932289 | AF2: 1932.22998
A3: 2016-03-01 | B3: 102.230003 | C3: 10.626953 | D3: 114.897522 | E3: 66.354042 | F3: 25.343138 | G3: 28.357704 | H3: 56.619713 | I3: 53.948002 | J3: 50.760994 | K3: 24.231501 | L3: 77.895035 | M3: 762.900024 | N3: 51.42276 | O3: 27.852858 | P3: 61.097866 | Q3: 123.07151 | R3: 93.693352 | S3: 45.953999 | T3: 103.647797 | U3: 43.373081 | V3: 34.884289 | W3: 118.771393 | X3: 66.597282 | Y3: 119.140701 | Z3: 145.103058 | AA3: 23.29907 | AB3: 71.040497 | AC3: 39.377789 | AD3: 111.272888 | AE3: 95.23008 | AF3: 2059.73999
A4: 2016-04-01 | B4: 90.029999 | C4: 10.674184 | D4: 122.011871 | E4: 67.376999 | F4: 21.7971 | G4: 26.543163 | H4: 60.335968 | I4: 52.438652 | J4: 45.834702 | K4: 23.397398 | L4: 83.430992 | M4: 707.880005 | N4: 54.878727 | O4: 26.94166 | P4: 60.09433 | Q4: 118.593964 | R4: 97.419945 | S4: 48.152 | T4: 98.142204 | U4: 40.854748 | V4: 32.275936 | W4: 119.83622 | X4: 70.429482 | Y4: 122.212463 | Z4: 145.756134 | AA4: 25.712297 | AB4: 69.150337 | AC4: 38.324696 | AD4: 111.990028 | AE4: 98.64502 | AF4: 2065.300049
A5: 2016-05-01 | B5: 102.57 | C5: 10.736203 | D5: 114.182487 | E5: 63.473263 | F5: 23.220165 | G5: 27.691498 | H5: 60.933861 | I5: 54.411255 | J5: 48.711433 | K5: 24.951271 | L5: 82.467499 | M5: 748.849976 | N5: 57.095802 | O5: 26.486059 | P5: 63.608143 | Q5: 124.932419 | R5: 93.608437 | S5: 44.646 | T5: 101.928581 | U5: 41.253593 | V5: 32.613388 | W5: 118.252037 | X5: 70.923447 | Y5: 124.05941 | Z5: 146.574677 | AA5: 27.276573 | AB5: 70.517349 | AC5: 38.153603 | AD5: 108.067856 | AE5: 99.1819 | AF5: 2096.949951
A6: 2016-06-01 | B6: 91.480003 | C6: 10.004008 | D6: 118.508415 | E6: 66.361984 | F6: 22.364946 | G6: 29.000525 | H6: 56.300804 | I6: 54.961391 | J6: 47.358456 | K6: 24.642065 | L6: 86.499542 | M6: 703.530029 | N6: 54.357788 | O6: 27.581249 | P6: 66.101631 | Q6: 124.529945 | R6: 92.287613 | S6: 42.456001 | T6: 106.304344 | U6: 45.257374 | V6: 33.65303 | W6: 114.878822 | X6: 75.311615 | Y6: 131.048019 | Z6: 153.511581 | AA6: 27.925329 | AB6: 73.675972 | AC6: 38.778095 | AD6: 106.545029 | AE6: 107.522087 | AF6: 2098.860107
A7: 2016-07-01 | B7: 91.25 | C7: 10.075635 | D7: 121.966843 | E7: 72.445847 | F7: 24.379189 | G7: 30.821907 | H7: 60.029922 | I7: 59.269749 | J7: 52.458019 | K7: 26.22246 | L7: 84.560471 | M7: 791.340027 | N7: 55.958603 | O7: 27.490053 | P7: 66.056366 | Q7: 131.782867 | R7: 90.523369 | S7: 46.958 | T7: 104.396484 | U7: 44.908867 | V7: 31.274717 | W7: 124.370369 | X7: 71.46328 | Y7: 133.509445 | Z7: 156.351807 | AA7: 29.25775 | AB7: 74.47654 | AC7: 37.610035 | AD7: 104.929039 | AE7: 111.005669 | AF7: 2173.600098
A8: 2016-08-01 | B8: 97.449997 | C8: 10.13784 | D8: 118.12516 | E8: 72.427841 | F8: 24.821346 | G8: 31.73259 | H8: 61.072964 | I8: 60.447243 | J8: 53.179924 | K8: 27.250074 | L8: 82.992691 | M8: 789.849976 | N8: 59.506172 | O8: 27.578335 | P8: 64.671318 | Q8: 130.35524 | R8: 89.765015 | S8: 42.402 | T8: 106.633179 | U8: 42.840767 | V8: 29.262308 | W8: 120.663719 | X8: 70.009094 | Y8: 126.84333 | Z8: 157.123276 | AA8: 27.600161 | AB8: 76.568535 | AC8: 37.437634 | AD8: 103.154228 | AE8: 105.784683 | AF8: 2170.949951
A9: 2016-09-01 | B9: 98.550003 | C9: 9.711407 | D9: 121.211037 | E9: 78.455414 | F9: 26.590519 | G9: 33.630135 | H9: 59.638794 | I9: 60.513885 | J9: 53.641758 | K9: 27.492756 | L9: 85.818344 | M9: 804.059998 | N9: 58.703941 | O9: 26.148212 | P9: 65.733818 | Q9: 131.456284 | R9: 88.244537 | S9: 40.806 | T9: 102.896385 | U9: 42.554226 | V9: 27.249889 | W9: 116.363182 | X9: 70.719543 | Y9: 130.526016 | Z9: 155.447281 | AA9: 27.085861 | AB9: 78.708359 | AC9: 36.480793 | AD9: 103.686249 | AE9: 105.41066 | AF9: 2168.27002
A10: 2016-10-01 | B10: 124.870003 | C10: 9.445892 | D10: 131.046677 | E10: 73.762405 | F10: 26.705769 | G10: 31.064444 | H10: 61.855236 | I10: 57.495193 | J10: 55.80233 | K10: 26.591352 | L10: 87.344269 | M10: 809.900024 | N10: 61.057743 | O10: 25.889654 | P10: 63.819771 | Q10: 127.186073 | R10: 88.082977 | S10: 39.546001 | T10: 97.723312 | U10: 39.377808 | V10: 28.443447 | W10: 110.331604 | X10: 67.510887 | Y10: 132.374466 | Z10: 145.806244 | AA10: 25.358507 | AB10: 76.121292 | AC10: 36.848354 | AD10: 101.178566 | AE10: 103.501083 | AF10: 2126.149902
A11: 2016-11-01 | B11: 117 | C11: 9.742787 | D11: 138.526886 | E11: 85.201965 | F11: 25.995438 | G11: 30.912996 | H11: 67.426613 | I11: 59.096264 | J11: 56.118965 | K11: 26.059566 | L11: 93.022667 | M11: 775.880005 | N11: 71.189468 | O11: 27.366528 | P11: 64.193474 | Q11: 134.245117 | R11: 94.193405 | S11: 37.880001 | T11: 102.393578 | U11: 41.317287 | V11: 29.655369 | W11: 117.014267 | X11: 70.735741 | Y11: 148.287888 | Z11: 151.48674 | AA11: 25.702377 | AB11: 72.873573 | AC11: 35.066776 | AD11: 107.200569 | AE11: 99.316086 | AF11: 2198.810059
A12: 2016-12-01 | B12: 123.800003 | C12: 9.88127 | D12: 144.337631 | E12: 82.687645 | F12: 27.381918 | G12: 32.556297 | H12: 69.33596 | I12: 59.040337 | J12: 58.260712 | K12: 26.409124 | L12: 99.124939 | M12: 792.450012 | N12: 76.623917 | O12: 28.113852 | P12: 62.999466 | Q12: 138.611145 | R12: 99.039902 | S12: 42.737999 | T12: 110.586853 | U12: 44.198738 | V12: 31.80261 | W12: 121.890129 | X12: 73.781693 | Y12: 150.495773 | Z12: 158.521149 | AA12: 26.23333 | AB12: 74.305229 | AC12: 36.33604 | AD12: 110.253395 | AE12: 103.515472 | AF12: 2238.830078
A13: 2017-01-01 | B13: 140.710007 | C13: 10.068634 | D13: 151.513748 | E13: 85.29113 | F13: 28.689308 | G13: 33.049988 | H13: 71.488663 | I13: 61.091324 | J13: 60.614021 | K13: 26.846075 | L13: 93.777069 | M13: 820.190002 | N13: 75.149864 | O13: 26.622324 | P13: 61.265579 | Q13: 145.734192 | R13: 105.960678 | S13: 50.386002 | T13: 107.009041 | U13: 40.580364 | V13: 31.295761 | W13: 125.071892 | X13: 68.574638 | Y13: 152.432907 | Z13: 155.1922 | AA13: 25.627575 | AB13: 77.415993 | AC13: 36.432453 | AD13: 111.0233 | AE13: 101.75444 | AF13: 2278.870117
A14: 2017-02-01 | B14: 142.130005 | C14: 10.371616 | D14: 167.098999 | E14: 86.897835 | F14: 32.386887 | G14: 32.493465 | H14: 75.252579 | I14: 61.177986 | J14: 59.985847 | K14: 30.12623 | L14: 94.745575 | M14: 844.929993 | N14: 80.914124 | O14: 26.720922 | P14: 65.1119 | Q14: 150.159988 | R14: 105.424408 | S14: 49.998001 | T14: 111.061172 | U14: 41.533081 | V14: 29.305214 | W14: 131.735535 | X14: 66.473831 | Y14: 155.517334 | Z14: 165.427658 | AA14: 27.557922 | AB14: 81.12043 | AC14: 36.774254 | AD14: 115.624756 | AE14: 109.804947 | AF14: 2363.639893
A15: 2017-03-01 | B15: 147.809998 | C15: 9.634925 | D15: 165.385056 | E15: 83.391701 | F15: 34.111042 | G15: 32.607914 | H15: 74.359634 | I15: 59.848022 | J15: 62.122833 | K15: 29.791302 | L15: 91.290733 | M15: 847.799988 | N15: 78.431877 | O15: 26.925016 | P15: 66.16758 | Q15: 146.56665 | R15: 108.584564 | S15: 55.66 | T15: 109.51664 | U15: 40.796642 | V15: 27.274199 | W15: 133.480942 | X15: 67.650864 | Y15: 154.229004 | Z15: 170.954636 | AA15: 27.912109 | AB15: 80.033722 | AC15: 37.194927 | AD15: 118.264229 | AE15: 112.647919 | AF15: 2362.719971
A16: 2017-04-01 | B16: 152.199997 | C16: 9.494207 | D16: 172.837936 | E16: 91.932243 | F16: 34.108673 | G16: 32.680241 | H16: 74.491226 | I16: 61.580723 | J16: 64.575302 | K16: 30.029278 | L16: 90.721069 | M16: 924.52002 | N16: 77.681847 | O16: 26.193165 | P16: 69.520744 | Q16: 134.909668 | R16: 110.700897 | S16: 62.813999 | T16: 111.143898 | U16: 38.419983 | V16: 27.422178 | W16: 142.77179 | X16: 67.353889 | Y16: 165.063721 | Z16: 174.975449 | AA16: 27.675495 | AB16: 77.78904 | AC16: 38.150974 | AD16: 127.68084 | AE16: 111.671112 | AF16: 2384.199951
A17: 2017-05-01 | B17: 163.070007 | C17: 9.328549 | D17: 175.456284 | E17: 95.569389 | F17: 36.27177 | G17: 32.644081 | H17: 72.616852 | I17: 68.353569 | J17: 65.876991 | K17: 28.032612 | L17: 87.983292 | M17: 987.090027 | N17: 73.772781 | O17: 24.738493 | P17: 72.683296 | Q17: 128.46257 | R17: 103.365532 | S17: 68.202003 | T17: 114.058144 | U17: 39.496593 | V17: 27.54241 | W17: 140.402939 | X17: 66.405258 | Y17: 165.346878 | Z17: 182.695358 | AA17: 26.639296 | AB17: 79.066833 | AC17: 40.20219 | AD17: 137.681427 | AE17: 115.994339 | AF17: 2411.800049
A18: 2017-06-01 | B18: 149.410004 | C18: 9.38727 | D18: 186.335297 | E18: 97.409538 | F18: 34.337669 | G18: 30.728462 | H18: 79.506676 | I18: 69.407478 | J18: 65.391304 | K18: 27.828123 | L18: 89.60836 | M18: 929.679993 | N18: 82.079498 | O18: 24.404182 | P18: 70.451431 | Q18: 130.737335 | R18: 101.747154 | S18: 72.321999 | T18: 115.592934 | U18: 37.819851 | V18: 21.654297 | W18: 141.113129 | X18: 67.223862 | Y18: 175.0121 | Z18: 187.130188 | AA18: 27.67152 | AB18: 78.223137 | AC18: 39.654022 | AD18: 139.752731 | AE18: 120.441719 | AF18: 2423.409912
A19: 2017-07-01 | B19: 181.660004 | C19: 9.412437 | D19: 228.464523 | E19: 103.292564 | F19: 35.460644 | G19: 32.304054 | H19: 80.441048 | I19: 71.026001 | J19: 68.967758 | K19: 27.961491 | L19: 93.782562 | M19: 945.5 | N19: 82.438705 | O19: 23.334446 | P19: 74.463661 | Q19: 122.952431 | R19: 105.271187 | S19: 64.694 | T19: 117.70137 | U19: 40.98703 | V19: 22.768587 | W19: 137.617508 | X19: 66.649292 | Y19: 181.791077 | Z19: 180.820313 | AA19: 27.317287 | AB19: 81.517204 | AC19: 40.862865 | AD19: 142.446777 | AE19: 120.833206 | AF19: 2470.300049
A20: 2017-08-01 | B20: 174.710007 | C20: 9.371881 | D20: 225.826126 | E20: 107.270203 | F20: 39.101368 | G20: 31.939756 | H20: 81.568893 | I20: 72.581284 | J20: 70.931496 | K20: 28.904739 | L20: 92.434105 | M20: 955.23999 | N20: 82.070465 | O20: 22.368631 | P20: 72.676308 | Q20: 121.558609 | R20: 97.632111 | S20: 71.18 | T20: 111.351799 | U20: 41.155659 | V20: 20.307869 | W20: 137.86586 | X20: 63.559975 | Y20: 188.510773 | Z20: 183.651657 | AA20: 27.943378 | AB20: 83.468414 | AC20: 40.604355 | AD20: 146.881607 | AE20: 120.514534 | AF20: 2471.649902
A21: 2017-09-01 | B21: 181.350006 | C21: 10.17057 | D21: 240.964951 | E21: 113.862198 | F21: 36.890041 | G21: 34.941441 | H21: 85.699455 | I21: 69.548401 | J21: 71.042374 | K21: 30.179024 | L21: 101.93396 | M21: 973.719971 | N21: 86.242165 | O21: 22.031511 | P21: 73.19902 | Q21: 124.603638 | R21: 95.094833 | S21: 68.220001 | T21: 112.583115 | U21: 42.459736 | V21: 18.726463 | W21: 151.349106 | X21: 68.926414 | Y21: 185.620071 | Z21: 189.752411 | AA21: 29.697021 | AB21: 82.301483 | AC21: 40.122982 | AD21: 144.714294 | AE21: 119.118851 | AF21: 2519.360107
A22: 2017-10-01 | B22: 196.429993 | C22: 10.425473 | D22: 244.538559 | E22: 123.987518 | F22: 40.461285 | G22: 41.7407 | H22: 90.493156 | I22: 70.342049 | J22: 79.330177 | K22: 30.645668 | L22: 100.537231 | M22: 1033.040039 | N22: 90.847275 | O22: 18.552235 | P22: 81.789162 | Q22: 132.316193 | R22: 94.361626 | S22: 66.306 | T22: 122.456657 | U22: 41.069855 | V22: 19.323921 | W22: 153.403336 | X22: 70.07827 | Y22: 199.995575 | Z22: 208.094818 | AA22: 29.16464 | AB22: 78.10408 | AC22: 41.313805 | AD22: 154.16301 | AE22: 127.731407 | AF22: 2575.26001
A23: 2017-11-01 | B23: 187.580002 | C23: 10.769984 | D23: 262.377899 | E23: 129.640823 | F23: 41.133884 | G23: 41.144272 | H23: 92.925262 | I23: 78.864342 | J23: 80.274361 | K23: 33.761665 | L23: 103.226555 | M23: 1036.170044 | N23: 94.929558 | O23: 16.831371 | P23: 91.081917 | Q23: 132.238892 | R23: 101.124474 | S23: 61.77 | T23: 125.341278 | U23: 44.184643 | V23: 24.140898 | W23: 166.395157 | X23: 70.027824 | Y23: 217.072525 | Z23: 219.801773 | AA23: 30.162853 | AB23: 82.015938 | AC23: 41.125118 | AD23: 158.836609 | AE23: 127.658134 | AF23: 2647.580078
A24: 2017-12-01 | B24: 191.960007 | C24: 10.744176 | D24: 281.04715 | E24: 144.731155 | F24: 40.652374 | G24: 42.60648 | H24: 94.446922 | I24: 77.398163 | J24: 81.990669 | K24: 34.666798 | L24: 109.62188 | M24: 1053.400024 | N24: 97.12751 | O24: 16.058359 | P24: 92.505798 | Q24: 133.083572 | R24: 103.719643 | S24: 62.27 | T24: 125.405968 | U24: 45.955849 | V24: 25.770697 | W24: 176.268707 | X24: 70.972908 | Y24: 210.445694 | Z24: 213.851028 | AA24: 30.404896 | AB24: 83.738457 | AC24: 41.561928 | AD24: 159.922836 | AE24: 128.799377 | AF24: 2673.610107
A25: 2018-01-01 | B25: 270.299988 | C25: 9.436639 | D25: 337.712097 | E25: 149.507141 | F25: 40.21999 | G25: 44.434055 | H25: 94.532516 | I25: 80.22438 | J25: 91.067711 | K25: 37.599453 | L25: 109.761978 | M25: 1182.219971 | N25: 105.056473 | O25: 14.983183 | P25: 100.385704 | Q25: 142.000931 | R25: 105.682114 | S25: 70.862 | T25: 139.356155 | U25: 46.945644 | V25: 28.502674 | W25: 186.843155 | X25: 74.078613 | Y25: 226.024368 | Z25: 227.597733 | AA25: 31.093245 | AB25: 78.689354 | AC25: 43.110989 | AD25: 159.012329 | AE25: 127.388985 | AF25: 2823.810059
A26: 2018-02-01 | B26: 291.380005 | C26: 9.35172 | D26: 345.183502 | E26: 142.680908 | F26: 42.78793 | G26: 45.495525 | H26: 93.062263 | I26: 77.180046 | J26: 89.879158 | K26: 40.834427 | L26: 98.002083 | M26: 1103.920044 | N26: 105.44854 | O26: 13.074381 | P26: 84.762833 | Q26: 135.174133 | R26: 100.323616 | S26: 68.612 | T26: 129.205582 | U26: 41.921806 | V26: 25.460888 | W26: 169.516708 | X26: 64.269341 | Y26: 215.886765 | Z26: 213.97821 | AA26: 30.480442 | AB26: 72.107834 | AC26: 39.152279 | AD26: 146.56189 | AE26: 119.7285 | AF26: 2713.830078
A27: 2018-03-01 | B27: 295.350006 | C27: 9.765981 | D27: 314.009766 | E27: 135.991135 | F27: 40.468391 | G27: 48.396866 | H27: 89.025192 | I27: 81.110527 | J27: 87.893845 | K27: 39.110947 | L27: 100.852516 | M27: 1037.140015 | N27: 100.399796 | O27: 12.59399 | P27: 83.783455 | Q27: 134.402649 | R27: 97.678398 | S27: 53.226002 | T27: 129.0755 | U27: 41.99205 | V27: 22.575785 | W27: 165.768661 | X27: 63.957886 | Y27: 204.279114 | Z27: 200.626221 | AA27: 30.0681 | AB27: 72.805779 | AC27: 39.34251 | AD27: 146.217453 | AE27: 118.890167 | AF27: 2640.870117
A28: 2018-04-01 | B28: 312.459991 | C28: 9.907006 | D28: 319.449463 | E28: 133.204498 | F28: 39.860565 | G28: 47.969398 | H28: 94.245712 | I28: 82.987511 | J28: 90.060593 | K28: 40.387596 | L28: 110.642387 | M28: 1018.580017 | N28: 99.313354 | O28: 13.14521 | P28: 83.799828 | Q28: 126.98304 | R28: 97.571426 | S28: 58.779999 | T28: 122.964539 | U28: 43.335587 | V28: 23.754553 | W28: 172.849838 | X28: 66.649574 | Y28: 226.408783 | Z28: 177.659119 | AA28: 31.016991 | AB28: 66.432526 | AC28: 39.488754 | AD28: 156.558731 | AE28: 117.350105 | AF28: 2648.050049
A29: 2018-05-01 | B29: 351.600006 | C29: 10.316831 | D29: 337.262634 | E29: 140.876816 | F29: 45.072868 | G29: 51.296219 | H29: 94.168419 | I29: 77.489944 | J29: 95.183823 | K29: 39.259899 | L29: 109.926041 | M29: 1100 | N29: 98.192818 | O29: 13.154553 | P29: 78.191704 | Q29: 123.785683 | R29: 96.735069 | S29: 56.945999 | T29: 120.086639 | U29: 42.387047 | V29: 22.94356 | W29: 174.486694 | X29: 69.641289 | Y29: 231.30278 | Z29: 180.254669 | AA29: 30.44088 | AB29: 67.816521 | AC29: 39.296841 | AD29: 149.611588 | AE29: 110.976532 | AF29: 2705.27002
A30: 2018-06-01 | B30: 391.429993 | C30: 9.888079 | D30: 322.91983 | E30: 125.816345 | F30: 44.820538 | G30: 46.461086 | H30: 93.881042 | I30: 74.849098 | J30: 95.37394 | K30: 39.55405 | L30: 112.784714 | M30: 1129.189941 | N30: 95.614342 | O30: 12.715445 | P30: 81.64904 | Q30: 123.733826 | R30: 101.928246 | S30: 68.589996 | T30: 114.312164 | U30: 44.734482 | V30: 26.965971 | W30: 183.505493 | X30: 71.637413 | Y30: 234.970932 | Z30: 181.018188 | AA30: 31.037464 | AB30: 72.348747 | AC30: 40.082783 | AD30: 146.507355 | AE30: 113.407158 | AF30: 2718.370117
A31: 2018-07-01 | B31: 337.450012 | C31: 8.968049 | D31: 342.929688 | E31: 133.35585 | F31: 46.07476 | G31: 44.95631 | H31: 95.337143 | I31: 75.872978 | J31: 102.598785 | K31: 38.873837 | L31: 112.641983 | M31: 1227.219971 | N31: 105.478577 | O31: 12.847156 | P31: 85.061806 | Q31: 128.366089 | R31: 110.43766 | S31: 59.627998 | T31: 122.331841 | U31: 45.91708 | V31: 27.48728 | W31: 185.781677 | X31: 70.581001 | Y31: 243.375717 | Z31: 195.373062 | AA31: 34.160027 | AB31: 74.962425 | AC31: 42.993759 | AD31: 148.237778 | AE31: 123.856239 | AF31: 2816.290039
A32: 2018-08-01 | B32: 367.679993 | C32: 8.586881 | D32: 329.926666 | E32: 129.554886 | F32: 55.115868 | G32: 45.26474 | H32: 101.890129 | I32: 83.14547 | J32: 108.643684 | K32: 44.253407 | L32: 105.674904 | M32: 1231.800049 | N32: 105.710426 | O32: 12.196787 | P32: 91.382088 | Q32: 129.738922 | R32: 109.815689 | S32: 60.332001 | T32: 123.704247 | U32: 48.905018 | V32: 29.856874 | W32: 188.838455 | X32: 69.420662 | Y32: 258.023254 | Z32: 194.084763 | AA32: 35.520264 | AB32: 77.578728 | AC32: 41.094398 | AD32: 152.650864 | AE32: 125.884377 | AF32: 2901.52002
A33: 2018-09-01 | B33: 374.130005 | C33: 8.37855 | D33: 359.712952 | E33: 142.281754 | F33: 54.849937 | G33: 44.468044 | H33: 102.380424 | I33: 87.365768 | J33: 111.042427 | K33: 45.06863 | L33: 110.128448 | M33: 1207.079956 | N33: 104.105125 | O33: 10.641553 | P33: 90.043152 | Q33: 135.375305 | R33: 114.638885 | S33: 52.953999 | T33: 121.92765 | U33: 48.023529 | V33: 27.721386 | W33: 195.838058 | X33: 74.379715 | Y33: 255.697342 | Z33: 195.191162 | AA33: 38.022812 | AB33: 77.840584 | AC33: 42.588066 | AD33: 158.39473 | AE33: 129.997437 | AF33: 2913.97998
A34: 2018-10-01 | B34: 301.779999 | C34: 8.650288 | D34: 343.231323 | E34: 113.19841 | F34: 53.178249 | G34: 44.082512 | H34: 98.765549 | I34: 86.885262 | J34: 103.702377 | K34: 42.382111 | L34: 100.554794 | M34: 1090.579956 | N34: 100.580826 | O34: 9.610641 | P34: 96.150841 | Q34: 103.342171 | R34: 112.570404 | S34: 67.463997 | T34: 118.309586 | U34: 51.35162 | V34: 28.340382 | W34: 166.275665 | X34: 69.708008 | Y34: 252.03717 | Z34: 176.247299 | AA34: 37.151402 | AB34: 82.937691 | AC34: 44.521786 | AD34: 167.493759 | AE34: 131.709808 | AF34: 2711.73999
A35: 2018-11-01 | B35: 286.130005 | C35: 8.676593 | D35: 335.396851 | E35: 127.394539 | F35: 43.391079 | G35: 46.367504 | H35: 108.326942 | I35: 88.624695 | J35: 107.663681 | K35: 44.645859 | L35: 107.120354 | M35: 1109.650024 | N35: 103.301208 | O35: 7.136614 | P35: 93.62915 | Q35: 111.256447 | R35: 113.217415 | S35: 70.096001 | T35: 123.263977 | U35: 54.839993 | V35: 28.245152 | W35: 170.47319 | X35: 69.550537 | Y35: 271.334106 | Z35: 192.606628 | AA35: 39.886421 | AB35: 89.171227 | AC35: 46.86504 | AD35: 178.48642 | AE35: 138.211044 | AF35: 2760.169922
A36: 2018-12-01 | B36: 267.660004 | C36: 7.053765 | D36: 313.372223 | E36: 119.319115 | F36: 38.46114 | G36: 44.407246 | H36: 91.972237 | I36: 88.7033 | J36: 99.040863 | K36: 40.411636 | L36: 98.936569 | M36: 1044.959961 | N36: 90.693993 | O36: 7.203222 | P36: 89.31443 | Q36: 103.062599 | R36: 107.49234 | S36: 66.559998 | T36: 113.222839 | U36: 51.129425 | V36: 26.305548 | W36: 163.409027 | X36: 60.260742 | Y36: 241.010681 | Z36: 177.712036 | AA36: 37.951061 | AB36: 86.727516 | AC36: 44.377117 | AD36: 169.164978 | AE36: 122.190071 | AF36: 2506.850098
A37: 2019-01-01 | B37: 339.5 | C37: 8.114135 | D37: 374.705688 | E37: 125.037636 | F37: 40.582428 | G37: 44.587032 | H37: 99.093048 | I37: 90.691216 | J37: 101.829651 | K37: 44.104931 | L37: 104.265808 | M37: 1125.890015 | N37: 96.156807 | O37: 9.681033 | P37: 92.385506 | Q37: 121.876251 | R37: 110.173546 | S37: 61.403999 | T37: 119.430542 | U37: 50.074467 | V37: 27.099501 | W37: 174.545776 | X37: 64.758865 | Y37: 261.40451 | Z37: 186.814972 | AA37: 36.907734 | AB37: 91.0205 | AC37: 45.108147 | AD37: 170.317719 | AE37: 126.005859 | AF37: 2704.100098
A38: 2019-02-01 | B38: 358.100006 | C38: 8.227353 | D38: 427.507721 | E38: 129.792297 | F38: 42.218506 | G38: 50.113102 | H38: 104.381508 | I38: 91.193016 | J38: 109.240402 | K38: 48.65704 | L38: 108.749283 | M38: 1126.550049 | N38: 97.743164 | O38: 10.296197 | P38: 95.431915 | Q38: 125.240044 | R38: 111.477608 | S38: 63.976002 | T38: 126.441879 | U38: 52.306309 | V38: 28.056063 | W38: 176.076981 | X38: 69.84024 | Y38: 234.335312 | Z38: 193.427628 | AA38: 38.019394 | AB38: 93.718414 | AC38: 42.493324 | AD38: 175.138214 | AE38: 129.376602 | AF38: 2784.48999
A39: 2019-03-01 | B39: 356.559998 | C39: 8.236733 | D39: 372.486572 | E39: 128.043991 | F39: 46.513416 | G39: 51.13541 | H39: 105.892883 | I39: 96.749252 | J39: 115.494392 | K39: 50.743553 | L39: 113.149323 | M39: 1176.890015 | N39: 94.81163 | O39: 9.899809 | P39: 94.024399 | Q39: 129.423477 | R39: 109.689461 | S39: 55.972 | T39: 130.485046 | U39: 54.337177 | V39: 23.645819 | W39: 182.496552 | X39: 72.197174 | Y39: 239.211227 | Z39: 195.13121 | AA39: 37.247612 | AB39: 98.948776 | AC39: 43.917889 | AD39: 182.063171 | AE39: 133.236984 | AF39: 2834.399902
A40: 2019-04-01 | B40: 370.540009 | C40: 9.803402 | D40: 368.843903 | E40: 131.758011 | F40: 49.138439 | G40: 48.60244 | H40: 113.575684 | I40: 101.188805 | J40: 127.891884 | K40: 52.585697 | L40: 110.283379 | M40: 1198.959961 | N40: 108.691986 | O40: 10.08886 | P40: 99.676994 | Q40: 128.66217 | R40: 135.316269 | S40: 47.737999 | T40: 137.559875 | U40: 52.55442 | V40: 24.780052 | W40: 195.171005 | X40: 71.732529 | Y40: 226.343781 | Z40: 177.973434 | AA40: 35.616325 | AB40: 101.259659 | AC40: 46.381153 | AD40: 189.416641 | AE40: 134.580887 | AF40: 2945.830078
A41: 2019-05-01 | B41: 343.279999 | C41: 9.074224 | D41: 333.608948 | E41: 113.912018 | F41: 42.869724 | G41: 41.936749 | H41: 111.527649 | I41: 99.211365 | J41: 121.115356 | K41: 49.211018 | L41: 104.579056 | M41: 1106.5 | N41: 100.001099 | O41: 9.364683 | P41: 98.320053 | Q41: 116.481133 | R41: 130.445786 | S41: 37.032001 | T41: 139.301529 | U41: 50.459198 | V41: 21.925245 | W41: 181.900894 | X41: 63.235058 | Y41: 234.821838 | Z41: 150.025101 | AA41: 36.414433 | AB41: 98.555542 | AC41: 46.44733 | AD41: 190.087753 | AE41: 125.002029 | AF41: 2752.060059
A42: 2019-06-01 | B42: 367.320007 | C42: 9.750978 | D42: 357.526581 | E42: 129.580719 | F42: 48.65168 | G42: 45.862999 | H42: 120.015465 | I42: 107.725616 | J42: 131.667801 | K42: 51.764736 | L42: 115.431351 | M42: 1082.800049 | N42: 105.512695 | O42: 10.416225 | P42: 107.660606 | Q42: 127.990768 | R42: 137.954025 | S42: 44.692001 | T42: 143.081436 | U42: 53.040188 | V42: 20.983616 | W42: 199.262207 | X42: 69.255989 | Y42: 236.968048 | Z42: 164.180618 | AA42: 38.330063 | AB42: 105.010353 | AC42: 48.139591 | AD42: 200.256149 | AE42: 133.659256 | AF42: 2941.76001
A43: 2019-07-01 | B43: 322.98999 | C43: 9.083755 | D43: 335.10321 | E43: 125.188156 | F43: 52.368397 | G43: 48.430641 | H43: 120.919662 | I43: 109.52639 | J43: 133.938263 | K43: 52.398438 | L43: 114.197632 | M43: 1218.199951 | N43: 109.476494 | O43: 10.376601 | P43: 107.553413 | Q43: 137.587784 | R43: 141.28334 | S43: 48.321999 | T43: 141.082718 | U43: 51.313339 | V43: 20.452023 | W43: 206.178848 | X43: 67.20443 | Y43: 242.894653 | Z43: 165.487686 | AA43: 34.3661 | AB43: 113.045334 | AC43: 50.144634 | AD43: 203.207062 | AE43: 124.964874 | AF43: 2980.379883
A44: 2019-08-01 | B44: 293.75 | C44: 8.871069 | D44: 357.605164 | E44: 114.012474 | F44: 51.311405 | G44: 45.422287 | H44: 117.396614 | I44: 113.673058 | J44: 135.501053 | K44: 44.553249 | L44: 109.197838 | M44: 1190.530029 | N44: 104.415825 | O44: 8.192054 | P44: 111.334061 | Q44: 125.791084 | R44: 136.442535 | S44: 45.122002 | T44: 141.409897 | U44: 54.564812 | V44: 22.887705 | W44: 219.898987 | X44: 61.890255 | Y44: 228.253265 | Z44: 153.174622 | AA44: 31.455067 | AB44: 115.888344 | AC44: 52.440826 | AD44: 210.198547 | AE44: 123.179932 | AF44: 2926.459961
A45: 2019-09-01 | B45: 267.619995 | C45: 8.861395 | D45: 376.025269 | E45: 121.016098 | F45: 55.264339 | G45: 49.702877 | H45: 115.358238 | I45: 110.812012 | J45: 137.106079 | K45: 47.027901 | L45: 111.145065 | M45: 1221.140015 | N45: 111.857796 | O45: 8.877208 | P45: 116.210098 | Q45: 136.560715 | R45: 129.543869 | S45: 48.174 | T45: 143.074554 | U45: 56.628822 | V45: 25.091618 | W45: 223.864548 | X45: 64.608772 | Y45: 211.98291 | Z45: 157.137833 | AA45: 32.088718 | AB45: 119.888481 | AC45: 51.86916 | AD45: 208.149628 | AE45: 125.089134 | AF45: 2976.73999
A46: 2019-10-01 | B46: 287.410004 | C46: 8.309977 | D46: 335.939117 | E46: 132.024536 | F46: 61.381241 | G46: 54.525593 | H46: 114.382942 | I46: 99.362518 | J46: 141.385986 | K46: 45.219501 | L46: 108.839699 | M46: 1258.800049 | N46: 118.729507 | O46: 9.920617 | P46: 114.819672 | Q46: 125.582901 | R46: 129.146255 | S46: 62.984001 | T46: 126.790619 | U46: 56.732021 | V46: 23.982056 | W46: 227.716705 | X46: 61.827137 | Y46: 247.656418 | Z46: 157.701797 | AA46: 34.267857 | AB46: 120.013786 | AC46: 52.238796 | AD46: 190.689911 | AE46: 127.660904 | AF46: 3037.560059
A47: 2019-11-01 | B47: 314.660004 | C47: 8.908496 | D47: 361.902222 | E47: 139.753998 | F47: 65.943619 | G47: 55.991699 | H47: 117.600861 | I47: 98.346519 | J47: 149.285172 | K47: 43.452198 | L47: 109.767456 | M47: 1304.089966 | N47: 126.233727 | O47: 11.202942 | P47: 116.611572 | Q47: 126.259041 | R47: 150.677261 | S47: 65.987999 | T47: 132.266235 | U47: 57.104301 | V47: 26.609961 | W47: 214.058334 | X47: 62.339535 | Y47: 274.284149 | Z47: 162.27063 | AA47: 34.401817 | AB47: 118.403801 | AC47: 51.250259 | AD47: 188.537735 | AE47: 132.930176 | AF47: 3140.97998
A48: 2019-12-01 | B48: 323.570007 | C48: 9.144482 | D48: 323.833313 | E48: 142.602585 | F48: 72.675339 | G48: 58.045586 | H48: 121.879204 | I48: 98.828346 | J48: 156.04689 | K48: 45.993546 | L48: 114.047806 | M48: 1339.390015 | N48: 133.553284 | O48: 11.093596 | P48: 116.366768 | Q48: 127.360703 | R48: 143.768646 | S48: 83.666 | T48: 132.488739 | U48: 58.203922 | V48: 28.383726 | W48: 211.990662 | X48: 64.619324 | Y48: 288.112549 | Z48: 170.086777 | AA48: 35.329433 | AB48: 121.158745 | AC48: 53.518559 | AD48: 192.79982 | AE48: 142.009354 | AF48: 3230.780029
A49: 2020-01-01 | B49: 345.089996 | C49: 8.672508 | D49: 316.387573 | E49: 126.834023 | F49: 76.600517 | G49: 62.002583 | H49: 127.146385 | I49: 103.773186 | J49: 168.445557 | K49: 44.08514 | L49: 101.394745 | M49: 1432.780029 | N49: 126.808548 | O49: 12.38714 | P49: 112.610161 | Q49: 136.567856 | R49: 138.309998 | S49: 130.113998 | T49: 128.106369 | U49: 56.345947 | V49: 26.298271 | W49: 222.842484 | X49: 57.525826 | Y49: 268.038788 | Z49: 152.964325 | AA49: 33.580097 | AB49: 120.887123 | AC49: 56.46764 | AD49: 208.761581 | AE49: 144.929947 | AF49: 3225.52002
A50: 2020-02-01 | B50: 369.029999 | C50: 6.96 | D50: 273.482849 | E50: 120.809998 | F50: 67.653778 | G50: 53.846134 | H50: 107.997597 | I50: 87.565071 | J50: 160.311722 | K50: 38.574295 | L50: 88.334763 | M50: 1339.25 | N50: 111.954262 | O50: 10.825068 | P50: 105.911972 | Q50: 123.664551 | R50: 117.650002 | S50: 133.598007 | T50: 116.611633 | U50: 51.875092 | V50: 27.54171 | W50: 212.818954 | X50: 47.635681 | Y50: 250.831955 | Z50: 143.882492 | AA50: 30.443357 | AB50: 110.490875 | AC50: 51.720104 | AD50: 189.443558 | AE50: 130.920807 | AF50: 2954.219971
A51: 2020-03-01 | B51: 375.5 | C51: 4.83 | D51: 149.139999 | E51: 112.836372 | F51: 63.083504 | G51: 52.746826 | H51: 84.105103 | I51: 67.537575 | J51: 156.483047 | K51: 37.975349 | L51: 69.375916 | M51: 1161.949951 | N51: 86.807693 | O51: 7.899911 | P51: 111.754448 | Q51: 106.50293 | R51: 96.599998 | S51: 104.800003 | T51: 96.697815 | U51: 51.463234 | V51: 29.655479 | W51: 182.406494 | X51: 35.666676 | Y51: 245.3423 | Z51: 132.80127 | AA51: 29.732828 | AB51: 107.339012 | AC51: 42.785843 | AD51: 162.334625 | AE51: 128.473511 | AF51: 2584.590088
A52: 2020-04-01 | B52: 419.850006 | C52: 5.09 | D52: 141.020004 | E52: 113.166985 | F52: 72.885025 | G52: 58.458145 | H52: 89.645958 | I52: 85.178352 | J52: 177.815781 | K52: 40.941113 | L52: 88.084251 | M52: 1346.699951 | N52: 92.332619 | O52: 6.772386 | P52: 120.083237 | Q52: 120.549057 | R52: 108.150002 | S52: 156.376007 | T52: 99.159485 | U52: 55.026295 | V52: 31.122501 | W52: 216.199966 | X52: 43.651047 | Y52: 288.980988 | Z52: 147.792633 | AA52: 34.943359 | AB52: 115.018631 | AC52: 44.760712 | AD52: 184.139587 | AE52: 147.000412 | AF52: 2912.429932
A53: 2020-05-01 | B53: 419.730011 | C53: 5.71 | D53: 145.850006 | E53: 117.885902 | F53: 78.873604 | G53: 61.333294 | H53: 93.917625 | I53: 88.430573 | J53: 181.824356 | K53: 46.634411 | L53: 87.797012 | M53: 1433.52002 | N53: 94.802139 | O53: 6.54332 | P53: 122.562943 | Q53: 119.915405 | R53: 117.300003 | S53: 167 | T53: 104.812592 | U53: 55.550308 | V53: 32.11692 | W53: 244.376846 | X53: 42.711712 | Y53: 301.213318 | Z53: 152.189835 | AA53: 34.788506 | AB53: 113.870163 | AC53: 45.531273 | AD53: 182.922211 | AE53: 145.736557 | AF53: 3044.310059
A54: 2020-06-01 | B54: 455.040009 | C54: 6.08 | D54: 183.300003 | E54: 124.136917 | F54: 90.743469 | G54: 58.641346 | H54: 94.046043 | I54: 86.099846 | J54: 202.489105 | K54: 45.483669 | L54: 86.686363 | M54: 1418.050049 | N54: 91.635895 | O54: 6.802264 | P54: 118.855125 | Q54: 117.505257 | R54: 111.510002 | S54: 215.962006 | T54: 111.739349 | U54: 53.372059 | V54: 33.485065 | W54: 246.373352 | X54: 42.821705 | Y54: 291.431458 | Z54: 153.257187 | AA54: 30.084341 | AB54: 117.455627 | AC54: 43.580494 | AD54: 182.313461 | AE54: 138.73616 | AF54: 3100.290039
A55: 2020-07-01 | B55: 488.880005 | C55: 6.61 | D55: 158 | E55: 130.39772 | F55: 105.728088 | G55: 46.781734 | H55: 92.188835 | I55: 90.201256 | J55: 203.981583 | K55: 45.932259 | L55: 81.547157 | M55: 1487.949951 | N55: 94.149399 | O55: 6.054414 | P55: 128.400848 | Q55: 119.6166 | R55: 116.940002 | S55: 286.152008 | T55: 112.851257 | U55: 55.647121 | V55: 34.414936 | W55: 262.66507 | X55: 40.293766 | Y55: 300.456482 | Z55: 147.833893 | AA55: 35.402 | AB55: 128.801376 | AC55: 46.496105 | AD55: 192.008759 | AE55: 143.797073 | AF55: 3271.120117
A56: 2020-08-01 | B56: 529.559998 | C56: 6.82 | D56: 171.820007 | E56: 140.697464 | F56: 128.394058 | G56: 49.937763 | H56: 100.813942 | I56: 94.956497 | J56: 224.398651 | K56: 41.497593 | L56: 81.537437 | M56: 1629.530029 | N56: 98.559059 | O56: 6.323721 | P56: 137.777878 | Q56: 119.976593 | R56: 131.869995 | S56: 498.320007 | T56: 114.449043 | U56: 58.02441 | V56: 35.295338 | W56: 282.00708 | X56: 38.244602 | Y56: 310.15152 | Z56: 160.164032 | AA56: 35.106995 | AB56: 136.741364 | AC56: 48.750042 | AD56: 211.023849 | AE56: 151.344055 | AF56: 3500.310059
A57: 2020-09-01 | B57: 500.029999 | C57: 6.66 | D57: 165.259995 | E57: 147.459946 | F57: 115.438042 | G57: 51.095947 | H57: 99.484184 | I57: 90.891327 | J57: 209.780777 | K57: 38.716015 | L57: 70.955933 | M57: 1465.599976 | N57: 94.702866 | O57: 6.214003 | P57: 139.400452 | Q57: 119.930939 | R57: 124.080002 | S57: 429.01001 | T57: 106.706673 | U57: 58.239792 | V57: 33.719791 | W57: 274.755035 | X57: 33.521252 | Y57: 309.377472 | Z57: 158.806213 | AA57: 34.094383 | AB57: 137.393784 | AC57: 48.59256 | AD57: 218.193146 | AE57: 147.852615 | AF57: 3363
A58: 2020-10-01 | B58: 475.73999 | C58: 7.73 | D58: 144.389999 | E58: 155.270432 | F58: 108.510361 | G58: 43.69503 | H58: 90.543015 | I58: 92.912239 | J58: 201.941315 | K58: 35.285732 | L58: 68.492188 | M58: 1616.109985 | N58: 96.444054 | O58: 7.41318 | P58: 138.244675 | Q58: 110.064018 | R58: 121.25 | S58: 388.040009 | T58: 119.951439 | U58: 55.792328 | V58: 32.029327 | W58: 265.263611 | X58: 31.851534 | Y58: 304.046112 | Z58: 158.58812 | AA58: 32.961002 | AB58: 135.525497 | AC58: 47.6861 | AD58: 211.741486 | AE58: 136.163834 | AF58: 3269.959961
A59: 2020-11-01 | B59: 490.700012 | C59: 9.08 | D59: 210.710007 | E59: 172.671295 | F59: 118.667633 | G59: 47.711258 | H59: 118.175621 | I59: 105.326424 | J59: 213.511017 | K59: 42.673916 | L59: 85.91581 | M59: 1754.400024 | N59: 117.037125 | O59: 10.170644 | P59: 152.233536 | Q59: 121.754494 | R59: 148.009995 | S59: 567.599976 | T59: 128.835251 | U59: 59.770138 | V59: 32.814896 | W59: 275.905609 | X59: 37.231731 | Y59: 335.134247 | Z59: 171.248581 | AA59: 37.511944 | AB59: 138.037384 | AC59: 51.198555 | AD59: 216.155258 | AE59: 143.68158 | AF59: 3621.629883
A60: 2020-12-01 | B60: 540.72998 | C60: 8.79 | D60: 214.059998 | E60: 181.056686 | F60: 132.49202 | G60: 49.519421 | H60: 120.487518 | I60: 108.559998 | J60: 222.419998 | K60: 44.389999 | L60: 84.449997 | M60: 1752.640015 | N60: 126.161423 | O60: 10.790073 | P60: 143.625 | Q60: 125.879997 | R60: 181.179993 | S60: 705.669983 | T60: 139.487885 | U60: 58.12772 | V60: 31.76 | W60: 264.179535 | X60: 41.220001 | Y60: 349.422821 | Z60: 174.789993 | AA60: 36.413868 | AB60: 138.305771 | AC60: 54.84 | AD60: 214.580002 | AE60: 157.380005 | AF60: 3756.070068
A61: 2021-01-01 | B61: 532.390015 | C61: 10.53 | D61: 194.190002 | E61: 181.872345 | F61: 131.763107 | G61: 55.175091 | H61: 115.853767 | I61: 101.489998 | J61: 231.960007 | K61: 44.221367 | L61: 85.199997 | M61: 1827.359985 | N61: 127.749977 | O61: 10.68 | P61: 140.490005 | Q61: 119.110001 | R61: 168.169998 | S61: 793.530029 | T61: 136.300003 | U61: 54.17009 | V61: 34.5 | W61: 270.820007 | X61: 44.84 | Y61: 333.579987 | Z61: 175.660004 | AA61: 35.51366 | AB61: 127.441307 | AC61: 48.150002 | AD61: 207.839996 | AE61: 163.130005 | AF61: 3714.23999
A62: 2021-02-01 | B62: 550.789978 | C62: 11.51 | D62: 207.929993 | E62: 193 | F62: 136.555939 | G62: 57.828983 | H62: 126.279999 | I62: 105.339996 | J62: 242.199997 | K62: 48.080002 | L62: 89.260002 | M62: 2088.830078 | N62: 137.979996 | O62: 11.4 | P62: 144.360001 | Q62: 121.790001 | R62: 181.160004 | S62: 852.22998 | T62: 144.839996 | U62: 55.32 | V62: 33.150002 | W62: 278.859985 | X62: 49.950001 | Y62: 324.51001 | Z62: 179.009995 | AA62: 34.919998 | AB62: 129.570007 | AC62: 49.650002 | AD62: 212.580002 | AE62: 164.449997 | AF62: 3886.830078
AF63: 3526.649902

Sheet Returns & Stand Dev
B1: _1 | D1: _2 | F1: _3 | H1: _4 | J1: _5 | L1: _6 | N1: _7 | P1: _8 | R1: _9 | T1: _10 | V1: _11 | X1: _12 | Z1: _13 | AB1: _14 | AD1: _15 | AF1: _16 | AH1: _17 | AJ1: _18 | AL1: _19 | AN1: _20 | AP1: _21 | AR1: _22 | AT1: _23 | AV1: _24 | AX1: _25 | AZ1: _26 | BB1: _27 | BD1: _28 | BF1: _29 | BH1: _30 | BK1: Adj Close
B2: ='price data'!B1 -> NFLX | D2: ='price data'!C1 -> F | F2: ='price data'!D1 -> BA | H2: ='price data'!E1 -> CAT | J2: ='price data'!F1 -> AAPL | L2: ='price data'!G1 -> INTC | N2: ='price data'!H1 -> AXP | P2: ='price data'!I1 -> YUM | R2: ='price data'!J1 -> MSFT | T2: ='price data'!K1 -> CSCO | V2: ='price data'!L1 -> CVX | X2: ='price data'!M1 -> GOOGL | Z2: ='price data'!N1 -> JPM | AB2: ='price data'!O1 -> GE | AD2: ='price data'!P1 -> WMT | AF2: ='price data'!Q1 -> IBM | AH2: ='price data'!R1 -> DIS | AJ2: ='price data'!S1 -> TSLA | AL2: ='price data'!T1 -> TRV | AN2: ='price data'!U1 -> VZ | AP2: ='price data'!V1 -> KR | AR2: ='price data'!W1 -> HD | AT2: ='price data'!X1 -> XOM | AV2: ='price data'!Y1 -> UNH | AX2: ='price data'!Z1 -> MMM | AZ2: ='price data'!AA1 -> PFE | BB2: ='price data'!AB1 -> PG | BD2: ='price data'!AC1 -> KO | BF2: ='price data'!AD1 -> MCD | BH2: ='price data'!AE1 -> JNJ | BJ2: GSPC
A3: Date | B3: Adj. Close* | C3: Return | D3: Adj. Close* | E3: Return | F3: Adj. Close* | G3: Return | H3: Adj. Close* | I3: Return | J3: Adj. Close* | K3: Return | L3: Adj. Close* | M3: Return | N3: Adj. Close* | O3: Return | P3: Adj. Close* | Q3: Return | R3: Adj. Close* | S3: Return | T3: Adj. Close* | U3: Return | V3: Adj. Close* | W3: Return | X3: Adj. Close* | Y3: Return | Z3: Adj. Close* | AA3: Return | AB3: Adj. Close* | AC3: Return | AD3: Adj. Close* | AE3: Return | AF3: Adj. Close* | AG3: Return | AH3: Adj. Close* | AI3: Return | AJ3: Adj. Close* | AK3: Return | AL3: Adj. Close* | AM3: Return | AN3: Adj. Close* | AO3: Return | AP3: Adj. Close* | AQ3: Return | AR3: Adj. Close* | AS3: Return | AT3: Adj. Close* | AU3: Return | AV3: Adj. Close* | AW3: Return | AX3: Adj. Close* | AY3: Return | AZ3: Adj. Close* | BA3: Return | BB3: Adj. Close* | BC3: Return | BD3: Adj. Close* | BE3: Return | BF3: Adj. Close* | BG3: Return | BH3: Adj. Close* | BI3: Return | BK3: Adj Close | BL3: Return
A4: ='price data'!A2 -> 2016-02-01 | B4: ='price data'!B2 -> 93.410004 | D4: ='price data'!C2 -> 9.847643 | F4: ='price data'!D2 -> 105.987793 | H4: ='price data'!E2 -> 58.690445 | J4: ='price data'!F2 -> 22.361717 | L4: ='price data'!G2 -> 25.712011 | N4: ='price data'!H2 -> 51.252834 | P4: ='price data'!I2 -> 47.765572 | R4: ='price data'!J2 -> 46.429623 | T4: ='price data'!K2 -> 22.282425 | V4: ='price data'!L2 -> 67.276268 | X4: ='price data'!M2 -> 717.219971 | Z4: ='price data'!N2 -> 48.887218 | AB4: ='price data'!O2 -> 25.328291 | AD4: ='price data'!P2 -> 59.179916 | AF4: ='price data'!Q2 -> 105.401176 | AH4: ='price data'!R2 -> 90.117691 | AJ4: ='price data'!S2 -> 38.386002 | AL4: ='price data'!T2 -> 95.486359 | AN4: ='price data'!U2 -> 40.686329 | AP4: ='price data'!V2 -> 36.294163 | AR4: ='price data'!W2 -> 110.484222 | AT4: ='price data'!X2 -> 63.282223 | AV4: ='price data'!Y2 -> 110.082664 | AX4: ='price data'!Z2 -> 135.624008 | AZ4: ='price data'!AA2 -> 23.090509 | BB4: ='price data'!AB2 -> 69.297058 | BD4: ='price data'!AC2 -> 36.610565 | BF4: ='price data'!AD2 -> 102.976006 | BH4: ='price data'!AE2 -> 91.932289 | BK4: ='price data'!AF2 -> 1932.22998
A5: ='price data'!A3 -> 2016-03-01 | B5: ='price data'!B3 -> 102.230003 | C5: =LN(B5/B4) -> 0.09022675741 | D5: ='price data'!C3 -> 10.626953 | E5: =LN(D5/D4) -> 0.07616137247 | F5: ='price data'!D3 -> 114.897522 | G5: =LN(F5/F4) -> 0.08071669094 | H5: ='price data'!E3 -> 66.354042 | I5: =LN(H5/H4) -> 0.1227277415 | J5: ='price data'!F3 -> 25.343138 | K5: =LN(J5/J4) -> 0.1251575688 | L5: ='price data'!G3 -> 28.357704 | M5: =LN(L5/L4) -> 0.09794050248 | N5: ='price data'!H3 -> 56.619713 | O5: =LN(N5/N4) -> 0.09958629674 | P5: ='price data'!I3 -> 53.948002 | Q5: =LN(P5/P4) -> 0.1217155278 | R5: ='price data'!J3 -> 50.760994 | S5: =LN(R5/R4) -> 0.08919054275 | T5: ='price data'!K3 -> 24.231501 | U5: =LN(T5/T4) -> 0.08385522976 | V5: ='price data'!L3 -> 77.895035 | W5: =LN(V5/V4) -> 0.1465546708 | X5: ='price data'!M3 -> 762.900024 | Y5: =LN(X5/X4) -> 0.06174440542 | Z5: ='price data'!N3 -> 51.42276 | AA5: =LN(Z5/Z4) -> 0.05056490429 | AB5: ='price data'!O3 -> 27.852858 | AC5: =LN(AB5/AB4) -> 0.09501358996 | AD5: ='price data'!P3 -> 61.097866 | AE5: =LN(AD5/AD4) -> 0.03189471164 | AF5: ='price data'!Q3 -> 123.07151 | AG5: =LN(AF5/AF4) -> 0.154991775 | AH5: ='price data'!R3 -> 93.693352 | AI5: =LN(AH5/AH4) -> 0.03891074305 | AJ5: ='price data'!S3 -> 45.953999 | AK5: =LN(AJ5/AJ4) -> 0.1799480125 | AL5: ='price data'!T3 -> 103.647797 | AM5: =LN(AL5/AL4) -> 0.08201518485 | AN5: ='price data'!U3 -> 43.373081 | AO5: =LN(AN5/AN4) -> 0.063946856 | AP5: ='price data'!V3 -> 34.884289 | AQ5: =LN(AP5/AP4) -> -0.03962037351 | AR5: ='price data'!W3 -> 118.771393 | AS5: =LN(AR5/AR4) -> 0.07232785484 | AT5: ='price data'!X3 -> 66.597282 | AU5: =LN(AT5/AT4) -> 0.05105931348 | AV5: ='price data'!Y3 -> 119.140701 | AW5: =LN(AV5/AV4) -> 0.07907358154 | AX5: ='price data'!Z3 -> 145.103058 | AY5: =LN(AX5/AX4) -> 0.06755782481 | AZ5: ='price data'!AA3 -> 23.29907 | BA5: =LN(AZ5/AZ4) -> 0.008991778314 | BB5: ='price data'!AB3 -> 71.040497 | BC5: =LN(BB5/BB4) -> 0.02484764253 | BD5: ='price data'!AC3 -> 39.377789 | BE5: =LN(BD5/BD4) -> 0.07286506643 | BF5: ='price data'!AD3 -> 111.272888 | BG5: =LN(BF5/BF4) -> 0.07748962508 | BH5: ='price data'!AE3 -> 95.23008 | BI5: =LN(BH5/BH4) -> 0.03524354133 | BK5: ='price data'!AF3 -> 2059.73999
A6: ='price data'!A4 -> 2016-04-01 | B6: ='price data'!B4 -> 90.029999 | C6: =LN(B6/B5) -> -0.1270822691 | D6: ='price data'!C4 -> 10.674184 | E6: 0.004434606228 | F6: ='price data'!D4 -> 122.011871 | G6: 0.06007772524 | H6: ='price data'!E4 -> 67.376999 | I6: 0.01529902026 | J6: ='price data'!F4 -> 21.7971 | K6: -0.1507310696 | L6: ='price data'!G4 -> 26.543163 | M6: -0.06612653889 | N6: ='price data'!H4 -> 60.335968 | O6: 0.06357119936 | P6: ='price data'!I4 -> 52.438652 | Q6: -0.02837670373 | R6: ='price data'!J4 -> 45.834702 | S6: -0.1020867352 | T6: ='price data'!K4 -> 23.397398 | U6: -0.03502866131 | V6: ='price data'!L4 -> 83.430992 | W6: 0.06865763176 | X6: ='price data'!M4 -> 707.880005 | Y6: -0.07485239769 | Z6: ='price data'!N4 -> 54.878727 | AA6: 0.06504491107 | AB6: ='price data'!O4 -> 26.94166 | AC6: -0.0332617948 | AD6: ='price data'!P4 -> 60.09433 | AE6: -0.01656144489 | AF6: ='price data'!Q4 -> 118.593964 | AG6: -0.03705997704 | AH6: ='price data'!R4 -> 97.419945 | AI6: 0.03900372693 | AJ6: ='price data'!S4 -> 48.152 | AK6: 0.04672179985 | AL6: ='price data'!T4 -> 98.142204 | AM6: -0.05458109631 | AN6: ='price data'!U4 -> 40.854748 | AO6: -0.05981595055 | AP6: ='price data'!V4 -> 32.275936 | AQ6: -0.07771461884 | AR6: ='price data'!W4 -> 119.83622 | AS6: 0.008925398947 | AT6: ='price data'!X4 -> 70.429482 | AU6: 0.05594818801 | AV6: ='price data'!Y4 -> 122.212463 | AW6: 0.02545587406 | AX6: ='price data'!Z4 -> 145.756134 | AY6: 0.00449067532 | AZ6: ='price data'!AA4 -> 25.712297 | BA6: 0.09855591434 | BB6: ='price data'!AB4 -> 69.150337 | BC6: -0.02696716316 | BD6: ='price data'!AC4 -> 38.324696 | BE6: -0.02710743382 | BF6: ='price data'!AD4 -> 111.990028 | BG6: 0.0064241969 | BH6: ='price data'!AE4 -> 98.64502 | BI6: 0.03523189142 | BK6: ='price data'!AF4 -> 2065.300049 | BL6: =LN(BK6/BK5) -> 0.002695761648
A7: ='price data'!A5 -> 2016-05-01 | B7: ='price data'!B5 -> 102.57 | C7: 0.1304025553 | D7: ='price data'!C5 -> 10.736203 | E7: 0.005793372484 | F7: ='price data'!D5 -> 114.182487 | G7: -0.06632041158 | H7: ='price data'!E5 -> 63.473263 | I7: -0.05968493644 | J7: ='price data'!F5 -> 23.220165 | K7: 0.06324414876 | L7: ='price data'!G5 -> 27.691498 | M7: 0.04235323427 | N7: ='price data'!H5 -> 60.933861 | O7: 0.009860619899 | P7: ='price data'!I5 -> 54.411255 | Q7: 0.03692707285 | R7: ='price data'!J5 -> 48.711433 | S7: 0.06087227659 | T7: ='price data'!K5 -> 24.951271 | U7: 0.06429994318 | V7: ='price data'!L5 -> 82.467499 | W7: -0.01161558284 | X7: ='price data'!M5 -> 748.849976 | Y7: 0.05626406952 | Z7: ='price data'!N5 -> 57.095802 | AA7: 0.03960480673 | AB7: ='price data'!O5 -> 26.486059 | AC7: -0.0170552684 | AD7: ='price data'!P5 -> 63.608143 | AE7: 0.05682600241 | AF7: ='price data'!Q5 -> 124.932419 | AG7: 0.05206735159 | AH7: ='price data'!R5 -> 93.608437 | AI7: -0.0399104455 | AJ7: ='price data'!S5 -> 44.646 | AK7: -0.0755979566 | AL7: ='price data'!T5 -> 101.928581 | AM7: 0.03785489364 | AN7: ='price data'!U5 -> 41.253593 | AO7: 0.009715167356 | AP7: ='price data'!V5 -> 32.613388 | AQ7: 0.01040094183 | AR7: ='price data'!W5 -> 118.252037 | AS7: -0.01330772378 | AT7: ='price data'!X5 -> 70.923447 | AU7: 0.006989130176 | AV7: ='price data'!Y5 -> 124.05941 | AW7: 0.01499953369 | AX7: ='price data'!Z5 -> 146.574677 | AY7: 0.00560012909 | AZ7: ='price data'!AA5 -> 27.276573 | BA7: 0.05905884196 | BB7: ='price data'!AB5 -> 70.517349 | BC7: 0.01957583309 | BD7: ='price data'!AC5 -> 38.153603 | BE7: -0.004474296308 | BF7: ='price data'!AD5 -> 108.067856 | BG7: -0.03565050549 | BH7: ='price data'!AE5 -> 99.1819 | BI7: 0.005427788271 | BK7: ='price data'!AF5 -> 2096.949951 | BL7: 0.01520836665
A8: ='price data'!A6 -> 2016-06-01 | B8: ='price data'!B6 -> 91.480003 | C8: -0.1144250904 | D8: ='price data'!C6 -> 10.004008 | E8: -0.0706356757 | F8: ='price data'!D6 -> 118.508415 | G8: 0.03718603902 | H8: ='price data'!E6 -> 66.361984 | I8: 0.04450560029 | J8: ='price data'!F6 -> 22.364946 | K8: -0.03752625979 | L8: ='price data'!G6 -> 29.000525 | M8: 0.0461884986 | N8: ='price data'!H6 -> 56.300804 | O8: -0.07908021437 | P8: ='price data'!I6 -> 54.961391 | Q8: 0.01005993106 | R8: ='price data'!J6 -> 47.358456 | S8: -0.0281683777 | T8: ='price data'!K6 -> 24.642065 | U8: -0.01246982081 | V8: ='price data'!L6 -> 86.499542 | W8: 0.04773485492 | X8: ='price data'!M6 -> 703.530029 | Y8: -0.0624281036 | Z8: ='price data'!N6 -> 54.357788 | AA8: -0.04914269705 | AB8: ='price data'!O6 -> 27.581249 | AC8: 0.04051763868 | AD8: ='price data'!P6 -> 66.101631 | AE8: 0.03845192455 | AF8: ='price data'!Q6 -> 124.529945 | AG8: -0.003226734027 | AH8: ='price data'!R6 -> 92.287613 | AI8: -0.01421058949 | AJ8: ='price data'!S6 -> 42.456001 | AK8: -0.05029644856 | AL8: ='price data'!T6 -> 106.304344 | AM8: 0.04203376822 | AN8: ='price data'!U6 -> 45.257374 | AO8: 0.09262740618 | AP8: ='price data'!V6 -> 33.65303 | AQ8: 0.0313802177 | AR8: ='price data'!W6 -> 114.878822 | AS8: -0.02894040237 | AT8: ='price data'!X6 -> 75.311615 | AU8: 0.06003328849 | AV8: ='price data'!Y6 -> 131.048019 | AW8: 0.05480324952 | AX8: ='price data'!Z6 -> 153.511581 | AY8: 0.04624097124 | AZ8: ='price data'!AA6 -> 27.925329 | BA8: 0.02350592453 | BB8: ='price data'!AB6 -> 73.675972 | BC8: 0.04381795696 | BD8: ='price data'!AC6 -> 38.778095 | BE8: 0.01623532909 | BF8: ='price data'!AD6 -> 106.545029 | BG8: -0.01419162282 | BH8: ='price data'!AE6 -> 107.522087 | BI8: 0.08074074896 | BK8: ='price data'!AF6 -> 2098.860107 | BL8: 0.0009105064841
A9: ='price data'!A7 -> 2016-07-01 | B9: ='price data'!B7 -> 91.25 | C9: -0.002517409486 | D9: ='price data'!C7 -> 10.075635 | E9: 0.007134320447 | F9: ='price data'!D7 -> 121.966843 | G9: 0.02876525839 | H9: ='price data'!E7 -> 72.445847 | I9: 0.08771498243 | J9: ='price data'!F7 -> 24.379189 | K9: 0.08623503613 | L9: ='price data'!G7 -> 30.821907 | M9: 0.06091177011 | N9: ='price data'!H7 -> 60.029922 | O9: 0.06413432223 | P9: ='price data'!I7 -> 59.269749 | Q9: 0.07546808402 | R9: ='price data'!J7 -> 52.458019 | S9: 0.1022678229 | T9: ='price data'!K7 -> 26.22246 | U9: 0.06216135347 | V9: ='price data'!L7 -> 84.560471 | W9: -0.02267220757 | X9: ='price data'!M7 -> 791.340027 | Y9: 0.1176171844 | Z9: ='price data'!N7 -> 55.958603 | AA9: 0.02902428846 | AB9: ='price data'!O7 -> 27.490053 | AC9: -0.00331192763 | AD9: ='price data'!P7 -> 66.056366 | AE9: -0.0006850134354 | AF9: ='price data'!Q7 -> 131.782867 | AG9: 0.05660941213 | AH9: ='price data'!R7 -> 90.523369 | AI9: -0.01930189045 | AJ9: ='price data'!S7 -> 46.958 | AK9: 0.1007853161 | AL9: ='price data'!T7 -> 104.396484 | AM9: -0.01811015327 | AN9: ='price data'!U7 -> 44.908867 | AO9: -0.007730359648 | AP9: ='price data'!V7 -> 31.274717 | AQ9: -0.07329308906 | AR9: ='price data'!W7 -> 124.370369 | AS9: 0.07938610955 | AT9: ='price data'!X7 -> 71.46328 | AU9: -0.05245062123 | AV9: ='price data'!Y7 -> 133.509445 | AW9: 0.01860841111 | AX9: ='price data'!Z7 -> 156.351807 | AY9: 0.0183326308 | AZ9: ='price data'!AA7 -> 29.25775 | BA9: 0.0466103694 | BB9: ='price data'!AB7 -> 74.47654 | BC9: 0.01080745485 | BD9: ='price data'!AC7 -> 37.610035 | BE9: -0.03058462226 | BF9: ='price data'!AD7 -> 104.929039 | BG9: -0.01528340066 | BH9: ='price data'!AE7 -> 111.005669 | BI9: 0.03188498515 | BK9: ='price data'!AF7 -> 2173.600098 | BL9: 0.03499043305
A10: ='price data'!A8 -> 2016-08-01 | B10: ='price data'!B8 -> 97.449997 | C10: 0.06573640271 | D10: ='price data'!C8 -> 10.13784 | E10: 0.006154824578 | F10: ='price data'!D8 -> 118.12516 | G10: -0.0320044888 | H10: ='price data'!E8 -> 72.427841 | I10: -0.0002485751601 | J10: ='price data'!F8 -> 24.821346 | K10: 0.01797415024 | L10: ='price data'!G8 -> 31.73259 | M10: 0.0291185251 | N10: ='price data'!H8 -> 61.072964 | O10: 0.01722614261 | P10: ='price data'!I8 -> 60.447243 | Q10: 0.01967192715 | R10: ='price data'!J8 -> 53.179924 | S10: 0.01366774508 | T10: ='price data'!K8 -> 27.250074 | U10: 0.03843994126 | V10: ='price data'!L8 -> 82.992691 | W10: -0.01871436788 | X10: ='price data'!M8 -> 789.849976 | Y10: -0.001884721556 | Z10: ='price data'!N8 -> 59.506172 | AA10: 0.06146785304 | AB10: ='price data'!O8 -> 27.578335 | AC10: 0.003206270561 | AD10: ='price data'!P8 -> 64.671318 | AE10: -0.02119061221 | AF10: ='price data'!Q8 -> 130.35524 | AG10: -0.01089228217 | AH10: ='price data'!R8 -> 89.765015 | AI10: -0.008412726941 | AJ10: ='price data'!S8 -> 42.402 | AK10: -0.1020580542 | AL10: ='price data'!T8 -> 106.633179 | AM10: 0.02119871424 | AN10: ='price data'!U8 -> 42.840767 | AO10: -0.0471451093 | AP10: ='price data'!V8 -> 29.262308 | AQ10: -0.06650973605 | AR10: ='price data'!W8 -> 120.663719 | AS10: -0.03025646593 | AT10: ='price data'!X8 -> 70.009094 | AU10: -0.02055860345 | AV10: ='price data'!Y8 -> 126.84333 | AW10: -0.05121952153 | AX10: ='price data'!Z8 -> 157.123276 | AY10: 0.004922053454 | AZ10: ='price data'!AA8 -> 27.600161 | BA10: -0.05832288981 | BB10: ='price data'!AB8 -> 76.568535 | BC10: 0.02770204566 | BD10: ='price data'!AC8 -> 37.437634 | BE10: -0.004594447917 | BF10: ='price data'!AD8 -> 103.154228 | BG10: -0.01705907511 | BH10: ='price data'!AE8 -> 105.784683 | BI10: -0.04817553629 | BK10: ='price data'!AF8 -> 2170.949951 | BL10: -0.001219987018
A11: ='price data'!A9 -> 2016-09-01 | B11: ='price data'!B9 -> 98.550003 | C11: 0.01122466887 | D11: ='price data'!C9 -> 9.711407 | E11: -0.04297378375 | F11: ='price data'!D9 -> 121.211037 | G11: 0.02578839354 | H11: ='price data'!E9 -> 78.455414 | I11: 0.07993971924 | J11: ='price data'!F9 -> 26.590519 | K11: 0.06885071492 | L11: ='price data'!G9 -> 33.630135 | M11: 0.05807831153 | N11: ='price data'!H9 -> 59.638794 | O11: -0.02376301216 | P11: ='price data'!I9 -> 60.513885 | Q11: 0.001101874757 | R11: ='price data'!J9 -> 53.641758 | S11: 0.00864687522 | T11: ='price data'!K9 -> 27.492756 | U11: 0.008866315088 | V11: ='price data'!L9 -> 85.818344 | W11: 0.0334802395 | X11: ='price data'!M9 -> 804.059998 | Y11: 0.01783086714 | Z11: ='price data'!N9 -> 58.703941 | AA11: -0.01357317569 | AB11: ='price data'!O9 -> 26.148212 | AC11: -0.0532496873 | AD11: ='price data'!P9 -> 65.733818 | AE11: 0.01629573105 | AF11: ='price data'!Q9 -> 131.456284 | AG11: 0.008411016248 | AH11: ='price data'!R9 -> 88.244537 | AI11: -0.01708352121 | AJ11: ='price data'!S9 -> 40.806 | AK11: -0.03836640152 | AL11: ='price data'!T9 -> 102.896385 | AM11: -0.03567219993 | AN11: ='price data'!U9 -> 42.554226 | AO11: -0.006710980711 | AP11: ='price data'!V9 -> 27.249889 | AQ11: -0.07125082379 | AR11: ='price data'!W9 -> 116.363182 | AS11: -0.03629131526 | AT11: ='price data'!X9 -> 70.719543 | AU11: 0.01009680831 | AV11: ='price data'!Y9 -> 130.526016 | AW11: 0.02861986034 | AX11: ='price data'!Z9 -> 155.447281 | AY11: -0.0107240495 | AZ11: ='price data'!AA9 -> 27.085861 | BA11: -0.01880974862 | BB11: ='price data'!AB9 -> 78.708359 | BC11: 0.02756314113 | BD11: ='price data'!AC9 -> 36.480793 | BE11: -0.02589055226 | BF11: ='price data'!AD9 -> 103.686249 | BG11: 0.00514427525 | BH11: ='price data'!AE9 -> 105.41066 | BI11: -0.003541966274 | BK11: ='price data'!AF9 -> 2168.27002 | BL11: -0.001235213406
A12: ='price data'!A10 -> 2016-10-01 | B12: ='price data'!B10 -> 124.870003 | C12: 0.2367091561 | D12: ='price data'!C10 -> 9.445892 | E12: -0.02772123597 | F12: ='price data'!D10 -> 131.046677 | G12: 0.07802043887 | H12: ='price data'!E10 -> 73.762405 | I12: -0.06168130444 | J12: ='price data'!F10 -> 26.705769 | K12: 0.004324885802 | L12: ='price data'!G10 -> 31.064444 | M12: -0.07935865462 | N12: ='price data'!H10 -> 61.855236 | O12: 0.03649048332 | P12: ='price data'!I10 -> 57.495193 | Q12: -0.05117149853 | R12: ='price data'!J10 -> 55.80233 | S12: 0.03948779286 | T12: ='price data'!K10 -> 26.591352 | U12: -0.03333650164 | V12: ='price data'!L10 -> 87.344269 | W12: 0.01762464164 | X12: ='price data'!M10 -> 809.900024 | Y12: 0.007236922115 | Z12: ='price data'!N10 -> 61.057743 | AA12: 0.03931316041 | AB12: ='price data'!O10 -> 25.889654 | AC12: -0.009937383971 | AD12: ='price data'!P10 -> 63.819771 | AE12: -0.02955049407 | AF12: ='price data'!Q10 -> 127.186073 | AG12: -0.03302319936 | AH12: ='price data'!R10 -> 88.082977 | AI12: -0.001832499552 | AJ12: ='price data'!S10 -> 39.546001 | AK12: -0.03136455284 | AL12: ='price data'!T10 -> 97.723312 | AM12: -0.05158237246 | AN12: ='price data'!U10 -> 39.377808 | AO12: -0.07757675965 | AP12: ='price data'!V10 -> 28.443447 | AQ12: 0.04286835242 | AR12: ='price data'!W10 -> 110.331604 | AS12: -0.05322576655 | AT12: ='price data'!X10 -> 67.510887 | AU12: -0.04643308244 | AV12: ='price data'!Y10 -> 132.374466 | AW12: 0.0140622067 | AX12: ='price data'!Z10 -> 145.806244 | AY12: -0.06402800075 | AZ12: ='price data'!AA10 -> 25.358507 | BA12: -0.06589760182 | BB12: ='price data'!AB10 -> 76.121292 | BC12: -0.03342134777 | BD12: ='price data'!AC10 -> 36.848354 | BE12: 0.01002504716 | BF12: ='price data'!AD10 -> 101.178566 | BG12: -0.02448256678 | BH12: ='price data'!AE10 -> 103.501083 | BI12: -0.01828169309 | BK12: ='price data'!AF10 -> 2126.149902 | BL12: -0.01961683742
A13: ='price data'!A11 -> 2016-11-01 | B13: ='price data'!B11 -> 117 | C13: -0.06509928535 | D13: ='price data'!C11 -> 9.742787 | E13: 0.03094727836 | F13: ='price data'!D11 -> 138.526886 | G13: 0.05551085682 | H13: ='price data'!E11 -> 85.201965 | I13: 0.1441753125 | J13: ='price data'!F11 -> 25.995438 | K13: -0.02695854839 | L13: ='price data'!G11 -> 30.912996 | M13: -0.004887207392 | N13: ='price data'!H11 -> 67.426613 | O13: 0.08624303993 | P13: ='price data'!I11 -> 59.096264 | Q13: 0.02746636322 | R13: ='price data'!J11 -> 56.118965 | S13: 0.005658187653 | T13: ='price data'!K11 -> 26.059566 | U13: -0.02020113246 | V13: ='price data'!L11 -> 93.022667 | W13: 0.06298576983 | X13: ='price data'!M11 -> 775.880005 | Y13: -0.04291293739 | Z13: ='price data'!N11 -> 71.189468 | AA13: 0.1535248631 | AB13: ='price data'!O11 -> 27.366528 | AC13: 0.05547723135 | AD13: ='price data'!P11 -> 64.193474 | AE13: 0.005838521812 | AF13: ='price data'!Q11 -> 134.245117 | AG13: 0.05401620437 | AH13: ='price data'!R11 -> 94.193405 | AI13: 0.06707087785 | AJ13: ='price data'!S11 -> 37.880001 | AK13: -0.04304128187 | AL13: ='price data'!T11 -> 102.393578 | AM13: 0.04668385722 | AN13: ='price data'!U11 -> 41.317287 | AO13: 0.04807857493 | AP13: ='price data'!V11 -> 29.655369 | AQ13: 0.04172538819 | AR13: ='price data'!W11 -> 117.014267 | AS13: 0.05880545466 | AT13: ='price data'!X11 -> 70.735741 | AU13: 0.04666210181 | AV13: ='price data'!Y11 -> 148.287888 | AW13: 0.1135208036 | AX13: ='price data'!Z11 -> 151.48674 | AY13: 0.03821945192 | AZ13: ='price data'!AA11 -> 25.702377 | BA13: 0.0134692223 | BB13: ='price data'!AB11 -> 72.873573 | BC13: -0.04360195248 | BD13: ='price data'!AC11 -> 35.066776 | BE13: -0.04955682057 | BF13: ='price data'!AD11 -> 107.200569 | BG13: 0.05781462046 | BH13: ='price data'!AE11 -> 99.316086 | BI13: -0.04127452453 | BK13: ='price data'!AF11 -> 2198.810059 | BL13: 0.03360354539
A14: ='price data'!A12 -> 2016-12-01 | B14: ='price data'!B12 -> 123.800003 | C14: 0.05649344969 | D14: ='price data'!C12 -> 9.88127 | E14: 0.01411382965 | F14: ='price data'!D12 -> 144.337631 | G14: 0.04109078534 | H14: ='price data'!E12 -> 82.687645 | I14: -0.02995430149 | J14: ='price data'!F12 -> 27.381918 | K14: 0.05196180745 | L14: ='price data'!G12 -> 32.556297 | M14: 0.05179412816 | N14: ='price data'!H12 -> 69.33596 | O14: 0.02792388331 | P14: ='price data'!I12 -> 59.040337 | Q14: -0.0009468192534 | R14: ='price data'!J12 -> 58.260712 | S14: 0.03745416009 | T14: ='price data'!K12 -> 26.409124 | U14: 0.01332463882 | V14: ='price data'!L12 -> 99.124939 | W14: 0.06353786993 | X14: ='price data'!M12 -> 792.450012 | Y14: 0.02113155193 | Z14: ='price data'!N12 -> 76.623917 | AA14: 0.07356437426 | AB14: ='price data'!O12 -> 28.113852 | AC14: 0.02694174783 | AD14: ='price data'!P12 -> 62.999466 | AE14: -0.01877530427 | AF14: ='price data'!Q12 -> 138.611145 | AG14: 0.03200513449 | AH14: ='price data'!R12 -> 99.039902 | AI14: 0.05017265092 | AJ14: ='price data'!S12 -> 42.737999 | AK14: 0.1206651361 | AL14: ='price data'!T12 -> 110.586853 | AM14: 0.07697721643 | AN14: ='price data'!U12 -> 44.198738 | AO14: 0.06741525282 | AP14: ='price data'!V12 -> 31.80261 | AQ14: 0.06990517358 | AR14: ='price data'!W12 -> 121.890129 | AS14: 0.04082418946 | AT14: ='price data'!X12 -> 73.781693 | AU14: 0.04215966293 | AV14: ='price data'!Y12 -> 150.495773 | AW14: 0.01477942389 | AX14: ='price data'!Z12 -> 158.521149 | AY14: 0.04538992023 | AZ14: ='price data'!AA12 -> 26.23333 | BA14: 0.02044726179 | BB14: ='price data'!AB12 -> 74.305229 | BC14: 0.01945526309 | BD14: ='price data'!AC12 -> 36.33604 | BE14: 0.0355559567 | BF14: ='price data'!AD12 -> 110.253395 | BG14: 0.02807975105 | BH14: ='price data'!AE12 -> 103.515472 | BI14: 0.04141353757 | BK14: ='price data'!AF12 -> 2238.830078 | BL14: 0.01803711106
A15: ='price data'!A13 -> 2017-01-01 | B15: ='price data'!B13 -> 140.710007 | C15: 0.1280337001 | D15: ='price data'!C13 -> 10.068634 | E15: 0.01878400107 | F15: ='price data'!D13 -> 151.513748 | G15: 0.04852115183 | H15: ='price data'!E13 -> 85.29113 | I15: 0.03100026769 | J15: ='price data'!F13 -> 28.689308 | K15: 0.04664164126 | L15: ='price data'!G13 -> 33.049988 | M15: 0.01505039705 | N15: ='price data'!H13 -> 71.488663 | O15: 0.03057520276 | P15: ='price data'!I13 -> 61.091324 | Q15: 0.0341489711 | R15: ='price data'!J13 -> 60.614021 | S15: 0.03959826342 | T15: ='price data'!K13 -> 26.846075 | U15: 0.01641007127 | V15: ='price data'!L13 -> 93.777069 | W15: -0.0554607054 | X15: ='price data'!M13 -> 820.190002 | Y15: 0.03440659575 | Z15: ='price data'!N13 -> 75.149864 | AA15: -0.0194249539 | AB15: ='price data'!O13 -> 26.622324 | AC15: -0.05451229668 | AD15: ='price data'!P13 -> 61.265579 | AE15: -0.02790808206 | AF15: ='price data'!Q13 -> 145.734192 | AG15: 0.05011186488 | AH15: ='price data'!R13 -> 105.960678 | AI15: 0.06754524359 | AJ15: ='price data'!S13 -> 50.386002 | AK15: 0.1646249676 | AL15: ='price data'!T13 -> 107.009041 | AM15: -0.032887886 | AN15: ='price data'!U13 -> 40.580364 | AO15: -0.08541193235 | AP15: ='price data'!V13 -> 31.295761 | AQ15: -0.01606570483 | AR15: ='price data'!W13 -> 125.071892 | AS15: 0.02576865098 | AT15: ='price data'!X13 -> 68.574638 | AU15: -0.07318788059 | AV15: ='price data'!Y13 -> 152.432907 | AW15: 0.01278954773 | AX15: ='price data'!Z13 -> 155.1922 | AY15: -0.02122366784 | AZ15: ='price data'!AA13 -> 25.627575 | BA15: -0.02336181948 | BB15: ='price data'!AB13 -> 77.415993 | BC15: 0.04101206106 | BD15: ='price data'!AC13 -> 36.432453 | BE15: 0.002649857169 | BF15: ='price data'!AD13 -> 111.0233 | BG15: 0.006958781691 | BH15: ='price data'!AE13 -> 101.75444 | BI15: -0.01715862972 | BK15: ='price data'!AF13 -> 2278.870117 | BL15: 0.01772631459
A16: ='price data'!A14 -> 2017-02-01 | B16: ='price data'!B14 -> 142.130005 | C16: 0.01004108238 | D16: ='price data'!C14 -> 10.371616 | E16: 0.02964779716 | F16: ='price data'!D14 -> 167.098999 | G16: 0.09791007845 | H16: ='price data'!E14 -> 86.897835 | I16: 0.01866265511 | J16: ='price data'!F14 -> 32.386887 | K16: 0.1212291089 | L16: ='price data'!G14 -> 32.493465 | M16: -0.01698221102 | N16: ='price data'!H14 -> 75.252579 | O16: 0.05131129778 | P16: ='price data'!I14 -> 61.177986 | Q16: 0.001417559558 | R16: ='price data'!J14 -> 59.985847 | S16: -0.01041758489 | T16: ='price data'!K14 -> 30.12623 | U16: 0.1152765931 | V16: ='price data'!L14 -> 94.745575 | W16: 0.01027478185 | X16: ='price data'!M14 -> 844.929993 | Y16: 0.02971775223 | Z16: ='price data'!N14 -> 80.914124 | AA16: 0.07390408825 | AB16: ='price data'!O14 -> 26.720922 | AC16: 0.003696742125 | AD16: ='price data'!P14 -> 65.1119 | AE16: 0.0608891601 | AF16: ='price data'!Q14 -> 150.159988 | AG16: 0.02991695271 | AH16: ='price data'!R14 -> 105.424408 | AI16: -0.005073878774 | AJ16: ='price data'!S14 -> 49.998001 | AK16: -0.007730373777 | AL16: ='price data'!T14 -> 111.061172 | AM16: 0.03716782239 | AN16: ='price data'!U14 -> 41.533081 | AO16: 0.02320593793 | AP16: ='price data'!V14 -> 29.305214 | AQ16: -0.06571720465 | AR16: ='price data'!W14 -> 131.735535 | AS16: 0.05190768215 | AT16: ='price data'!X14 -> 66.473831 | AU16: -0.0311144065 | AV16: ='price data'!Y14 -> 155.517334 | AW16: 0.02003265293 | AX16: ='price data'!Z14 -> 165.427658 | AY16: 0.06386963872 | AZ16: ='price data'!AA14 -> 27.557922 | BA16: 0.07262112396 | BB16: ='price data'!AB14 -> 81.12043 | BC16: 0.04674145346 | BD16: ='price data'!AC14 -> 36.774254 | BE16: 0.009338037394 | BF16: ='price data'!AD14 -> 115.624756 | BG16: 0.04060999637 | BH16: ='price data'!AE14 -> 109.804947 | BI16: 0.07614312297 | BK16: ='price data'!AF14 -> 2363.639893 | BL16: 0.036523001
A17: ='price data'!A15 -> 2017-03-01 | B17: ='price data'!B15 -> 147.809998 | C17: 0.03918548476 | D17: ='price data'!C15 -> 9.634925 | E17: -0.07367832652 | F17: ='price data'!D15 -> 165.385056 | G17: -0.01031001732 | H17: ='price data'!E15 -> 83.391701 | I17: -0.04118432225 | J17: ='price data'!F15 -> 34.111042 | K17: 0.05186752554 | L17: ='price data'!G15 -> 32.607914 | M17: 0.003516027453 | N17: ='price data'!H15 -> 74.359634 | O17: -0.01193693463 | P17: ='price data'!I15 -> 59.848022 | Q17: -0.02197903676 | R17: ='price data'!J15 -> 62.122833 | S17: 0.03500495146 | T17: ='price data'!K15 -> 29.791302 | U17: -0.01117974914 | V17: ='price data'!L15 -> 91.290733 | W17: -0.03714585912 | X17: ='price data'!M15 -> 847.799988 | Y17: 0.00339096936 | Z17: ='price data'!N15 -> 78.431877 | AA17: -0.03115795563 | AB17: ='price data'!O15 -> 26.925016 | AC17: 0.007608963224 | AD17: ='price data'!P15 -> 66.16758 | AE17: 0.01608328668 | AF17: ='price data'!Q15 -> 146.56665 | AG17: -0.02422103856 | AH17: ='price data'!R15 -> 108.584564 | AI17: 0.02953507687 | AJ17: ='price data'!S15 -> 55.66 | AK17: 0.1072787315 | AL17: ='price data'!T15 -> 109.51664 | AM17: -0.01400464743 | AN17: ='price data'!U15 -> 40.796642 | AO17: -0.01789046812 | AP17: ='price data'!V15 -> 27.274199 | AQ17: -0.07182428867 | AR17: ='price data'!W15 -> 133.480942 | AS17: 0.01316232097 | AT17: ='price data'!X15 -> 67.650864 | AU17: 0.01755177474 | AV17: ='price data'!Y15 -> 154.229004 | AW17: -0.008318661248 | AX17: ='price data'!Z15 -> 170.954636 | AY17: 0.03286424728 | AZ17: ='price data'!AA15 -> 27.912109 | BA17: 0.01277056483 | BB17: ='price data'!AB15 -> 80.033722 | BC17: -0.01348676976 | BD17: ='price data'!AC15 -> 37.194927 | BE17: 0.01137440025 | BF17: ='price data'!AD15 -> 118.264229 | BG17: 0.02257126438 | BH17: ='price data'!AE15 -> 112.647919 | BI17: 0.02556161086 | BK17: ='price data'!AF15 -> 2362.719971 | BL17: -0.000389272945
A18: ='price data'!A16 -> 2017-04-01 | B18: ='price data'!B16 -> 152.199997 | C18: 0.02926777402 | D18: ='price data'!C16 -> 9.494207 | E18: -0.01471269458 | F18: ='price data'!D16 -> 172.837936 | G18: 0.04407794147 | H18: ='price data'!E16 -> 91.932243 | I18: 0.09750302056 | J18: ='price data'!F16 -> 34.108673 | K18: -6.945206385e-05 | L18: ='price data'!G16 -> 32.680241 | M18: 0.002215624858 | N18: ='price data'!H16 -> 74.491226 | O18: 0.001768105798 | P18: ='price data'!I16 -> 61.580723 | Q18: 0.02854050108 | R18: ='price data'!J16 -> 64.575302 | S18: 0.03871841318 | T18: ='price data'!K16 -> 30.029278 | U18: 0.00795636737 | V18: ='price data'!L16 -> 90.721069 | W18: -0.006259658482 | X18: ='price data'!M16 -> 924.52002 | Y18: 0.08662996078 | Z18: ='price data'!N16 -> 77.681847 | AA18: -0.009608838373 | AB18: ='price data'!O16 -> 26.193165 | AC18: -0.02755731842 | AD18: ='price data'!P16 -> 69.520744 | AE18: 0.04943456797 | AF18: ='price data'!Q16 -> 134.909668 | AG18: -0.08287484526 | AH18: ='price data'!R16 -> 110.700897 | AI18: 0.01930268155 | AJ18: ='price data'!S16 -> 62.813999 | AK18: 0.1209162065 | AL18: ='price data'!T16 -> 111.143898 | AM18: 0.01474923894 | AN18: ='price data'!U16 -> 38.419983 | AO18: -0.06002205924 | AP18: ='price data'!V16 -> 27.422178 | AQ18: 0.005410938317 | AR18: ='price data'!W16 -> 142.77179 | AS18: 0.06728877028 | AT18: ='price data'!X16 -> 67.353889 | AU18: -0.004399481832 | AV18: ='price data'!Y16 -> 165.063721 | AW18: 0.0678930504 | AX18: ='price data'!Z16 -> 174.975449 | AY18: 0.02324743789 | AZ18: ='price data'!AA16 -> 27.675495 | BA18: -0.008513244394 | BB18: ='price data'!AB16 -> 77.78904 | BC18: -0.02844752363 | BD18: ='price data'!AC16 -> 38.150974 | BE18: 0.02537890719 | BF18: ='price data'!AD16 -> 127.68084 | BG18: 0.07661236268 | BH18: ='price data'!AE16 -> 111.671112 | BI18: -0.008709142241 | BK18: ='price data'!AF16 -> 2384.199951 | BL18: 0.00905013228
A19: ='price data'!A17 -> 2017-05-01 | B19: ='price data'!B17 -> 163.070007 | C19: 0.06898417368 | D19: ='price data'!C17 -> 9.328549 | E19: -0.0176023402 | F19: ='price data'!D17 -> 175.456284 | G19: 0.01503554855 | H19: ='price data'!E17 -> 95.569389 | I19: 0.03880075346 | J19: ='price data'!F17 -> 36.27177 | K19: 0.06148806064 | L19: ='price data'!G17 -> 32.644081 | M19: -0.001107091588 | N19: ='price data'!H17 -> 72.616852 | O19: -0.02548433053 | P19: ='price data'!I17 -> 68.353569 | Q19: 0.1043448951 | R19: ='price data'!J17 -> 65.876991 | S19: 0.01995721461 | T19: ='price data'!K17 -> 28.032612 | U19: -0.06880429237 | V19: ='price data'!L17 -> 87.983292 | W19: -0.0306426906 | X19: ='price data'!M17 -> 987.090027 | Y19: 0.0654865425 | Z19: ='price data'!N17 -> 73.772781 | AA19: -0.0516317583 | AB19: ='price data'!O17 -> 24.738493 | AC19: -0.05713804726 | AD19: ='price data'!P17 -> 72.683296 | AE19: 0.04448640912 | AF19: ='price data'!Q17 -> 128.46257 | AG19: -0.04896785069 | AH19: ='price data'!R17 -> 103.365532 | AI19: -0.06856038239 | AJ19: ='price data'!S17 -> 68.202003 | AK19: 0.08229597127 | AL19: ='price data'!T17 -> 114.058144 | AM19: 0.02588261334 | AN19: ='price data'!U17 -> 39.496593 | AO19: 0.02763670016 | AP19: ='price data'!V17 -> 27.54241 | AQ19: 0.004374896498 | AR19: ='price data'!W17 -> 140.402939 | AS19: -0.01673105695 | AT19: ='price data'!X17 -> 66.405258 | AU19: -0.01418440423 | AV19: ='price data'!Y17 -> 165.346878 | AW19: 0.00171397086 | AX19: ='price data'!Z17 -> 182.695358 | AY19: 0.04317438264 | AZ19: ='price data'!AA17 -> 26.639296 | BA19: -0.03815994572 | BB19: ='price data'!AB17 -> 79.066833 | BC19: 0.01629293494 | BD19: ='price data'!AC17 -> 40.20219 | BE19: 0.05237018355 | BF19: ='price data'!AD17 -> 137.681427 | BG19: 0.07540880384 | BH19: ='price data'!AE17 -> 115.994339 | BI19: 0.03798333687 | BK19: ='price data'!AF17 -> 2411.800049 | BL19: 0.01150975925
A20: ='price data'!A18 -> 2017-06-01 | B20: ='price data'!B18 -> 149.410004 | C20: -0.08748536776 | D20: ='price data'!C18 -> 9.38727 | E20: 0.006275033188 | F20: ='price data'!D18 -> 186.335297 | G20: 0.06015780503 | H20: ='price data'!E18 -> 97.409538 | I20: 0.01907156189 | J20: ='price data'!F18 -> 34.337669 | K20: -0.05479677962 | L20: ='price data'!G18 -> 30.728462 | M20: -0.06047422684 | N20: ='price data'!H18 -> 79.506676 | O20: 0.09064397687 | P20: ='price data'!I18 -> 69.407478 | Q20: 0.01530083553 | R20: ='price data'!J18 -> 65.391304 | S20: -0.007399947052 | T20: ='price data'!K18 -> 27.828123 | U20: -0.007321418647 | V20: ='price data'!L18 -> 89.60836 | W20: 0.01830168638 | X20: ='price data'!M18 -> 929.679993 | Y20: -0.05992081465 | Z20: ='price data'!N18 -> 82.079498 | AA20: 0.106698423 | AB20: ='price data'!O18 -> 24.404182 | AC20: -0.01360594055 | AD20: ='price data'!P18 -> 70.451431 | AE20: -0.03118804156 | AF20: ='price data'!Q18 -> 130.737335 | AG20: 0.01755265615 | AH20: ='price data'!R18 -> 101.747154 | AI20: -0.01578070686 | AJ20: ='price data'!S18 -> 72.321999 | AK20: 0.05865442282 | AL20: ='price data'!T18 -> 115.592934 | AM20: 0.01336647634 | AN20: ='price data'!U18 -> 37.819851 | AO20: -0.04338029151 | AP20: ='price data'!V18 -> 21.654297 | AQ20: -0.240523088 | AR20: ='price data'!W18 -> 141.113129 | AS20: 0.005045477593 | AT20: ='price data'!X18 -> 67.223862 | AU20: 0.01225203369 | AV20: ='price data'!Y18 -> 175.0121 | AW20: 0.0568095563 | AX20: ='price data'!Z18 -> 187.130188 | AY20: 0.02398451185 | AZ20: ='price data'!AA18 -> 27.67152 | BA20: 0.03801630653 | BB20: ='price data'!AB18 -> 78.223137 | BC20: -0.01072800881 | BD20: ='price data'!AC18 -> 39.654022 | BE20: -0.01372909124 | BF20: ='price data'!AD18 -> 139.752731 | BG20: 0.01493213742 | BH20: ='price data'!AE18 -> 120.441719 | BI20: 0.03762458799 | BK20: ='price data'!AF18 -> 2423.409912 | BL20: 0.004802225924
A21: ='price data'!A19 -> 2017-07-01 | B21: ='price data'!B19 -> 181.660004 | C21: 0.1954425985 | D21: ='price data'!C19 -> 9.412437 | E21: 0.002677383752 | F21: ='price data'!D19 -> 228.464523 | G21: 0.203833215 | H21: ='price data'!E19 -> 103.292564 | I21: 0.05864125709 | J21: ='price data'!F19 -> 35.460644 | K21: 0.03218048865 | L21: ='price data'!G19 -> 32.304054 | M21: 0.05000340711 | N21: ='price data'!H19 -> 80.441048 | O21: 0.01168360019 | P21: ='price data'!I19 -> 71.026001 | Q21: 0.0230514074 | R21: ='price data'!J19 -> 68.967758 | S21: 0.05324983677 | T21: ='price data'!K19 -> 27.961491 | U21: 0.004781114064 | V21: ='price data'!L19 -> 93.782562 | W21: 0.04553031335 | X21: ='price data'!M19 -> 945.5 | Y21: 0.01687345471 | Z21: ='price data'!N19 -> 82.438705 | AA21: 0.004366782086 | AB21: ='price data'!O19 -> 23.334446 | AC21: -0.0448238731 | AD21: ='price data'!P19 -> 74.463661 | AE21: 0.05538768416 | AF21: ='price data'!Q19 -> 122.952431 | AG21: -0.06139269328 | AH21: ='price data'!R19 -> 105.271187 | AI21: 0.03404890055 | AJ21: ='price data'!S19 -> 64.694 | AK21: -0.1114598952 | AL21: ='price data'!T19 -> 117.70137 | AM21: 0.01807582416 | AN21: ='price data'!U19 -> 40.98703 | AO21: 0.08042155169 | AP21: ='price data'!V19 -> 22.768587 | AQ21: 0.05017791231 | AR21: ='price data'!W19 -> 137.617508 | AS21: -0.02508374624 | AT21: ='price data'!X19 -> 66.649292 | AU21: -0.008583849873 | AV21: ='price data'!Y19 -> 181.791077 | AW21: 0.03800298474 | AX21: ='price data'!Z19 -> 180.820313 | AY21: -0.03430077483 | AZ21: ='price data'!AA19 -> 27.317287 | BA21: -0.0128840002 | BB21: ='price data'!AB19 -> 81.517204 | BC21: 0.04124861664 | BD21: ='price data'!AC19 -> 40.862865 | BE21: 0.03002932389 | BF21: ='price data'!AD19 -> 142.446777 | BG21: 0.01909378132 | BH21: ='price data'!AE19 -> 120.833206 | BI21: 0.003245155654 | BK21: ='price data'!AF19 -> 2470.300049 | BL21: 0.01916401766
A22: ='price data'!A20 -> 2017-08-01 | B22: ='price data'!B20 -> 174.710007 | C22: -0.03900933354 | D22: ='price data'!C20 -> 9.371881 | E22: -0.004318076708 | F22: ='price data'!D20 -> 225.826126 | G22: -0.0116155887 | H22: ='price data'!E20 -> 107.270203 | I22: 0.03778552401 | J22: ='price data'!F20 -> 39.101368 | K22: 0.0977339918 | L22: ='price data'!G20 -> 31.939756 | M22: -0.01134122975 | N22: ='price data'!H20 -> 81.568893 | O22: 0.01392338289 | P22: ='price data'!I20 -> 72.581284 | Q22: 0.02166107118 | R22: ='price data'!J20 -> 70.931496 | S22: 0.02807544618 | T22: ='price data'!K20 -> 28.904739 | U22: 0.03317731879 | V22: ='price data'!L20 -> 92.434105 | W22: -0.01448292027 | X22: ='price data'!M20 -> 955.23999 | Y22: 0.01024871924 | Z22: ='price data'!N20 -> 82.070465 | AA22: -0.004476839984 | AB22: ='price data'!O20 -> 22.368631 | AC22: -0.04227106236 | AD22: ='price data'!P20 -> 72.676308 | AE22: -0.02429579036 | AF22: ='price data'!Q20 -> 121.558609 | AG22: -0.01140101566 | AH22: ='price data'!R20 -> 97.632111 | AI22: -0.07533330851 | AJ22: ='price data'!S20 -> 71.18 | AK22: 0.09554341858 | AL22: ='price data'!T20 -> 111.351799 | AM22: -0.05545610412 | AN22: ='price data'!U20 -> 41.155659 | AO22: 0.004105763737 | AP22: ='price data'!V20 -> 20.307869 | AQ22: -0.1143733764 | AR22: ='price data'!W20 -> 137.86586 | AS22: 0.001803027668 | AT22: ='price data'!X20 -> 63.559975 | AU22: -0.04746047557 | AV22: ='price data'!Y20 -> 188.510773 | AW22: 0.03629705732 | AX22: ='price data'!Z20 -> 183.651657 | AY22: 0.01553700251 | AZ22: ='price data'!AA20 -> 27.943378 | BA22: 0.02266052322 | BB22: ='price data'!AB20 -> 83.468414 | BC22: 0.02365419485 | BD22: ='price data'!AC20 -> 40.604355 | BE22: -0.006346377541 | BF22: ='price data'!AD20 -> 146.881607 | BG22: 0.03065843251 | BH22: ='price data'!AE20 -> 120.514534 | BI22: -0.002640772068 | BK22: ='price data'!AF20 -> 2471.649902 | BL22: 0.000546283571
A23: ='price data'!A21 -> 2017-09-01 | B23: ='price data'!B21 -> 181.350006 | C23: 0.03730140226 | D23: ='price data'!C21 -> 10.17057 | E23: 0.08178443252 | F23: ='price data'!D21 -> 240.964951 | G23: 0.06488614219 | H23: ='price data'!E21 -> 113.862198 | I23: 0.05963801472 | J23: ='price data'!F21 -> 36.890041 | K23: -0.05821583057 | L23: ='price data'!G21 -> 34.941441 | M23: 0.08982204255 | N23: ='price data'!H21 -> 85.699455 | O23: 0.04939849014 | P23: ='price data'!I21 -> 69.548401 | Q23: -0.042684165 | R23: ='price data'!J21 -> 71.042374 | S23: 0.00156194971 | T23: ='price data'!K21 -> 30.179024 | U23: 0.04314155261 | V23: ='price data'!L21 -> 101.93396 | W23: 0.09782914034 | X23: ='price data'!M21 -> 973.719971 | Y23: 0.01916115086 | Z23: ='price data'!N21 -> 86.242165 | AA23: 0.04958100368 | AB23: ='price data'!O21 -> 22.031511 | AC23: -0.01518582885 | AD23: ='price data'!P21 -> 73.19902 | AE23: 0.007166588681 | AF23: ='price data'!Q21 -> 124.603638 | AG23: 0.02474127828 | AH23: ='price data'!R21 -> 95.094833 | AI23: -0.02633180966 | AJ23: ='price data'!S21 -> 68.220001 | AK23: -0.04247408843 | AL23: ='price data'!T21 -> 112.583115 | AM23: 0.01099719903 | AN23: ='price data'!U21 -> 42.459736 | AO23: 0.03119479971 | AP23: ='price data'!V21 -> 18.726463 | AQ23: -0.08107078921 | AR23: ='price data'!W21 -> 151.349106 | AS23: 0.09330794517 | AT23: ='price data'!X21 -> 68.926414 | AU23: 0.08105552341 | AV23: ='price data'!Y21 -> 185.620071 | AW23: -0.01545320078 | AX23: ='price data'!Z21 -> 189.752411 | AY23: 0.03267932757 | AZ23: ='price data'!AA21 -> 29.697021 | BA23: 0.06086648929 | BB23: ='price data'!AB21 -> 82.301483 | BC23: -0.01407915788 | BD23: ='price data'!AC21 -> 40.122982 | BE23: -0.01192603951 | BF23: ='price data'!AD21 -> 144.714294 | BG23: -0.01486545527 | BH23: ='price data'!AE21 -> 119.118851 | BI23: -0.01164861717 | BK23: ='price data'!AF21 -> 2519.360107 | BL23: 0.01911903932
A24: ='price data'!A22 -> 2017-10-01 | B24: ='price data'!B22 -> 196.429993 | C24: 0.0798771993 | D24: ='price data'!C22 -> 10.425473 | E24: 0.02475388267 | F24: ='price data'!D22 -> 244.538559 | G24: 0.01472151062 | H24: ='price data'!E22 -> 123.987518 | I24: 0.0851919715 | J24: ='price data'!F22 -> 40.461285 | K24: 0.09240396798 | L24: ='price data'!G22 -> 41.7407 | M24: 0.177803126 | N24: ='price data'!H22 -> 90.493156 | O24: 0.05442775735 | P24: ='price data'!I22 -> 70.342049 | Q24: 0.01134682911 | R24: ='price data'!J22 -> 79.330177 | S24: 0.1103420826 | T24: ='price data'!K22 -> 30.645668 | U24: 0.01534420119 | V24: ='price data'!L22 -> 100.537231 | W24: -0.01379703601 | X24: ='price data'!M22 -> 1033.040039 | Y24: 0.05913747009 | Z24: ='price data'!N22 -> 90.847275 | AA24: 0.05202058869 | AB24: ='price data'!O22 -> 18.552235 | AC24: -0.1718834798 | AD24: ='price data'!P22 -> 81.789162 | AE24: 0.110962708 | AF24: ='price data'!Q22 -> 132.316193 | AG24: 0.06005665634 | AH24: ='price data'!R22 -> 94.361626 | AI24: -0.007740149525 | AJ24: ='price data'!S22 -> 66.306 | AK24: -0.02845740081 | AL24: ='price data'!T22 -> 122.456657 | AM24: 0.0840653981 | AN24: ='price data'!U22 -> 41.069855 | AO24: -0.03328184123 | AP24: ='price data'!V22 -> 19.323921 | AQ24: 0.03140610131 | AR24: ='price data'!W22 -> 153.403336 | AS24: 0.01348150715 | AT24: ='price data'!X22 -> 70.07827 | AU24: 0.0165732885 | AV24: ='price data'!Y22 -> 199.995575 | AW24: 0.07459328563 | AX24: ='price data'!Z22 -> 208.094818 | AY24: 0.09227370921 | AZ24: ='price data'!AA22 -> 29.16464 | BA24: -0.01808972118 | BB24: ='price data'!AB22 -> 78.10408 | BC24: -0.05234683076 | BD24: ='price data'!AC22 -> 41.313805 | BE24: 0.02924741826 | BF24: ='price data'!AD22 -> 154.16301 | BG24: 0.06324913664 | BH24: ='price data'!AE22 -> 127.731407 | BI24: 0.06980793382 | BK24: ='price data'!AF22 -> 2575.26001 | BL24: 0.02194556029
A25: ='price data'!A23 -> 2017-11-01 | B25: ='price data'!B23 -> 187.580002 | C25: -0.04610066637 | D25: ='price data'!C23 -> 10.769984 | E25: 0.0325108672 | F25: ='price data'!D23 -> 262.377899 | G25: 0.07041282515 | H25: ='price data'!E23 -> 129.640823 | I25: 0.04458682735 | J25: ='price data'!F23 -> 41.133884 | K25: 0.01648661907 | L25: ='price data'!G23 -> 41.144272 | M25: -0.01439195261 | N25: ='price data'!H23 -> 92.925262 | O25: 0.02652131212 | P25: ='price data'!I23 -> 78.864342 | Q25: 0.11435943 | R25: ='price data'!J23 -> 80.274361 | S25: 0.01183168131 | T25: ='price data'!K23 -> 33.761665 | U25: 0.09683467252 | V25: ='price data'!L23 -> 103.226555 | W25: 0.02639801923 | X25: ='price data'!M23 -> 1036.170044 | Y25: 0.003025316195 | Z25: ='price data'!N23 -> 94.929558 | AA25: 0.04395532192 | AB25: ='price data'!O23 -> 16.831371 | AC25: -0.09734580041 | AD25: ='price data'!P23 -> 91.081917 | AE25: 0.1076145475 | AF25: ='price data'!Q23 -> 132.238892 | AG25: -0.0005843849284 | AH25: ='price data'!R23 -> 101.124474 | AI25: 0.06921768761 | AJ25: ='price data'!S23 -> 61.77 | AK25: -0.07086258113 | AL25: ='price data'!T23 -> 125.341278 | AM25: 0.02328309404 | AN25: ='price data'!U23 -> 44.184643 | AO25: 0.07310288787 | AP25: ='price data'!V23 -> 24.140898 | AQ25: 0.2225636561 | AR25: ='price data'!W23 -> 166.395157 | AS25: 0.08129478763 | AT25: ='price data'!X23 -> 70.027824 | AU25: -0.0007201114632 | AV25: ='price data'!Y23 -> 217.072525 | AW25: 0.08193627299 | AX25: ='price data'!Z23 -> 219.801773 | AY25: 0.05473227676 | AZ25: ='price data'!AA23 -> 30.162853 | BA25: 0.03365411759 | BB25: ='price data'!AB23 -> 82.015938 | BC25: 0.04887129803 | BD25: ='price data'!AC23 -> 41.125118 | BE25: -0.004577627233 | BF25: ='price data'!AD23 -> 158.836609 | BG25: 0.02986550842 | BH25: ='price data'!AE23 -> 127.658134 | BI25: -0.0005738136474 | BK25: ='price data'!AF23 -> 2647.580078 | BL25: 0.02769554091
A26: ='price data'!A24 -> 2017-12-01 | B26: ='price data'!B24 -> 191.960007 | C26: 0.02308162171 | D26: ='price data'!C24 -> 10.744176 | E26: -0.002399165236 | F26: ='price data'!D24 -> 281.04715 | G26: 0.0687366217 | H26: ='price data'!E24 -> 144.731155 | I26: 0.1101101914 | J26: ='price data'!F24 -> 40.652374 | K26: -0.0117749748 | L26: ='price data'!G24 -> 42.60648 | M26: 0.03492163501 | N26: ='price data'!H24 -> 94.446922 | O26: 0.01624246909 | P26: ='price data'!I24 -> 77.398163 | Q26: -0.01876614007 | R26: ='price data'!J24 -> 81.990669 | S26: 0.0211551683 | T26: ='price data'!K24 -> 34.666798 | U26: 0.0264564117 | V26: ='price data'!L24 -> 109.62188 | W26: 0.06011085379 | X26: ='price data'!M24 -> 1053.400024 | Y26: 0.01649178535 | Z26: ='price data'!N24 -> 97.12751 | AA26: 0.02288952952 | AB26: ='price data'!O24 -> 16.058359 | AC26: -0.04701494259 | AD26: ='price data'!P24 -> 92.505798 | AE26: 0.01551203523 | AF26: ='price data'!Q24 -> 133.083572 | AG26: 0.006367217016 | AH26: ='price data'!R24 -> 103.719643 | AI26: 0.02533934482 | AJ26: ='price data'!S24 -> 62.27 | AK26: 0.008061959177 | AL26: ='price data'!T24 -> 125.405968 | AM26: 0.0005159777622 | AN26: ='price data'!U24 -> 45.955849 | AO26: 0.03930384596 | AP26: ='price data'!V24 -> 25.770697 | AQ26: 0.06533065661 | AR26: ='price data'!W24 -> 176.268707 | AS26: 0.05764415167 | AT26: ='price data'!X24 -> 70.972908 | AU26: 0.01340557797 | AV26: ='price data'!Y24 -> 210.445694 | AW26: -0.0310038802 | AX26: ='price data'!Z24 -> 213.851028 | AY26: -0.02744646659 | AZ26: ='price data'!AA24 -> 30.404896 | BA26: 0.00799251392 | BB26: ='price data'!AB24 -> 83.738457 | BC26: 0.02078474011 | BD26: ='price data'!AC24 -> 41.561928 | BE26: 0.01056547753 | BF26: ='price data'!AD24 -> 159.922836 | BG26: 0.006815366393 | BH26: ='price data'!AE24 -> 128.799377 | BI26: 0.008900113932 | BK26: ='price data'!AF24 -> 2673.610107 | BL26: 0.009783614464
A27: ='price data'!A25 -> 2018-01-01 | B27: ='price data'!B25 -> 270.299988 | C27: 0.3422453554 | D27: ='price data'!C25 -> 9.436639 | E27: -0.1297639617 | F27: ='price data'!D25 -> 337.712097 | G27: 0.1836712996 | H27: ='price data'!E25 -> 149.507141 | I27: 0.03246623958 | J27: ='price data'!F25 -> 40.21999 | K27: -0.01069309956 | L27: ='price data'!G25 -> 44.434055 | M27: 0.04199982556 | N27: ='price data'!H25 -> 94.532516 | O27: 0.000905855227 | P27: ='price data'!I25 -> 80.22438 | Q27: 0.03586441224 | R27: ='price data'!J25 -> 91.067711 | S27: 0.1049978586 | T27: ='price data'!K25 -> 37.599453 | U27: 0.08120710349 | V27: ='price data'!L25 -> 109.761978 | W27: 0.001277195326 | X27: ='price data'!M25 -> 1182.219971 | Y27: 0.1153709515 | Z27: ='price data'!N25 -> 105.056473 | AA27: 0.07847339233 | AB27: ='price data'!O25 -> 14.983183 | AC27: -0.06930108514 | AD27: ='price data'!P25 -> 100.385704 | AE27: 0.08174848305 | AF27: ='price data'!Q25 -> 142.000931 | AG27: 0.06485632213 | AH27: ='price data'!R25 -> 105.682114 | AI27: 0.01874414509 | AJ27: ='price data'!S25 -> 70.862 | AK27: 0.1292545548 | AL27: ='price data'!T25 -> 139.356155 | AM27: 0.1054767035 | AN27: ='price data'!U25 -> 46.945644 | AO27: 0.02130929056 | AP27: ='price data'!V25 -> 28.502674 | AQ27: 0.1007598362 | AR27: ='price data'!W25 -> 186.843155 | AS27: 0.05825994653 | AT27: ='price data'!X25 -> 74.078613 | AU27: 0.0428286404 | AV27: ='price data'!Y25 -> 226.024368 | AW27: 0.07141518238 | AX27: ='price data'!Z25 -> 227.597733 | AY27: 0.06230009998 | AZ27: ='price data'!AA25 -> 31.093245 | BA27: 0.02238694494 | BB27: ='price data'!AB25 -> 78.689354 | BC27: -0.06219046126 | BD27: ='price data'!AC25 -> 43.110989 | BE27: 0.03659337389 | BF27: ='price data'!AD25 -> 159.012329 | BG27: -0.005709683807 | BH27: ='price data'!AE25 -> 127.388985 | BI27: -0.01101069727 | BK27: ='price data'!AF25 -> 2823.810059 | BL27: 0.05465739866
A28: ='price data'!A26 -> 2018-02-01 | B28: ='price data'!B26 -> 291.380005 | C28: 0.0750958655 | D28: ='price data'!C26 -> 9.35172 | E28: -0.009039595023 | F28: ='price data'!D26 -> 345.183502 | G28: 0.021882417 | H28: ='price data'!E26 -> 142.680908 | I28: -0.04673343321 | J28: ='price data'!F26 -> 42.78793 | K28: 0.06189191776 | L28: ='price data'!G26 -> 45.495525 | M28: 0.02360778953 | N28: ='price data'!H26 -> 93.062263 | O28: -0.01567509621 | P28: ='price data'!I26 -> 77.180046 | Q28: -0.03868650658 | R28: ='price data'!J26 -> 89.879158 | S28: -0.01313722752 | T28: ='price data'!K26 -> 40.834427 | U28: 0.08253602221 | V28: ='price data'!L26 -> 98.002083 | W28: -0.1133254514 | X28: ='price data'!M26 -> 1103.920044 | Y28: -0.06852648103 | Z28: ='price data'!N26 -> 105.44854 | AA28: 0.003725017735 | AB28: ='price data'!O26 -> 13.074381 | AC28: -0.1362737723 | AD28: ='price data'!P26 -> 84.762833 | AE28: -0.1691626501 | AF28: ='price data'!Q26 -> 135.174133 | AG28: -0.04926979258 | AH28: ='price data'!R26 -> 100.323616 | AI28: -0.05203454291 | AJ28: ='price data'!S26 -> 68.612 | AK28: -0.03226687716 | AL28: ='price data'!T26 -> 129.205582 | AM28: -0.07562812756 | AN28: ='price data'!U26 -> 41.921806 | AO28: -0.1131843007 | AP28: ='price data'!V26 -> 25.460888 | AQ28: -0.1128544367 | AR28: ='price data'!W26 -> 169.516708 | AS28: -0.09731802736 | AT28: ='price data'!X26 -> 64.269341 | AU28: -0.1420441614 | AV28: ='price data'!Y26 -> 215.886765 | AW28: -0.04588878236 | AX28: ='price data'!Z26 -> 213.97821 | AY28: -0.06170555434 | AZ28: ='price data'!AA26 -> 30.480442 | BA28: -0.019905361 | BB28: ='price data'!AB26 -> 72.107834 | BC28: -0.08734518005 | BD28: ='price data'!AC26 -> 39.152279 | BE28: -0.09631929706 | BF28: ='price data'!AD26 -> 146.56189 | BG28: -0.08153394351 | BH28: ='price data'!AE26 -> 119.7285 | BI28: -0.06201859997 | BK28: ='price data'!AF26 -> 2713.830078 | BL28: -0.03972610779
A29: ='price data'!A27 -> 2018-03-01 | B29: ='price data'!B27 -> 295.350006 | C29: 0.01353283968 | D29: ='price data'!C27 -> 9.765981 | E29: 0.04334473651 | F29: ='price data'!D27 -> 314.009766 | G29: -0.09465207815 | H29: ='price data'!E27 -> 135.991135 | I29: -0.04802102457 | J29: ='price data'!F27 -> 40.468391 | K29: -0.05573485322 | L29: ='price data'!G27 -> 48.396866 | M29: 0.06182109009 | N29: ='price data'!H27 -> 89.025192 | O29: -0.04434937791 | P29: ='price data'!I27 -> 81.110527 | Q29: 0.04967180329 | R29: ='price data'!J27 -> 87.893845 | S29: -0.02233629974 | T29: ='price data'!K27 -> 39.110947 | U29: -0.0431231224 | V29: ='price data'!L27 -> 100.852516 | W29: 0.02867047848 | X29: ='price data'!M27 -> 1037.140015 | Y29: -0.0624005819 | Z29: ='price data'!N27 -> 100.399796 | AA29: -0.04906288602 | AB29: ='price data'!O27 -> 12.59399 | AC29: -0.03743495054 | AD29: ='price data'!P27 -> 83.783455 | AE29: -0.011621603 | AF29: ='price data'!Q27 -> 134.402649 | AG29: -0.005723683623 | AH29: ='price data'!R27 -> 97.678398 | AI29: -0.02672069172 | AJ29: ='price data'!S27 -> 53.226002 | AK29: -0.2539204102 | AL29: ='price data'!T27 -> 129.0755 | AM29: -0.001007290275 | AN29: ='price data'!U27 -> 41.99205 | AO29: 0.001674193506 | AP29: ='price data'!V27 -> 22.575785 | AQ29: -0.1202655991 | AR29: ='price data'!W27 -> 165.768661 | AS29: -0.02235828629 | AT29: ='price data'!X27 -> 63.957886 | AU29: -0.004857870201 | AV29: ='price data'!Y27 -> 204.279114 | AW29: -0.05526676953 | AX29: ='price data'!Z27 -> 200.626221 | AY29: -0.06443060756 | AZ29: ='price data'!AA27 -> 30.0681 | BA29: -0.01362042292 | BB29: ='price data'!AB27 -> 72.805779 | BC29: 0.009632640885 | BD29: ='price data'!AC27 -> 39.34251 | BE29: 0.004846980923 | BF29: ='price data'!AD27 -> 146.217453 | BG29: -0.002352878829 | BH29: ='price data'!AE27 -> 118.890167 | BI29: -0.007026578933 | BK29: ='price data'!AF27 -> 2640.870117 | BL29: -0.02725249739
A30: ='price data'!A28 -> 2018-04-01 | B30: ='price data'!B28 -> 312.459991 | C30: 0.05631531811 | D30: ='price data'!C28 -> 9.907006 | E30: 0.01433716351 | F30: ='price data'!D28 -> 319.449463 | G30: 0.0171749987 | H30: ='price data'!E28 -> 133.204498 | I30: -0.02070417348 | J30: ='price data'!F28 -> 39.860565 | K30: -0.01513371096 | L30: ='price data'!G28 -> 47.969398 | M30: -0.008871793635 | N30: ='price data'!H28 -> 94.245712 | O30: 0.05698594341 | P30: ='price data'!I28 -> 82.987511 | Q30: 0.02287737118 | R30: ='price data'!J28 -> 90.060593 | S30: 0.02435291986 | T30: ='price data'!K28 -> 40.387596 | U30: 0.03212030589 | V30: ='price data'!L28 -> 110.642387 | W30: 0.09264404957 | X30: ='price data'!M28 -> 1018.580017 | Y30: -0.01805742225 | Z30: ='price data'!N28 -> 99.313354 | AA30: -0.010880132 | AB30: ='price data'!O28 -> 13.14521 | AC30: 0.04283771767 | AD30: ='price data'!P28 -> 83.799828 | AE30: 0.0001954013522 | AF30: ='price data'!Q28 -> 126.98304 | AG30: -0.05678660348 | AH30: ='price data'!R28 -> 97.571426 | AI30: -0.001095745015 | AJ30: ='price data'!S28 -> 58.779999 | AK30: 0.09925460764 | AL30: ='price data'!T28 -> 122.964539 | AM30: -0.04850149148 | AN30: ='price data'!U28 -> 43.335587 | AO30: 0.03149385348 | AP30: ='price data'!V28 -> 23.754553 | AQ30: 0.05089634569 | AR30: ='price data'!W28 -> 172.849838 | AS30: 0.04183002119 | AT30: ='price data'!X28 -> 66.649574 | AU30: 0.04122381949 | AV30: ='price data'!Y28 -> 226.408783 | AW30: 0.1028548752 | AX30: ='price data'!Z28 -> 177.659119 | AY30: -0.1215769274 | AZ30: ='price data'!AA28 -> 31.016991 | BA30: 0.031070342 | BB30: ='price data'!AB28 -> 66.432526 | BC30: -0.09160854798 | BD30: ='price data'!AC28 -> 39.488754 | BE30: 0.003710308838 | BF30: ='price data'!AD28 -> 156.558731 | BG30: 0.06833629978 | BH30: ='price data'!AE28 -> 117.350105 | BI30: -0.01303828347 | BK30: ='price data'!AF28 -> 2648.050049 | BL30: 0.002715085948
A31: ='price data'!A29 -> 2018-05-01 | B31: ='price data'!B29 -> 351.600006 | C31: 0.1180177507 | D31: ='price data'!C29 -> 10.316831 | E31: 0.04053445563 | F31: ='price data'!D29 -> 337.262634 | G31: 0.05426287018 | H31: ='price data'!E29 -> 140.876816 | I31: 0.05600033683 | J31: ='price data'!F29 -> 45.072868 | K31: 0.1228929797 | L31: ='price data'!G29 -> 51.296219 | M31: 0.06705377983 | N31: ='price data'!H29 -> 94.168419 | O31: -0.0008204586771 | P31: ='price data'!I29 -> 77.489944 | Q31: -0.06854195349 | R31: ='price data'!J29 -> 95.183823 | S31: 0.05532730154 | T31: ='price data'!K29 -> 39.259899 | U31: -0.02831909187 | V31: ='price data'!L29 -> 109.926041 | W31: -0.006495476484 | X31: ='price data'!M29 -> 1100 | Y31: 0.07690066263 | Z31: ='price data'!N29 -> 98.192818 | AA31: -0.01134696715 | AB31: ='price data'!O29 -> 13.154553 | AC31: 0.0007105007291 | AD31: ='price data'!P29 -> 78.191704 | AE31: -0.06926740001 | AF31: ='price data'!Q29 -> 123.785683 | AG31: -0.02550182687 | AH31: ='price data'!R29 -> 96.735069 | AI31: -0.008608689742 | AJ31: ='price data'!S29 -> 56.945999 | AK31: -0.03169821116 | AL31: ='price data'!T29 -> 120.086639 | AM31: -0.02368253905 | AN31: ='price data'!U29 -> 42.387047 | AO31: -0.02213134785 | AP31: ='price data'!V29 -> 22.94356 | AQ31: -0.03473693026 | AR31: ='price data'!W29 -> 174.486694 | AS31: 0.009425257448 | AT31: ='price data'!X29 -> 69.641289 | AU31: 0.0439089692 | AV31: ='price data'!Y29 -> 231.30278 | AW31: 0.02138544844 | AX31: ='price data'!Z29 -> 180.254669 | AY31: 0.01450402632 | AZ31: ='price data'!AA29 -> 30.44088 | BA31: -0.0187487092 | BB31: ='price data'!AB29 -> 67.816521 | BC31: 0.02061905189 | BD31: ='price data'!AC29 -> 39.296841 | BE31: -0.004871788544 | BF31: ='price data'!AD29 -> 149.611588 | BG31: -0.0453886951 | BH31: ='price data'!AE29 -> 110.976532 | BI31: -0.05584306152 | BK31: ='price data'!AF29 -> 2705.27002 | BL31: 0.02137819129
A32: ='price data'!A30 -> 2018-06-01 | B32: ='price data'!B30 -> 391.429993 | C32: 0.1073124992 | D32: ='price data'!C30 -> 9.888079 | E32: -0.04244674909 | F32: ='price data'!D30 -> 322.91983 | G32: -0.04345786813 | H32: ='price data'!E30 -> 125.816345 | I32: -0.1130625989 | J32: ='price data'!F30 -> 44.820538 | K32: -0.005613997154 | L32: ='price data'!G30 -> 46.461086 | M32: -0.09900194374 | N32: ='price data'!H30 -> 93.881042 | O32: -0.003056400398 | P32: ='price data'!I30 -> 74.849098 | Q32: -0.03467411308 | R32: ='price data'!J30 -> 95.37394 | S32: 0.001995374632 | T32: ='price data'!K30 -> 39.55405 | U32: 0.007464474742 | V32: ='price data'!L30 -> 112.784714 | W32: 0.02567303058 | X32: ='price data'!M30 -> 1129.189941 | Y32: 0.02619032948 | Z32: ='price data'!N30 -> 95.614342 | AA32: -0.0266102465 | AB32: ='price data'!O30 -> 12.715445 | AC32: -0.03395053814 | AD32: ='price data'!P30 -> 81.64904 | AE32: 0.04326650688 | AF32: ='price data'!Q30 -> 123.733826 | AG32: -0.0004190134424 | AH32: ='price data'!R30 -> 101.928246 | AI32: 0.05229310073 | AJ32: ='price data'!S30 -> 68.589996 | AK32: 0.1860432604 | AL32: ='price data'!T30 -> 114.312164 | AM32: -0.0492804871 | AN32: ='price data'!U30 -> 44.734482 | AO32: 0.05390179335 | AP32: ='price data'!V30 -> 26.965971 | AQ32: 0.1615384507 | AR32: ='price data'!W30 -> 183.505493 | AS32: 0.05039611507 | AT32: ='price data'!X30 -> 71.637413 | AU32: 0.02825984122 | AV32: ='price data'!Y30 -> 234.970932 | AW32: 0.01573422469 | AX32: ='price data'!Z30 -> 181.018188 | AY32: 0.004226833663 | AZ32: ='price data'!AA30 -> 31.037464 | BA32: 0.01940854904 | BB32: ='price data'!AB30 -> 72.348747 | BC32: 0.06469229651 | BD32: ='price data'!AC30 -> 40.082783 | BE32: 0.01980275653 | BF32: ='price data'!AD30 -> 146.507355 | BG32: -0.02096689046 | BH32: ='price data'!AE30 -> 113.407158 | BI32: 0.02166575546 | BK32: ='price data'!AF30 -> 2718.370117 | BL32: 0.004830749144
A33: ='price data'!A31 -> 2018-07-01 | B33: ='price data'!B31 -> 337.450012 | C33: -0.1483892953 | D33: ='price data'!C31 -> 8.968049 | E33: -0.09766174054 | F33: ='price data'!D31 -> 342.929688 | G33: 0.06012134682 | H33: ='price data'!E31 -> 133.35585 | I33: 0.0581978549 | J33: ='price data'!F31 -> 46.07476 | K33: 0.02759882277 | L33: ='price data'!G31 -> 44.95631 | M33: -0.03292397275 | N33: ='price data'!H31 -> 95.337143 | O33: 0.01539101269 | P33: ='price data'!I31 -> 75.872978 | Q33: 0.01358653991 | R33: ='price data'!J31 -> 102.598785 | S33: 0.07302071504 | T33: ='price data'!K31 -> 38.873837 | U33: -0.01734663734 | V33: ='price data'!L31 -> 112.641983 | W33: -0.001266318683 | X33: ='price data'!M31 -> 1227.219971 | Y33: 0.08325091585 | Z33: ='price data'!N31 -> 105.478577 | AA33: 0.09818504096 | AB33: ='price data'!O31 -> 12.847156 | AC33: 0.01030506759 | AD33: ='price data'!P31 -> 85.061806 | AE33: 0.04094805983 | AF33: ='price data'!Q31 -> 128.366089 | AG33: 0.0367535581 | AH33: ='price data'!R31 -> 110.43766 | AI33: 0.08018210372 | AJ33: ='price data'!S31 -> 59.627998 | AK33: -0.1400214643 | AL33: ='price data'!T31 -> 122.331841 | AM33: 0.06780437357 | AN33: ='price data'!U31 -> 45.91708 | AO33: 0.02609254751 | AP33: ='price data'!V31 -> 27.48728 | AQ33: 0.01914761443 | AR33: ='price data'!W31 -> 185.781677 | AS33: 0.01232760307 | AT33: ='price data'!X31 -> 70.581001 | AU33: -0.01485646479 | AV33: ='price data'!Y31 -> 243.375717 | AW33: 0.03514459688 | AX33: ='price data'!Z31 -> 195.373062 | AY33: 0.0763133569 | AZ33: ='price data'!AA31 -> 34.160027 | BA33: 0.09586116837 | BB33: ='price data'!AB31 -> 74.962425 | BC33: 0.03548885366 | BD33: ='price data'!AC31 -> 42.993759 | BE33: 0.07010807513 | BF33: ='price data'!AD31 -> 148.237778 | BG33: 0.01174196068 | BH33: ='price data'!AE31 -> 123.856239 | BI33: 0.08813701913 | BK33: ='price data'!AF31 -> 2816.290039 | BL33: 0.03538795078
A34: ='price data'!A32 -> 2018-08-01 | B34: ='price data'!B32 -> 367.679993 | C34: 0.08579558887 | D34: ='price data'!C32 -> 8.586881 | E34: -0.04343257619 | F34: ='price data'!D32 -> 329.926666 | G34: -0.03865502938 | H34: ='price data'!E32 -> 129.554886 | I34: -0.02891649772 | J34: ='price data'!F32 -> 55.115868 | K34: 0.1791723655 | L34: ='price data'!G32 -> 45.26474 | M34: 0.006837233695 | N34: ='price data'!H32 -> 101.890129 | O34: 0.06647558316 | P34: ='price data'!I32 -> 83.14547 | Q34: 0.09153112437 | R34: ='price data'!J32 -> 108.643684 | S34: 0.05724748284 | T34: ='price data'!K32 -> 44.253407 | U34: 0.1296109092 | V34: ='price data'!L32 -> 105.674904 | W34: -0.06384705901 | X34: ='price data'!M32 -> 1231.800049 | Y34: 0.003725128921 | Z34: ='price data'!N32 -> 105.710426 | AA34: 0.002195654981 | AB34: ='price data'!O32 -> 12.196787 | AC34: -0.05194990749 | AD34: ='price data'!P32 -> 91.382088 | AE34: 0.07167136384 | AF34: ='price data'!Q32 -> 129.738922 | AG34: 0.01063788681 | AH34: ='price data'!R32 -> 109.815689 | AI34: -0.005647792927 | AJ34: ='price data'!S32 -> 60.332001 | AK34: 0.01173743061 | AL34: ='price data'!T32 -> 123.704247 | AM34: 0.01115625147 | AN34: ='price data'!U32 -> 48.905018 | AO34: 0.06304284766 | AP34: ='price data'!V32 -> 29.856874 | AQ34: 0.08269174587 | AR34: ='price data'!W32 -> 188.838455 | AS34: 0.01631970939 | AT34: ='price data'!X32 -> 69.420662 | AU34: -0.01657645409 | AV34: ='price data'!Y32 -> 258.023254 | AW34: 0.05844330288 | AX34: ='price data'!Z32 -> 194.084763 | AY34: -0.006615882986 | AZ34: ='price data'!AA32 -> 35.520264 | BA34: 0.03904719121 | BB34: ='price data'!AB32 -> 77.578728 | BC34: 0.03430627791 | BD34: ='price data'!AC32 -> 41.094398 | BE34: -0.04518315512 | BF34: ='price data'!AD32 -> 152.650864 | BG34: 0.02933578651 | BH34: ='price data'!AE32 -> 125.884377 | BI34: 0.01624231268 | BK34: ='price data'!AF32 -> 2901.52002 | BL34: 0.02981431471
A35: ='price data'!A33 -> 2018-09-01 | B35: ='price data'!B33 -> 374.130005 | C35: 0.01739036834 | D35: ='price data'!C33 -> 8.37855 | E35: -0.02456070494 | F35: ='price data'!D33 -> 359.712952 | G35: 0.08643595231 | H35: ='price data'!E33 -> 142.281754 | I35: 0.09370465334 | J35: ='price data'!F33 -> 54.849937 | K35: -0.004836622046 | L35: ='price data'!G33 -> 44.468044 | M35: -0.01775754411 | N35: ='price data'!H33 -> 102.380424 | O35: 0.004800456398 | P35: ='price data'!I33 -> 87.365768 | Q35: 0.04951181116 | R35: ='price data'!J33 -> 111.042427 | S35: 0.02183878011 | T35: ='price data'!K33 -> 45.06863 | U35: 0.01825407624 | V35: ='price data'!L33 -> 110.128448 | W35: 0.04127995563 | X35: ='price data'!M33 -> 1207.079956 | Y35: -0.02027237055 | Z35: ='price data'!N33 -> 104.105125 | AA35: -0.01530231975 | AB35: ='price data'!O33 -> 10.641553 | AC35: -0.1364061245 | AD35: ='price data'!P33 -> 90.043152 | AE35: -0.01476046342 | AF35: ='price data'!Q33 -> 135.375305 | AG35: 0.04252681949 | AH35: ='price data'!R33 -> 114.638885 | AI35: 0.04298365144 | AJ35: ='price data'!S33 -> 52.953999 | AK35: -0.1304390662 | AL35: ='price data'!T33 -> 121.92765 | AM35: -0.01446577584 | AN35: ='price data'!U33 -> 48.023529 | AO35: -0.0181889305 | AP35: ='price data'!V33 -> 27.721386 | AQ35: -0.07421092501 | AR35: ='price data'!W33 -> 195.838058 | AS35: 0.0363961689 | AT35: ='price data'!X33 -> 74.379715 | AU35: 0.06899871027 | AV35: ='price data'!Y33 -> 255.697342 | AW35: -0.009055225394 | AX35: ='price data'!Z33 -> 195.191162 | AY35: 0.005684409994 | AZ35: ='price data'!AA33 -> 38.022812 | BA35: 0.06808294487 | BB35: ='price data'!AB33 -> 77.840584 | BC35: 0.00336967452 | BD35: ='price data'!AC33 -> 42.588066 | BE35: 0.03570226267 | BF35: ='price data'!AD33 -> 158.39473 | BG35: 0.03693682945 | BH35: ='price data'!AE33 -> 129.997437 | BI35: 0.03215089207 | BK35: ='price data'!AF33 -> 2913.97998 | BL35: 0.004285092964
A36: ='price data'!A34 -> 2018-10-01 | B36: ='price data'!B34 -> 301.779999 | C36: -0.2149050722 | D36: ='price data'!C34 -> 8.650288 | E36: 0.03191774669 | F36: ='price data'!D34 -> 343.231323 | G36: -0.04690172691 | H36: ='price data'!E34 -> 113.19841 | I36: -0.2286671551 | J36: ='price data'!F34 -> 53.178249 | K36: -0.03095157877 | L36: ='price data'!G34 -> 44.082512 | M36: -0.00870766833 | N36: ='price data'!H34 -> 98.765549 | O36: -0.03594667284 | P36: ='price data'!I34 -> 86.885262 | Q36: -0.005515114808 | R36: ='price data'!J34 -> 103.702377 | S36: -0.06838731665 | T36: ='price data'!K34 -> 42.382111 | U36: -0.06146007625 | V36: ='price data'!L34 -> 100.554794 | W36: -0.09094460079 | X36: ='price data'!M34 -> 1090.579956 | Y36: -0.101494559 | Z36: ='price data'!N34 -> 100.580826 | AA36: -0.03443956284 | AB36: ='price data'!O34 -> 9.610641 | AC36: -0.1018955098 | AD36: ='price data'!P34 -> 96.150841 | AE36: 0.06562919666 | AF36: ='price data'!Q34 -> 103.342171 | AG36: -0.2700054274 | AH36: ='price data'!R34 -> 112.570404 | AI36: -0.01820821814 | AJ36: ='price data'!S34 -> 67.463997 | AK36: 0.2421704845 | AL36: ='price data'!T34 -> 118.309586 | AM36: -0.03012303705 | AN36: ='price data'!U34 -> 51.35162 | AO36: 0.06700540577 | AP36: ='price data'!V34 -> 28.340382 | AQ36: 0.02208354028 | AR36: ='price data'!W34 -> 166.275665 | AS36: -0.1636410395 | AT36: ='price data'!X34 -> 69.708008 | AU36: -0.06486805325 | AV36: ='price data'!Y34 -> 252.03717 | AW36: -0.01441791061 | AX36: ='price data'!Z34 -> 176.247299 | AY36: -0.1020912796 | AZ36: ='price data'!AA34 -> 37.151402 | BA36: -0.02318478605 | BB36: ='price data'!AB34 -> 82.937691 | BC36: 0.06342667461 | BD36: ='price data'!AC34 -> 44.521786 | BE36: 0.04440456922 | BF36: ='price data'!AD34 -> 167.493759 | BG36: 0.05585588224 | BH36: ='price data'!AE34 -> 131.709808 | BI36: 0.01308634339 | BK36: ='price data'!AF34 -> 2711.73999 | BL36: -0.07192934588
A37: ='price data'!A35 -> 2018-11-01 | B37: ='price data'!B35 -> 286.130005 | C37: =LN(B37/B36) -> -0.0532520013 | D37: ='price data'!C35 -> 8.676593 | E37: =LN(D37/D36) -> 0.003036324911 | F37: ='price data'!D35 -> 335.396851 | G37: =LN(F37/F36) -> -0.02309017038 | H37: ='price data'!E35 -> 127.394539 | I37: =LN(H37/H36) -> 0.1181467575 | J37: ='price data'!F35 -> 43.391079 | K37: =LN(J37/J36) -> -0.2033955924 | L37: ='price data'!G35 -> 46.367504 | M37: =LN(L37/L36) -> 0.05053571853 | N37: ='price data'!H35 -> 108.326942 | O37: =LN(N37/N36) -> 0.09240504538 | P37: ='price data'!I35 -> 88.624695 | Q37: =LN(P37/P36) -> 0.01982212273 | R37: ='price data'!J35 -> 107.663681 | S37: =LN(R37/R36) -> 0.03748726666 | T37: ='price data'!K35 -> 44.645859 | U37: =LN(T37/T36) -> 0.05203519663 | V37: ='price data'!L35 -> 107.120354 | W37: =LN(V37/V36) -> 0.06325021323 | X37: ='price data'!M35 -> 1109.650024 | Y37: =LN(X37/X36) -> 0.01733504745 | Z37: ='price data'!N35 -> 103.301208 | AA37: =LN(Z37/Z36) -> 0.02668742707 | AB37: ='price data'!O35 -> 7.136614 | AC37: =LN(AB37/AB36) -> -0.2976324879 | AD37: ='price data'!P35 -> 93.62915 | AE37: =LN(AD37/AD36) -> -0.02657645212 | AF37: ='price data'!Q35 -> 111.256447 | AG37: =LN(AF37/AF36) -> 0.07379233897 | AH37: ='price data'!R35 -> 113.217415 | AI37: =LN(AH37/AH36) -> 0.005731157454 | AJ37: ='price data'!S35 -> 70.096001 | AK37: =LN(AJ37/AJ36) -> 0.03827166753 | AL37: ='price data'!T35 -> 123.263977 | AM37: =LN(AL37/AL36) -> 0.04102341117 | AN37: ='price data'!U35 -> 54.839993 | AO37: =LN(AN37/AN36) -> 0.06572324297 | AP37: ='price data'!V35 -> 28.245152 | AQ37: =LN(AP37/AP36) -> -0.003365881107 | AR37: ='price data'!W35 -> 170.47319 | AS37: =LN(AR37/AR36) -> 0.0249309974 | AT37: ='price data'!X35 -> 69.550537 | AU37: =LN(AT37/AT36) -> -0.002261564159 | AV37: ='price data'!Y35 -> 271.334106 | AW37: =LN(AV37/AV36) -> 0.07377434836 | AX37: ='price data'!Z35 -> 192.606628 | AY37: =LN(AX37/AX36) -> 0.08876179531 | AZ37: ='price data'!AA35 -> 39.886421 | BA37: =LN(AZ37/AZ36) -> 0.07103443081 | BB37: ='price data'!AB35 -> 89.171227 | BC37: =LN(BB37/BB36) -> 0.07246880526 | BD37: ='price data'!AC35 -> 46.86504 | BE37: =LN(BD37/BD36) -> 0.05129333931 | BF37: ='price data'!AD35 -> 178.48642 | BG37: =LN(BF37/BF36) -> 0.06356642902 | BH37: ='price data'!AE35 -> 138.211044 | BI37: =LN(BH37/BH36) -> 0.04818074305 | BK37: ='price data'!AF35 -> 2760.169922 | BL37: =LN(BK37/BK36) -> 0.01770175219
A38: ='price data'!A36 -> 2018-12-01 | B38: ='price data'!B36 -> 267.660004 | C38: -0.06672873716 | D38: ='price data'!C36 -> 7.053765 | E38: -0.2070674233 | F38: ='price data'!D36 -> 313.372223 | G38: -0.0679227657 | H38: ='price data'!E36 -> 119.319115 | I38: -0.06548733464 | J38: ='price data'!F36 -> 38.46114 | K38: -0.1206054861 | L38: ='price data'!G36 -> 44.407246 | M38: -0.04319621473 | N38: ='price data'!H36 -> 91.972237 | O38: -0.1636671352 | P38: ='price data'!I36 -> 88.7033 | Q38: 0.0008865493026 | R38: ='price data'!J36 -> 99.040863 | S38: -0.08347978097 | T38: ='price data'!K36 -> 40.411636 | U38: -0.09964379616 | V38: ='price data'!L36 -> 98.936569 | W38: -0.07947407847 | X38: ='price data'!M36 -> 1044.959961 | Y38: -0.06006610206 | Z38: ='price data'!N36 -> 90.693993 | AA38: -0.1301579446 | AB38: ='price data'!O36 -> 7.203222 | AC38: 0.009289991747 | AD38: ='price data'!P36 -> 89.31443 | AE38: -0.04717870165 | AF38: ='price data'!Q36 -> 103.062599 | AG38: -0.07650130903 | AH38: ='price data'!R36 -> 107.49234 | AI38: -0.05189040748 | AJ38: ='price data'!S36 -> 66.559998 | AK38: -0.05176197887 | AL38: ='price data'!T36 -> 113.222839 | AM38: -0.08497030677 | AN38: ='price data'!U36 -> 51.129425 | AO38: -0.07005956387 | AP38: ='price data'!V36 -> 26.305548 | AQ38: -0.07114196474 | AR38: ='price data'!W36 -> 163.409027 | AS38: -0.04232161526 | AT38: ='price data'!X36 -> 60.260742 | AU38: -0.1433727925 | AV38: ='price data'!Y36 -> 241.010681 | AW38: -0.118509673 | AX38: ='price data'!Z36 -> 177.712036 | AY38: -0.08048544706 | AZ38: ='price data'!AA36 -> 37.951061 | BA38: -0.04973847887 | BB38: ='price data'!AB36 -> 86.727516 | BC38: -0.02778721661 | BD38: ='price data'!AC36 -> 44.377117 | BE38: -0.05454802801 | BF38: ='price data'!AD36 -> 169.164978 | BG38: -0.05363807996 | BH38: ='price data'!AE36 -> 122.190071 | BI38: -0.1232040299 | BK38: ='price data'!AF36 -> 2506.850098 | BL38: -0.09626521977
A39: ='price data'!A37 -> 2019-01-01 | B39: ='price data'!B37 -> 339.5 | C39: 0.2377564137 | D39: ='price data'!C37 -> 8.114135 | E39: 0.1400460857 | F39: ='price data'!D37 -> 374.705688 | G39: 0.178749191 | H39: ='price data'!E37 -> 125.037636 | I39: 0.0468132374 | J39: ='price data'!F37 -> 40.582428 | K39: 0.05368678413 | L39: ='price data'!G37 -> 44.587032 | M39: 0.004040400094 | N39: ='price data'!H37 -> 99.093048 | O39: 0.07457252775 | P39: ='price data'!I37 -> 90.691216 | Q39: 0.022163413 | R39: ='price data'!J37 -> 101.829651 | S39: 0.02776880635 | T39: ='price data'!K37 -> 44.104931 | U39: 0.08745382696 | V39: ='price data'!L37 -> 104.265808 | W39: 0.05246455706 | X39: ='price data'!M37 -> 1125.890015 | Y39: 0.07459527748 | Z39: ='price data'!N37 -> 96.156807 | AA39: 0.05848913956 | AB39: ='price data'!O37 -> 9.681033 | AC39: 0.2956401845 | AD39: ='price data'!P37 -> 92.385506 | AE39: 0.0338070399 | AF39: ='price data'!Q37 -> 121.876251 | AG39: 0.167669633 | AH39: ='price data'!R37 -> 110.173546 | AI39: 0.02463722424 | AJ39: ='price data'!S37 -> 61.403999 | AK39: -0.08062880314 | AL39: ='price data'!T37 -> 119.430542 | AM39: 0.05337706052 | AN39: ='price data'!U37 -> 50.074467 | AO39: -0.02084892572 | AP39: ='price data'!V37 -> 27.099501 | AQ39: 0.02973544692 | AR39: ='price data'!W37 -> 174.545776 | AS39: 0.06593060819 | AT39: ='price data'!X37 -> 64.758865 | AU39: 0.07198975547 | AV39: ='price data'!Y37 -> 261.40451 | AW39: 0.08122780228 | AX39: ='price data'!Z37 -> 186.814972 | AY39: 0.04995420748 | AZ39: ='price data'!AA37 -> 36.907734 | BA39: -0.02787633871 | BB39: ='price data'!AB37 -> 91.0205 | BC39: 0.04831355219 | BD39: ='price data'!AC37 -> 45.108147 | BE39: 0.01633891951 | BF39: ='price data'!AD37 -> 170.317719 | BG39: 0.006791188126 | BH39: ='price data'!AE37 -> 126.005859 | BI39: 0.03075061448 | BK39: ='price data'!AF37 -> 2704.100098 | BL39: 0.07574215198
A40: ='price data'!A38 -> 2019-02-01 | B40: ='price data'!B38 -> 358.100006 | C40: 0.05333834676 | D40: ='price data'!C38 -> 8.227353 | E40: 0.01385673221 | F40: ='price data'!D38 -> 427.507721 | G40: 0.1318314632 | H40: ='price data'!E38 -> 129.792297 | I40: 0.03732067738 | J40: ='price data'!F38 -> 42.218506 | K40: 0.03952349068 | L40: ='price data'!G38 -> 50.113102 | M40: 0.1168394365 | N40: ='price data'!H38 -> 104.381508 | O40: 0.05199324581 | P40: ='price data'!I38 -> 91.193016 | Q40: 0.005517809517 | R40: ='price data'!J38 -> 109.240402 | S40: 0.07024964767 | T40: ='price data'!K38 -> 48.65704 | U40: 0.09822491499 | V40: ='price data'!L38 -> 108.749283 | W40: 0.04210159217 | X40: ='price data'!M38 -> 1126.550049 | Y40: 0.000586061338 | Z40: ='price data'!N38 -> 97.743164 | AA40: 0.01636299776 | AB40: ='price data'!O38 -> 10.296197 | AC40: 0.06160599328 | AD40: ='price data'!P38 -> 95.431915 | AE40: 0.03244295642 | AF40: ='price data'!Q38 -> 125.240044 | AG40: 0.0272260539 | AH40: ='price data'!R38 -> 111.477608 | AI40: 0.01176693217 | AJ40: ='price data'!S38 -> 63.976002 | AK40: 0.04103308097 | AL40: ='price data'!T38 -> 126.441879 | AM40: 0.05704778415 | AN40: ='price data'!U38 -> 52.306309 | AO40: 0.04360575731 | AP40: ='price data'!V38 -> 28.056063 | AQ40: 0.03468944391 | AR40: ='price data'!W38 -> 176.076981 | AS40: 0.008734257567 | AT40: ='price data'!X38 -> 69.84024 | AU40: 0.07553974555 | AV40: ='price data'!Y38 -> 234.335312 | AW40: -0.1093160074 | AX40: ='price data'!Z38 -> 193.427628 | AY40: 0.03478475453 | AZ40: ='price data'!AA38 -> 38.019394 | BA40: 0.02967527537 | BB40: ='price data'!AB38 -> 93.718414 | BC40: 0.02920993488 | BD40: ='price data'!AC38 -> 42.493324 | BE40: -0.05971589197 | BF40: ='price data'!AD38 -> 175.138214 | BG40: 0.02790982843 | BH40: ='price data'!AE38 -> 129.376602 | BI40: 0.02639914068 | BK40: ='price data'!AF38 -> 2784.48999 | BL40: 0.02929555315
A41: ='price data'!A39 -> 2019-03-01 | B41: ='price data'!B39 -> 356.559998 | C41: -0.00430977073 | D41: ='price data'!C39 -> 8.236733 | E41: 0.001139449954 | F41: ='price data'!D39 -> 372.486572 | G41: -0.1377713602 | H41: ='price data'!E39 -> 128.043991 | I41: -0.0135615728 | J41: ='price data'!F39 -> 46.513416 | K41: 0.09688213139 | L41: ='price data'!G39 -> 51.13541 | M41: 0.02019472135 | N41: ='price data'!H39 -> 105.892883 | O41: 0.01437551212 | P41: ='price data'!I39 -> 96.749252 | Q41: 0.05914428541 | R41: ='price data'!J39 -> 115.494392 | S41: 0.0556709981 | T41: ='price data'!K39 -> 50.743553 | U41: 0.04198807012 | V41: ='price data'!L39 -> 113.149323 | W41: 0.03966331201 | X41: ='price data'!M39 -> 1176.890015 | Y41: 0.04371547005 | Z41: ='price data'!N39 -> 94.81163 | AA41: -0.03045118185 | AB41: ='price data'!O39 -> 9.899809 | AC41: -0.03925913973 | AD41: ='price data'!P39 -> 94.024399 | AE41: -0.01485874887 | AF41: ='price data'!Q39 -> 129.423477 | AG41: 0.0328575475 | AH41: ='price data'!R39 -> 109.689461 | AI41: -0.01617045406 | AJ41: ='price data'!S39 -> 55.972 | AK41: -0.1336564786 | AL41: ='price data'!T39 -> 130.485046 | AM41: 0.03147588212 | AN41: ='price data'!U39 -> 54.337177 | AO41: 0.0380916572 | AP41: ='price data'!V39 -> 23.645819 | AQ41: -0.1710184455 | AR41: ='price data'!W39 -> 182.496552 | AS41: 0.03580998824 | AT41: ='price data'!X39 -> 72.197174 | AU41: 0.03319055591 | AV41: ='price data'!Y39 -> 239.211227 | AW41: 0.02059390967 | AX41: ='price data'!Z39 -> 195.13121 | AY41: 0.008768777077 | AZ41: ='price data'!AA39 -> 37.247612 | BA41: -0.02050856257 | BB41: ='price data'!AB39 -> 98.948776 | BC41: 0.05430761134 | BD41: ='price data'!AC39 -> 43.917889 | BE41: 0.03297475014 | BF41: ='price data'!AD39 -> 182.063171 | BG41: 0.03877826377 | BH41: ='price data'!AE39 -> 133.236984 | BI41: 0.02940183067 | BK41: ='price data'!AF39 -> 2834.399902 | BL41: 0.01776551085
A42: ='price data'!A40 -> 2019-04-01 | B42: ='price data'!B40 -> 370.540009 | C42: 0.03845890238 | D42: ='price data'!C40 -> 9.803402 | E42: 0.1741256836 | F42: ='price data'!D40 -> 368.843903 | G42: -0.009827461409 | H42: ='price data'!E40 -> 131.758011 | I42: 0.02859310556 | J42: ='price data'!F40 -> 49.138439 | K42: 0.0549008131 | L42: ='price data'!G40 -> 48.60244 | M42: -0.05080347681 | N42: ='price data'!H40 -> 113.575684 | O42: 0.07004138864 | P42: ='price data'!I40 -> 101.188805 | Q42: 0.04486552759 | R42: ='price data'!J40 -> 127.891884 | S42: 0.1019632761 | T42: ='price data'!K40 -> 52.585697 | U42: 0.03565958725 | V42: ='price data'!L40 -> 110.283379 | W42: -0.02565516298 | X42: ='price data'!M40 -> 1198.959961 | Y42: 0.01857910311 | Z42: ='price data'!N40 -> 108.691986 | AA42: 0.1366259845 | AB42: ='price data'!O40 -> 10.08886 | AC42: 0.01891638081 | AD42: ='price data'!P40 -> 99.676994 | AE42: 0.05838058566 | AF42: ='price data'!Q40 -> 128.66217 | AG42: -0.005899663286 | AH42: ='price data'!R40 -> 135.316269 | AI42: 0.2099614803 | AJ42: ='price data'!S40 -> 47.737999 | AK42: -0.1591238602 | AL42: ='price data'!T40 -> 137.559875 | AM42: 0.05280064671 | AN42: ='price data'!U40 -> 52.55442 | AO42: -0.03335944781 | AP42: ='price data'!V40 -> 24.780052 | AQ42: 0.04685266183 | AR42: ='price data'!W40 -> 195.171005 | AS42: 0.06714484329 | AT42: ='price data'!X40 -> 71.732529 | AU42: -0.006456577127 | AV42: ='price data'!Y40 -> 226.343781 | AW42: -0.05529195824 | AX42: ='price data'!Z40 -> 177.973434 | AY42: -0.09203791212 | AZ42: ='price data'!AA40 -> 35.616325 | BA42: -0.04478373522 | BB42: ='price data'!AB40 -> 101.259659 | BC42: 0.02308579688 | BD42: ='price data'!AC40 -> 46.381153 | BE42: 0.05457145999 | BF42: ='price data'!AD40 -> 189.416641 | BG42: 0.0395953183 | BH42: ='price data'!AE40 -> 134.580887 | BI42: 0.01003603139 | BK42: ='price data'!AF40 -> 2945.830078 | BL42: 0.0385603975
A43: ='price data'!A41 -> 2019-05-01 | B43: ='price data'!B41 -> 343.279999 | C43: -0.07641498764 | D43: ='price data'!C41 -> 9.074224 | E43: -0.07729160144 | F43: ='price data'!D41 -> 333.608948 | G43: -0.1004040348 | H43: ='price data'!E41 -> 113.912018 | I43: -0.1455406116 | J43: ='price data'!F41 -> 42.869724 | K43: -0.1364757577 | L43: ='price data'!G41 -> 41.936749 | M43: -0.1475112284 | N43: ='price data'!H41 -> 111.527649 | O43: -0.01819690083 | P43: ='price data'!I41 -> 99.211365 | Q43: -0.01973555394 | R43: ='price data'!J41 -> 121.115356 | S43: -0.05444180393 | T43: ='price data'!K41 -> 49.211018 | U43: -0.0663266211 | V43: ='price data'!L41 -> 104.579056 | W43: -0.05310992374 | X43: ='price data'!M41 -> 1106.5 | Y43: -0.08025260132 | Z43: ='price data'!N41 -> 100.001099 | AA43: -0.08333688963 | AB43: ='price data'!O41 -> 9.364683 | AC43: -0.07448635895 | AD43: ='price data'!P41 -> 98.320053 | AE43: -0.01370689377 | AF43: ='price data'!Q41 -> 116.481133 | AG43: -0.09946082061 | AH43: ='price data'!R41 -> 130.445786 | AI43: -0.03665706435 | AJ43: ='price data'!S41 -> 37.032001 | AK43: -0.2539452748 | AL43: ='price data'!T41 -> 139.301529 | AM43: 0.01258158017 | AN43: ='price data'!U41 -> 50.459198 | AO43: -0.04068415485 | AP43: ='price data'!V41 -> 21.925245 | AQ43: -0.122400262 | AR43: ='price data'!W41 -> 181.900894 | AS43: -0.07041412269 | AT43: ='price data'!X41 -> 63.235058 | AU43: -0.1260854642 | AV43: ='price data'!Y41 -> 234.821838 | AW43: 0.03677209209 | AX43: ='price data'!Z41 -> 150.025101 | AY43: -0.1708316719 | AZ43: ='price data'!AA41 -> 36.414433 | BA43: 0.02216110688 | BB43: ='price data'!AB41 -> 98.555542 | BC43: -0.02706783154 | BD43: ='price data'!AC41 -> 46.44733 | BE43: 0.001425791073 | BF43: ='price data'!AD41 -> 190.087753 | BG43: 0.003536784871 | BH43: ='price data'!AE41 -> 125.002029 | BI43: -0.07383543944 | BK43: ='price data'!AF41 -> 2752.060059 | BL43: -0.06804089389
A44: ='price data'!A42 -> 2019-06-01 | B44: ='price data'!B42 -> 367.320007 | C44: 0.06768698403 | D44: ='price data'!C42 -> 9.750978 | E44: 0.07192972082 | F44: ='price data'!D42 -> 357.526581 | G44: 0.06924021915 | H44: ='price data'!E42 -> 129.580719 | I44: 0.1288776212 | J44: ='price data'!F42 -> 48.65168 | K44: 0.1265204979 | L44: ='price data'!G42 -> 45.862999 | M44: 0.089496163 | N44: ='price data'!H42 -> 120.015465 | O44: 0.07334807622 | P44: ='price data'!I42 -> 107.725616 | Q44: 0.08233482749 | R44: ='price data'!J42 -> 131.667801 | S44: 0.08353864457 | T44: ='price data'!K42 -> 51.764736 | U44: 0.05059160372 | V44: ='price data'!L42 -> 115.431351 | W44: 0.09873268748 | X44: ='price data'!M42 -> 1082.800049 | Y44: -0.0216515565 | Z44: ='price data'!N42 -> 105.512695 | AA44: 0.0536501015 | AB44: ='price data'!O42 -> 10.416225 | AC44: 0.1064192007 | AD44: ='price data'!P42 -> 107.660606 | AE44: 0.09075573763 | AF44: ='price data'!Q42 -> 127.990768 | AG44: 0.09422882493 | AH44: ='price data'!R42 -> 137.954025 | AI44: 0.05596276998 | AJ44: ='price data'!S42 -> 44.692001 | AK44: 0.1880121063 | AL44: ='price data'!T42 -> 143.081436 | AM44: 0.02677309365 | AN44: ='price data'!U42 -> 53.040188 | AO44: 0.04988484106 | AP44: ='price data'!V42 -> 20.983616 | AQ44: -0.04389676991 | AR44: ='price data'!W42 -> 199.262207 | AS44: 0.09115958024 | AT44: ='price data'!X42 -> 69.255989 | AU44: 0.09095076254 | AV44: ='price data'!Y42 -> 236.968048 | AW44: 0.009098223038 | AX44: ='price data'!Z42 -> 164.180618 | AY44: 0.09016453098 | AZ44: ='price data'!AA42 -> 38.330063 | BA44: 0.05126931597 | BB44: ='price data'!AB42 -> 105.010353 | BC44: 0.06343867787 | BD44: ='price data'!AC42 -> 48.139591 | BE44: 0.03578595382 | BF44: ='price data'!AD42 -> 200.256149 | BG44: 0.05211146866 | BH44: ='price data'!AE42 -> 133.659256 | BI44: 0.06696372653 | BK44: ='price data'!AF42 -> 2941.76001 | BL44: 0.0666583015
A45: ='price data'!A43 -> 2019-07-01 | B45: ='price data'!B43 -> 322.98999 | C45: -0.1286120898 | D45: ='price data'!C43 -> 9.083755 | E45: -0.07087993429 | F45: ='price data'!D43 -> 335.10321 | G45: -0.06477113789 | H45: ='price data'!E43 -> 125.188156 | I45: -0.03448614615 | J45: ='price data'!F43 -> 52.368397 | K45: 0.07361695829 | L45: ='price data'!G43 -> 48.430641 | M45: 0.05447402195 | N45: ='price data'!H43 -> 120.919662 | O45: 0.007505765192 | P45: ='price data'!I43 -> 109.52639 | Q45: 0.01657812304 | R45: ='price data'!J43 -> 133.938263 | S45: 0.01709687852 | T45: ='price data'!K43 -> 52.398438 | U45: 0.01216763649 | V45: ='price data'!L43 -> 114.197632 | W45: -0.01074542817 | X45: ='price data'!M43 -> 1218.199951 | Y45: 0.1178239952 | Z45: ='price data'!N43 -> 109.476494 | AA45: 0.03687858212 | AB45: ='price data'!O43 -> 10.376601 | AC45: -0.003811319151 | AD45: ='price data'!P43 -> 107.553413 | AE45: -0.0009961526611 | AF45: ='price data'!Q43 -> 137.587784 | AG45: 0.07230400617 | AH45: ='price data'!R43 -> 141.28334 | AI45: 0.0238469001 | AJ45: ='price data'!S43 -> 48.321999 | AK45: 0.07809238574 | AL45: ='price data'!T43 -> 141.082718 | AM45: -0.01406757984 | AN45: ='price data'!U43 -> 51.313339 | AO45: -0.0330991525 | AP45: ='price data'!V43 -> 20.452023 | AQ45: -0.02566014094 | AR45: ='price data'!W43 -> 206.178848 | AS45: 0.03412240577 | AT45: ='price data'!X43 -> 67.20443 | AU45: -0.03007045711 | AV45: ='price data'!Y43 -> 242.894653 | AW45: 0.02470250911 | AX45: ='price data'!Z43 -> 165.487686 | AY45: 0.007929636141 | AZ45: ='price data'!AA43 -> 34.3661 | BA45: -0.1091639096 | BB45: ='price data'!AB43 -> 113.045334 | BC45: 0.0737299788 | BD45: ='price data'!AC43 -> 50.144634 | BE45: 0.04080657341 | BF45: ='price data'!AD43 -> 203.207062 | BG45: 0.01462817694 | BH45: ='price data'!AE43 -> 124.964874 | BI45: -0.06726100589 | BK45: ='price data'!AF43 -> 2980.379883 | BL45: 0.01304272482
A46: ='price data'!A44 -> 2019-08-01 | B46: ='price data'!B44 -> 293.75 | C46: -0.09489226657 | D46: ='price data'!C44 -> 8.871069 | E46: -0.02369234572 | F46: ='price data'!D44 -> 357.605164 | G46: 0.06499090998 | H46: ='price data'!E44 -> 114.012474 | I46: -0.09350999009 | J46: ='price data'!F44 -> 51.311405 | K46: -0.02039025154 | L46: ='price data'!G44 -> 45.422287 | M46: -0.06412980425 | N46: ='price data'!H44 -> 117.396614 | O46: -0.02956830926 | P46: ='price data'!I44 -> 113.673058 | Q46: 0.03716089099 | R46: ='price data'!J44 -> 135.501053 | S46: 0.0116004416 | T46: ='price data'!K44 -> 44.553249 | U46: -0.1621917012 | V46: ='price data'!L44 -> 109.197838 | W46: -0.04476929688 | X46: ='price data'!M44 -> 1190.530029 | Y46: -0.02297570871 | Z46: ='price data'!N44 -> 104.415825 | AA46: -0.04732861512 | AB46: ='price data'!O44 -> 8.192054 | AC46: -0.2363887074 | AD46: ='price data'!P44 -> 111.334061 | AE46: 0.03454765093 | AF46: ='price data'!Q44 -> 125.791084 | AG46: -0.08963967514 | AH46: ='price data'!R44 -> 136.442535 | AI46: -0.0348638406 | AJ46: ='price data'!S44 -> 45.122002 | AK46: -0.06851694603 | AL46: ='price data'!T44 -> 141.409897 | AM46: 0.002316373094 | AN46: ='price data'!U44 -> 54.564812 | AO46: 0.06143846826 | AP46: ='price data'!V44 -> 22.887705 | AQ46: 0.112518065 | AR46: ='price data'!W44 -> 219.898987 | AS46: 0.06442430461 | AT46: ='price data'!X44 -> 61.890255 | AU46: -0.08237643202 | AV46: ='price data'!Y44 -> 228.253265 | AW46: -0.06217199873 | AX46: ='price data'!Z44 -> 153.174622 | AY46: -0.07731819637 | AZ46: ='price data'!AA44 -> 31.455067 | BA46: -0.08851053033 | BB46: ='price data'!AB44 -> 115.888344 | BC46: 0.02483825173 | BD46: ='price data'!AC44 -> 52.440826 | BE46: 0.04477390043 | BF46: ='price data'!AD44 -> 210.198547 | BG46: 0.03382707692 | BH46: ='price data'!AE44 -> 123.179932 | BI46: -0.01438654159 | BK46: ='price data'!AF44 -> 2926.459961 | BL46: -0.01825728178
A47: ='price data'!A45 -> 2019-09-01 | B47: ='price data'!B45 -> 267.619995 | C47: -0.09316102026 | D47: ='price data'!C45 -> 8.861395 | E47: -0.001091106229 | F47: ='price data'!D45 -> 376.025269 | G47: 0.05022686201 | H47: ='price data'!E45 -> 121.016098 | I47: 0.05961571461 | J47: ='price data'!F45 -> 55.264339 | K47: 0.07421478898 | L47: ='price data'!G45 -> 49.702877 | M47: 0.09005993107 | N47: ='price data'!H45 -> 115.358238 | O47: -0.01751566592 | P47: ='price data'!I45 -> 110.812012 | Q47: -0.02549123578 | R47: ='price data'!J45 -> 137.106079 | S47: 0.01177551398 | T47: ='price data'!K45 -> 47.027901 | U47: 0.05405598332 | V47: ='price data'!L45 -> 111.145065 | W47: 0.01767497538 | X47: ='price data'!M45 -> 1221.140015 | Y47: 0.02538625047 | Z47: ='price data'!N45 -> 111.857796 | AA47: 0.06884714158 | AB47: ='price data'!O45 -> 8.877208 | AC47: 0.08032243308 | AD47: ='price data'!P45 -> 116.210098 | AE47: 0.04286450232 | AF47: ='price data'!Q45 -> 136.560715 | AG47: 0.08214684692 | AH47: ='price data'!R45 -> 129.543869 | AI47: -0.05188395644 | AJ47: ='price data'!S45 -> 48.174 | AK47: 0.06544947966 | AL47: ='price data'!T45 -> 143.074554 | AM47: 0.0117031071 | AN47: ='price data'!U45 -> 56.628822 | AO47: 0.03712887209 | AP47: ='price data'!V45 -> 25.091618 | AQ47: 0.09193397933 | AR47: ='price data'!W45 -> 223.864548 | AS47: 0.01787288161 | AT47: ='price data'!X45 -> 64.608772 | AU47: 0.04298745509 | AV47: ='price data'!Y45 -> 211.98291 | AW47: -0.07395016565 | AX47: ='price data'!Z45 -> 157.137833 | AY47: 0.02554474656 | AZ47: ='price data'!AA45 -> 32.088718 | BA47: 0.01994442114 | BB47: ='price data'!AB45 -> 119.888481 | BC47: 0.03393480986 | BD47: ='price data'!AC45 -> 51.86916 | BE47: -0.01096101621 | BF47: ='price data'!AD45 -> 208.149628 | BG47: -0.009795359488 | BH47: ='price data'!AE45 -> 125.089134 | BI47: 0.01538040697 | BK47: ='price data'!AF45 -> 2976.73999 | BL47: 0.01703525049
A48: ='price data'!A46 -> 2019-10-01 | B48: ='price data'!B46 -> 287.410004 | C48: 0.07134173647 | D48: ='price data'!C46 -> 8.309977 | E48: -0.06424736032 | F48: ='price data'!D46 -> 335.939117 | G48: -0.1127264018 | H48: ='price data'!E46 -> 132.024536 | I48: 0.08706420603 | J48: ='price data'!F46 -> 61.381241 | K48: 0.1049764312 | L48: ='price data'!G46 -> 54.525593 | M48: 0.09260736902 | N48: ='price data'!H46 -> 114.382942 | O48: -0.008490440059 | P48: ='price data'!I46 -> 99.362518 | Q48: -0.1090602199 | R48: ='price data'!J46 -> 141.385986 | S48: 0.03073871416 | T48: ='price data'!K46 -> 45.219501 | U48: -0.03921263203 | V48: ='price data'!L46 -> 108.839699 | W48: -0.02096009158 | X48: ='price data'!M46 -> 1258.800049 | Y48: 0.03037406418 | Z48: ='price data'!N46 -> 118.729507 | AA48: 0.05961946939 | AB48: ='price data'!O46 -> 9.920617 | AC48: 0.1111280238 | AD48: ='price data'!P46 -> 114.819672 | AE48: -0.01203691445 | AF48: ='price data'!Q46 -> 125.582901 | AG48: -0.08380320803 | AH48: ='price data'!R46 -> 129.146255 | AI48: -0.0030740587 | AJ48: ='price data'!S46 -> 62.984001 | AK48: 0.2680612853 | AL48: ='price data'!T46 -> 126.790619 | AM48: -0.1208287944 | AN48: ='price data'!U46 -> 56.732021 | AO48: 0.00182071738 | AP48: ='price data'!V46 -> 23.982056 | AQ48: -0.0452279621 | AR48: ='price data'!W46 -> 227.716705 | AS48: 0.01706116193 | AT48: ='price data'!X46 -> 61.827137 | AU48: -0.04400781293 | AV48: ='price data'!Y46 -> 247.656418 | AW48: 0.1555367161 | AX48: ='price data'!Z46 -> 157.701797 | AY48: 0.003582551556 | AZ48: ='price data'!AA46 -> 34.267857 | BA48: 0.06570329692 | BB48: ='price data'!AB46 -> 120.013786 | BC48: 0.001044633825 | BD48: ='price data'!AC46 -> 52.238796 | BE48: 0.007101043329 | BF48: ='price data'!AD46 -> 190.689911 | BG48: -0.08760858035 | BH48: ='price data'!AE46 -> 127.660904 | BI48: 0.02035100593 | BK48: ='price data'!AF46 -> 3037.560059 | BL48: 0.02022584237
A49: ='price data'!A47 -> 2019-11-01 | B49: ='price data'!B47 -> 314.660004 | C49: 0.09058292186 | D49: ='price data'!C47 -> 8.908496 | E49: 0.06954858702 | F49: ='price data'!D47 -> 361.902222 | G49: 0.07444412623 | H49: ='price data'!E47 -> 139.753998 | I49: 0.05689593575 | J49: ='price data'!F47 -> 65.943619 | K49: 0.07169585207 | L49: ='price data'!G47 -> 55.991699 | M49: 0.02653325983 | N49: ='price data'!H47 -> 117.600861 | O49: 0.02774439743 | P49: ='price data'!I47 -> 98.346519 | Q49: -0.01027780985 | R49: ='price data'!J47 -> 149.285172 | S49: 0.05436474316 | T49: ='price data'!K47 -> 43.452198 | U49: -0.03986699454 | V49: ='price data'!L47 -> 109.767456 | W49: 0.008487943316 | X49: ='price data'!M47 -> 1304.089966 | Y49: 0.03534652832 | Z49: ='price data'!N47 -> 126.233727 | AA49: 0.06128730941 | AB49: ='price data'!O47 -> 11.202942 | AC49: 0.1215613054 | AD49: ='price data'!P47 -> 116.611572 | AE49: 0.01548568618 | AF49: ='price data'!Q47 -> 126.259041 | AG49: 0.005369571241 | AH49: ='price data'!R47 -> 150.677261 | AI49: 0.1541946832 | AJ49: ='price data'!S47 -> 65.987999 | AK49: 0.0465921504 | AL49: ='price data'!T47 -> 132.266235 | AM49: 0.04227976651 | AN49: ='price data'!U47 -> 57.104301 | AO49: 0.006540642224 | AP49: ='price data'!V47 -> 26.609961 | AQ49: 0.1039797353 | AR49: ='price data'!W47 -> 214.058334 | AS49: -0.06185376779 | AT49: ='price data'!X47 -> 62.339535 | AU49: 0.008253437101 | AV49: ='price data'!Y47 -> 274.284149 | AW49: 0.1021222349 | AX49: ='price data'!Z47 -> 162.27063 | AY49: 0.028559608 | AZ49: ='price data'!AA47 -> 34.401817 | BA49: 0.003901581648 | BB49: ='price data'!AB47 -> 118.403801 | BC49: -0.01350579454 | BD49: ='price data'!AC47 -> 51.250259 | BE49: -0.01910476557 | BF49: ='price data'!AD47 -> 188.537735 | BG49: -0.01135043359 | BH49: ='price data'!AE47 -> 132.930176 | BI49: 0.04044643677 | BK49: ='price data'!AF47 -> 3140.97998 | BL49: 0.03348026579
A50: ='price data'!A48 -> 2019-12-01 | B50: ='price data'!B48 -> 323.570007 | C50: 0.02792279195 | D50: ='price data'!C48 -> 9.144482 | E50: 0.02614520913 | F50: ='price data'!D48 -> 323.833313 | G50: -0.111145153 | H50: ='price data'!E48 -> 142.602585 | I50: 0.02017791559 | J50: ='price data'!F48 -> 72.675339 | K50: 0.09720199167 | L50: ='price data'!G48 -> 58.045586 | M50: 0.03602521975 | N50: ='price data'!H48 -> 121.879204 | O50: 0.03573406622 | P50: ='price data'!I48 -> 98.828346 | Q50: 0.004887316231 | R50: ='price data'!J48 -> 156.04689 | S50: 0.04429815621 | T50: ='price data'!K48 -> 45.993546 | U50: 0.05683964498 | V50: ='price data'!L48 -> 114.047806 | W50: 0.03825361967 | X50: ='price data'!M48 -> 1339.390015 | Y50: 0.02670884418 | Z50: ='price data'!N48 -> 133.553284 | AA50: 0.0563653645 | AB50: ='price data'!O48 -> 11.093596 | AC50: -0.009808417489 | AD50: ='price data'!P48 -> 116.366768 | AE50: -0.002101518022 | AF50: ='price data'!Q48 -> 127.360703 | AG50: 0.008687564395 | AH50: ='price data'!R48 -> 143.768646 | AI50: -0.04693482249 | AJ50: ='price data'!S48 -> 83.666 | AK50: 0.2373597901 | AL50: ='price data'!T48 -> 132.488739 | AM50: 0.001680830007 | AN50: ='price data'!U48 -> 58.203922 | AO50: 0.01907330296 | AP50: ='price data'!V48 -> 28.383726 | AQ50: 0.06453033338 | AR50: ='price data'!W48 -> 211.990662 | AS50: -0.009706340129 | AT50: ='price data'!X48 -> 64.619324 | AU50: 0.03591768397 | AV50: ='price data'!Y48 -> 288.112549 | AW50: 0.04918658975 | AX50: ='price data'!Z48 -> 170.086777 | AY50: 0.04704326279 | AZ50: ='price data'!AA48 -> 35.329433 | BA50: 0.02660702981 | BB50: ='price data'!AB48 -> 121.158745 | BC50: 0.02300080293 | BD50: ='price data'!AC48 -> 53.518559 | BE50: 0.04330781928 | BF50: ='price data'!AD48 -> 192.79982 | BG50: 0.02235427604 | BH50: ='price data'!AE48 -> 142.009354 | BI50: 0.06606893079 | BK50: ='price data'!AF48 -> 3230.780029 | BL50: 0.02818875636
A51: ='price data'!A49 -> 2020-01-01 | B51: ='price data'!B49 -> 345.089996 | C51: 0.06438974551 | D51: ='price data'!C49 -> 8.672508 | E51: -0.05299261495 | F51: ='price data'!D49 -> 316.387573 | G51: -0.02326095847 | H51: ='price data'!E49 -> 126.834023 | I51: -0.1171823092 | J51: ='price data'!F49 -> 76.600517 | K51: 0.05260171503 | L51: ='price data'!G49 -> 62.002583 | M51: 0.06594737811 | N51: ='price data'!H49 -> 127.146385 | O51: 0.04230863739 | P51: ='price data'!I49 -> 103.773186 | Q51: 0.04882314722 | R51: ='price data'!J49 -> 168.445557 | S51: 0.07645605472 | T51: ='price data'!K49 -> 44.08514 | U51: -0.04237831808 | V51: ='price data'!L49 -> 101.394745 | W51: -0.117596446 | X51: ='price data'!M49 -> 1432.780029 | Y51: 0.06740233559 | Z51: ='price data'!N49 -> 126.808548 | AA51: -0.05182207631 | AB51: ='price data'!O49 -> 12.38714 | AC51: 0.1102908328 | AD51: ='price data'!P49 -> 112.610161 | AE51: -0.03281504483 | AF51: ='price data'!Q49 -> 136.567856 | AG51: 0.06979836279 | AH51: ='price data'!R49 -> 138.309998 | AI51: -0.03870785439 | AJ51: ='price data'!S49 -> 130.113998 | AK51: 0.4415782916 | AL51: ='price data'!T49 -> 128.106369 | AM51: -0.0336367265 | AN51: ='price data'!U49 -> 56.345947 | AO51: -0.03244242835 | AP51: ='price data'!V49 -> 26.298271 | AQ51: -0.07631275718 | AR51: ='price data'!W49 -> 222.842484 | AS51: 0.04992294557 | AT51: ='price data'!X49 -> 57.525826 | AU51: -0.1162795044 | AV51: ='price data'!Y49 -> 268.038788 | AW51: -0.07221949755 | AX51: ='price data'!Z49 -> 152.964325 | AY51: -0.1061040355 | AZ51: ='price data'!AA49 -> 33.580097 | BA51: -0.05078287229 | BB51: ='price data'!AB49 -> 120.887123 | BC51: -0.002244385465 | BD51: ='price data'!AC49 -> 56.46764 | BE51: 0.05363923977 | BF51: ='price data'!AD49 -> 208.761581 | BG51: 0.07954039147 | BH51: ='price data'!AE49 -> 144.929947 | BI51: 0.02035757287 | BK51: ='price data'!AF49 -> 3225.52002 | BL51: -0.001629419365
A52: ='price data'!A50 -> 2020-02-01 | B52: ='price data'!B50 -> 369.029999 | C52: 0.06707269785 | D52: ='price data'!C50 -> 6.96 | E52: -0.219978548 | F52: ='price data'!D50 -> 273.482849 | G52: -0.1457290483 | H52: ='price data'!E50 -> 120.809998 | I52: -0.04866027922 | J52: ='price data'!F50 -> 67.653778 | K52: -0.1242006267 | L52: ='price data'!G50 -> 53.846134 | M52: -0.1410454365 | N52: ='price data'!H50 -> 107.997597 | O52: -0.1632300836 | P52: ='price data'!I50 -> 87.565071 | Q52: -0.1698254281 | R52: ='price data'!J50 -> 160.311722 | S52: -0.04949241139 | T52: ='price data'!K50 -> 38.574295 | U52: -0.1335366422 | V52: ='price data'!L50 -> 88.334763 | W52: -0.1378875433 | X52: ='price data'!M50 -> 1339.25 | Y52: -0.06750687745 | Z52: ='price data'!N50 -> 111.954262 | AA52: -0.1245880401 | AB52: ='price data'!O50 -> 10.825068 | AC52: -0.1347942821 | AD52: ='price data'!P50 -> 105.911972 | AE52: -0.06132365516 | AF52: ='price data'!Q50 -> 123.664551 | AG52: -0.09924893868 | AH52: ='price data'!R50 -> 117.650002 | AI52: -0.161783396 | AJ52: ='price data'!S50 -> 133.598007 | AK52: 0.02642436944 | AL52: ='price data'!T50 -> 116.611633 | AM52: -0.09401188926 | AN52: ='price data'!U50 -> 51.875092 | AO52: -0.08267156039 | AP52: ='price data'!V50 -> 27.54171 | AQ52: 0.0461983873 | AR52: ='price data'!W50 -> 212.818954 | AS52: -0.04602334905 | AT52: ='price data'!X50 -> 47.635681 | AU52: -0.1886519135 | AV52: ='price data'!Y50 -> 250.831955 | AW52: -0.06634848846 | AX52: ='price data'!Z50 -> 143.882492 | AY52: -0.0612077856 | AZ52: ='price data'!AA50 -> 30.443357 | BA52: -0.09806573083 | BB52: ='price data'!AB50 -> 110.490875 | BC52: -0.08992430407 | BD52: ='price data'!AC50 -> 51.720104 | BE52: -0.08782116598 | BF52: ='price data'!AD50 -> 189.443558 | BG52: -0.09710170684 | BH52: ='price data'!AE50 -> 130.920807 | BI52: -0.1016578879 | BK52: ='price data'!AF50 -> 2954.219971 | BL52: -0.08785953695
A53: ='price data'!A51 -> 2020-03-01 | B53: ='price data'!B51 -> 375.5 | C53: 0.01738053237 | D53: ='price data'!C51 -> 4.83 | E53: -0.3653330067 | F53: ='price data'!D51 -> 149.139999 | G53: -0.6063534552 | H53: ='price data'!E51 -> 112.836372 | I53: -0.06828031308 | J53: ='price data'!F51 -> 63.083504 | K53: -0.06994389026 | L53: ='price data'!G51 -> 52.746826 | M53: -0.02062700908 | N53: ='price data'!H51 -> 84.105103 | O53: -0.250041734 | P53: ='price data'!I51 -> 67.537575 | Q53: -0.2596980759 | R53: ='price data'!J51 -> 156.483047 | S53: -0.0241725041 | T53: ='price data'!K51 -> 37.975349 | U53: -0.0156488833 | V53: ='price data'!L51 -> 69.375916 | W53: -0.2415939465 | X53: ='price data'!M51 -> 1161.949951 | Y53: -0.1420101697 | Z53: ='price data'!N51 -> 86.807693 | AA53: -0.2543951661 | AB53: ='price data'!O51 -> 7.899911 | AC53: -0.315013062 | AD53: ='price data'!P51 -> 111.754448 | AE53: 0.05369573957 | AF53: ='price data'!Q51 -> 106.50293 | AG53: -0.1494001695 | AH53: ='price data'!R51 -> 96.599998 | AI53: -0.1971354117 | AJ53: ='price data'!S51 -> 104.800003 | AK53: -0.2427815428 | AL53: ='price data'!T51 -> 96.697815 | AM53: -0.1872582308 | AN53: ='price data'!U51 -> 51.463234 | AO53: -0.007971102236 | AP53: ='price data'!V51 -> 29.655479 | AQ53: 0.0739453147 | AR53: ='price data'!W51 -> 182.406494 | AS53: -0.154204143 | AT53: ='price data'!X51 -> 35.666676 | AU53: -0.2893652738 | AV53: ='price data'!Y51 -> 245.3423 | AW53: -0.02212883462 | AX53: ='price data'!Z51 -> 132.80127 | AY53: -0.08014313842 | AZ53: ='price data'!AA51 -> 29.732828 | BA53: -0.02361605418 | BB53: ='price data'!AB51 -> 107.339012 | BC53: -0.02894077605 | BD53: ='price data'!AC51 -> 42.785843 | BE53: -0.1896392879 | BF53: ='price data'!AD51 -> 162.334625 | BG53: -0.1544313419 | BH53: ='price data'!AE51 -> 128.473511 | BI53: -0.01886987068 | BK53: ='price data'!AF51 -> 2584.590088 | BL53: -0.1336677247
A54: ='price data'!A52 -> 2020-04-01 | B54: ='price data'!B52 -> 419.850006 | C54: 0.1116390477 | D54: ='price data'!C52 -> 5.09 | E54: 0.0524313629 | F54: ='price data'!D52 -> 141.020004 | G54: -0.05598370275 | H54: ='price data'!E52 -> 113.166985 | I54: 0.002925737389 | J54: ='price data'!F52 -> 72.885025 | K54: 0.1444238905 | L54: ='price data'!G52 -> 58.458145 | M54: 0.1028074282 | N54: ='price data'!H52 -> 89.645958 | O54: 0.06380086968 | P54: ='price data'!I52 -> 85.178352 | Q54: 0.2320632074 | R54: ='price data'!J52 -> 177.815781 | S54: 0.1278003979 | T54: ='price data'!K52 -> 40.941113 | U54: 0.07519752729 | V54: ='price data'!L52 -> 88.084251 | W54: 0.2387539786 | X54: ='price data'!M52 -> 1346.699951 | Y54: 0.147557533 | Z54: ='price data'!N52 -> 92.332619 | AA54: 0.06170223426 | AB54: ='price data'!O52 -> 6.772386 | AC54: -0.1539980315 | AD54: ='price data'!P52 -> 120.083237 | AE54: 0.07188110816 | AF54: ='price data'!Q52 -> 120.549057 | AG54: 0.1238842856 | AH54: ='price data'!R52 -> 108.150002 | AI54: 0.1129404504 | AJ54: ='price data'!S52 -> 156.376007 | AK54: 0.4002096079 | AL54: ='price data'!T52 -> 99.159485 | AM54: 0.02513870698 | AN54: ='price data'!U52 -> 55.026295 | AO54: 0.06694351209 | AP54: ='price data'!V52 -> 31.122501 | AQ54: 0.04828416483 | AR54: ='price data'!W52 -> 216.199966 | AS54: 0.1699660679 | AT54: ='price data'!X52 -> 43.651047 | AU54: 0.2020104608 | AV54: ='price data'!Y52 -> 288.980988 | AW54: 0.1637065222 | AX54: ='price data'!Z52 -> 147.792633 | AY54: 0.1069563626 | AZ54: ='price data'!AA52 -> 34.943359 | BA54: 0.1614766811 | BB54: ='price data'!AB52 -> 115.018631 | BC54: 0.06910196163 | BD54: ='price data'!AC52 -> 44.760712 | BE54: 0.04512351353 | BF54: ='price data'!AD52 -> 184.139587 | BG54: 0.1260343037 | BH54: ='price data'!AE52 -> 147.000412 | BI54: 0.1347126465 | BK54: ='price data'!AF52 -> 2912.429932 | BL54: 0.1194208388
A55: ='price data'!A53 -> 2020-05-01 | B55: ='price data'!B53 -> 419.730011 | C55: -0.0002858452998 | D55: ='price data'!C53 -> 5.71 | E55: 0.1149411931 | F55: ='price data'!D53 -> 145.850006 | G55: 0.0336769848 | H55: ='price data'!E53 -> 117.885902 | I55: 0.04085275319 | J55: ='price data'!F53 -> 78.873604 | K55: 0.07896342228 | L55: ='price data'!G53 -> 61.333294 | M55: 0.04801179955 | N55: ='price data'!H53 -> 93.917625 | O55: 0.04654995569 | P55: ='price data'!I53 -> 88.430573 | Q55: 0.03747044122 | R55: ='price data'!J53 -> 181.824356 | S55: 0.022293068 | T55: ='price data'!K53 -> 46.634411 | U55: 0.1302039361 | V55: ='price data'!L53 -> 87.797012 | W55: -0.003266286021 | X55: ='price data'!M53 -> 1433.52002 | Y55: 0.06247585297 | Z55: ='price data'!N53 -> 94.802139 | AA55: 0.02639449127 | AB55: ='price data'!O53 -> 6.54332 | AC55: -0.03440878014 | AD55: ='price data'!P53 -> 122.562943 | AE55: 0.02043957444 | AF55: ='price data'!Q53 -> 119.915405 | AG55: -0.005270246268 | AH55: ='price data'!R53 -> 117.300003 | AI55: 0.08121561034 | AJ55: ='price data'!S53 -> 167 | AK55: 0.065730404 | AL55: ='price data'!T53 -> 104.812592 | AM55: 0.05544440381 | AN55: ='price data'!U53 -> 55.550308 | AO55: 0.009477898732 | AP55: ='price data'!V53 -> 32.11692 | AQ55: 0.03145193166 | AR55: ='price data'!W53 -> 244.376846 | AS55: 0.1225077367 | AT55: ='price data'!X53 -> 42.711712 | AU55: -0.02175409991 | AV55: ='price data'!Y53 -> 301.213318 | AW55: 0.04145781093 | AX55: ='price data'!Z53 -> 152.189835 | AY55: 0.02931849319 | AZ55: ='price data'!AA53 -> 34.788506 | BA55: -0.004441391451 | BB55: ='price data'!AB53 -> 113.870163 | BC55: -0.01003524566 | BD55: ='price data'!AC53 -> 45.531273 | BE55: 0.01706861817 | BF55: ='price data'!AD53 -> 182.922211 | BG55: -0.00663310903 | BH55: ='price data'!AE53 -> 145.736557 | BI55: -0.008634801795 | BK55: ='price data'!AF53 -> 3044.310059 | BL55: 0.04428653296
A56: ='price data'!A54 -> 2020-06-01 | B56: ='price data'!B54 -> 455.040009 | C56: 0.08077367333 | D56: ='price data'!C54 -> 6.08 | E56: 0.06278567231 | F56: ='price data'!D54 -> 183.300003 | G56: 0.2285454338 | H56: ='price data'!E54 -> 124.136917 | I56: 0.05166790133 | J56: ='price data'!F54 -> 90.743469 | K56: 0.1401898818 | L56: ='price data'!G54 -> 58.641346 | M56: -0.04488281671 | N56: ='price data'!H54 -> 94.046043 | O56: 0.001366413215 | P56: ='price data'!I54 -> 86.099846 | Q56: -0.02671013545 | R56: ='price data'!J54 -> 202.489105 | S56: 0.1076449385 | T56: ='price data'!K54 -> 45.483669 | U56: -0.02498536365 | V56: ='price data'!L54 -> 86.686363 | W56: -0.01273088626 | X56: ='price data'!M54 -> 1418.050049 | Y56: -0.01085024909 | Z56: ='price data'!N54 -> 91.635895 | AA56: -0.03396891057 | AB56: ='price data'!O54 -> 6.802264 | AC56: 0.03881081603 | AD56: ='price data'!P54 -> 118.855125 | AE56: -0.03071940397 | AF56: ='price data'!Q54 -> 117.505257 | AG56: -0.02030346284 | AH56: ='price data'!R54 -> 111.510002 | AI56: -0.05062049032 | AJ56: ='price data'!S54 -> 215.962006 | AK56: 0.2571086816 | AL56: ='price data'!T54 -> 111.739349 | AM56: 0.06399500065 | AN56: ='price data'!U54 -> 53.372059 | AO56: -0.0400016913 | AP56: ='price data'!V54 -> 33.485065 | AQ56: 0.04171652446 | AR56: ='price data'!W54 -> 246.373352 | AS56: 0.008136591785 | AT56: ='price data'!X54 -> 42.821705 | AU56: 0.002571931872 | AV56: ='price data'!Y54 -> 291.431458 | AW56: -0.03301386878 | AX56: ='price data'!Z54 -> 153.257187 | AY56: 0.006988814868 | AZ56: ='price data'!AA54 -> 30.084341 | BA56: -0.145282241 | BB56: ='price data'!AB54 -> 117.455627 | BC56: 0.03100174143 | BD56: ='price data'!AC54 -> 43.580494 | BE56: -0.04378974362 | BF56: ='price data'!AD54 -> 182.313461 | BG56: -0.003333467185 | BH56: ='price data'!AE54 -> 138.73616 | BI56: -0.0492265878 | BK56: ='price data'!AF54 -> 3100.290039 | BL56: 0.0182213742
A57: ='price data'!A55 -> 2020-07-01 | B57: ='price data'!B55 -> 488.880005 | C57: =LN(B57/B56) -> 0.07173172386 | D57: ='price data'!C55 -> 6.61 | E57: 0.08357895789 | F57: ='price data'!D55 -> 158 | G57: -0.1485291382 | H57: ='price data'!E55 -> 130.39772 | I57: 0.04920403886 | J57: ='price data'!F55 -> 105.728088 | K57: 0.1528340872 | L57: ='price data'!G55 -> 46.781734 | M57: -0.2259471833 | N57: ='price data'!H55 -> 92.188835 | O57: -0.01994545371 | P57: ='price data'!I55 -> 90.201256 | Q57: 0.04653572877 | R57: ='price data'!J55 -> 203.981583 | S57: 0.007343627727 | T57: ='price data'!K55 -> 45.932259 | U57: 0.009814342217 | V57: ='price data'!L55 -> 81.547157 | W57: -0.0611151155 | X57: ='price data'!M55 -> 1487.949951 | Y57: 0.04811657779 | Z57: ='price data'!N55 -> 94.149399 | AA57: 0.02705980992 | AB57: ='price data'!O55 -> 6.054414 | AC57: -0.1164679051 | AD57: ='price data'!P55 -> 128.400848 | AE57: 0.07725168114 | AF57: ='price data'!Q55 -> 119.6166 | AG57: 0.01780855486 | AH57: ='price data'!R55 -> 116.940002 | AI57: 0.04754670894 | AJ57: ='price data'!S55 -> 286.152008 | AK57: 0.2814206721 | AL57: ='price data'!T55 -> 112.851257 | AM57: 0.009901723892 | AN57: ='price data'!U55 -> 55.647121 | AO57: 0.041742973 | AP57: ='price data'!V55 -> 34.414936 | AQ57: 0.02739113767 | AR57: ='price data'!W55 -> 262.66507 | AS57: 0.06403164603 | AT57: ='price data'!X55 -> 40.293766 | AU57: -0.06084833305 | AV57: ='price data'!Y55 -> 300.456482 | AW57: 0.03049808222 | AX57: ='price data'!Z55 -> 147.833893 | AY57: -0.03602817207 | AZ57: ='price data'!AA55 -> 35.402 | BA57: 0.1627635119 | BB57: ='price data'!AB55 -> 128.801376 | BC57: 0.09221087714 | BD57: ='price data'!AC55 -> 46.496105 | BE57: 0.06475888072 | BF57: ='price data'!AD55 -> 192.008759 | BG57: 0.051813472 | BH57: ='price data'!AE55 -> 143.797073 | BI57: 0.03582909052 | BK57: ='price data'!AF55 -> 3271.120117 | BL57: 0.0536368016
A58: ='price data'!A56 -> 2020-08-01 | B58: ='price data'!B56 -> 529.559998 | C58: 0.07992939848 | D58: ='price data'!C56 -> 6.82 | E58: 0.03127581799 | F58: ='price data'!D56 -> 171.820007 | G58: 0.08385242492 | H58: ='price data'!E56 -> 140.697464 | I58: 0.07602277512 | J58: ='price data'!F56 -> 128.394058 | K58: 0.1942335221 | L58: ='price data'!G56 -> 49.937763 | M58: 0.0652846625 | N58: ='price data'!H56 -> 100.813942 | O58: 0.08943763178 | P58: ='price data'!I56 -> 94.956497 | Q58: 0.05137550882 | R58: ='price data'!J56 -> 224.398651 | S58: 0.09539445169 | T58: ='price data'!K56 -> 41.497593 | U58: -0.1015322551 | V58: ='price data'!L56 -> 81.537437 | W58: -0.0001192019402 | X58: ='price data'!M56 -> 1629.530029 | Y58: 0.09089234671 | Z58: ='price data'!N56 -> 98.559059 | AA58: 0.0457730806 | AB58: ='price data'!O56 -> 6.323721 | AC58: 0.04352020793 | AD58: ='price data'!P56 -> 137.777878 | AE58: 0.07048581309 | AF58: ='price data'!Q56 -> 119.976593 | AG58: 0.00300503755 | AH58: ='price data'!R56 -> 131.869995 | AI58: 0.1201555511 | AJ58: ='price data'!S56 -> 498.320007 | AK58: 0.5547192889 | AL58: ='price data'!T56 -> 114.449043 | AM58: 0.01405904275 | AN58: ='price data'!U56 -> 58.02441 | AO58: 0.04183344175 | AP58: ='price data'!V56 -> 35.295338 | AQ58: 0.02526023103 | AR58: ='price data'!W56 -> 282.00708 | AS58: 0.07105245451 | AT58: ='price data'!X56 -> 38.244602 | AU58: -0.05219434103 | AV58: ='price data'!Y56 -> 310.15152 | AW58: 0.03175802741 | AX58: ='price data'!Z56 -> 160.164032 | AY58: 0.08010919121 | AZ58: ='price data'!AA56 -> 35.106995 | BA58: -0.008367917353 | BB58: ='price data'!AB56 -> 136.741364 | BC58: 0.05981979073 | BD58: ='price data'!AC56 -> 48.750042 | BE58: 0.04733751334 | BF58: ='price data'!AD56 -> 211.023849 | BG58: 0.09443016475 | BH58: ='price data'!AE56 -> 151.344055 | BI58: 0.05115266446 | BK58: ='price data'!AF56 -> 3500.310059 | BL58: 0.06771908318
A59: ='price data'!A57 -> 2020-09-01 | B59: ='price data'!B57 -> 500.029999 | C59: -0.05737837467 | D59: ='price data'!C57 -> 6.66 | E59: -0.0237399873 | F59: ='price data'!D57 -> 165.259995 | G59: -0.03892749693 | H59: ='price data'!E57 -> 147.459946 | I59: 0.04694464657 | J59: ='price data'!F57 -> 115.438042 | K59: -0.1063701598 | L59: ='price data'!G57 -> 51.095947 | M59: 0.0229276889 | N59: ='price data'!H57 -> 99.484184 | O59: -0.01327798281 | P59: ='price data'!I57 -> 90.891327 | Q59: -0.04375427631 | R59: ='price data'!J57 -> 209.780777 | S59: -0.06736109564 | T59: ='price data'!K57 -> 38.716015 | U59: -0.06938208683 | V59: ='price data'!L57 -> 70.955933 | W59: -0.1390032421 | X59: ='price data'!M57 -> 1465.599976 | Y59: -0.1060269489 | Z59: ='price data'!N57 -> 94.702866 | AA59: -0.03991168853 | AB59: ='price data'!O57 -> 6.214003 | AC59: -0.01750250698 | AD59: ='price data'!P57 -> 139.400452 | AE59: 0.01170793211 | AF59: ='price data'!Q57 -> 119.930939 | AG59: -0.0003805966421 | AH59: ='price data'!R57 -> 124.080002 | AI59: -0.06089001592 | AJ59: ='price data'!S57 -> 429.01001 | AK59: -0.149762203 | AL59: ='price data'!T57 -> 106.706673 | AM59: -0.07004598845 | AN59: ='price data'!U57 -> 58.239792 | AO59: 0.003705048376 | AP59: ='price data'!V57 -> 33.719791 | AQ59: -0.04566595222 | AR59: ='price data'!W57 -> 274.755035 | AS59: -0.02605225814 | AT59: ='price data'!X57 -> 33.521252 | AU59: -0.1318228004 | AV59: ='price data'!Y57 -> 309.377472 | AW59: -0.002498828667 | AX59: ='price data'!Z57 -> 158.806213 | AY59: -0.008513817342 | AZ59: ='price data'!AA57 -> 34.094383 | BA59: -0.02926774905 | BB59: ='price data'!AB57 -> 137.393784 | BC59: 0.004759851019 | BD59: ='price data'!AC57 -> 48.59256 | BE59: -0.003235626214 | BF59: ='price data'!AD57 -> 218.193146 | BG59: 0.03340950583 | BH59: ='price data'!AE57 -> 147.852615 | BI59: -0.02333982189 | BK59: ='price data'!AF57 -> 3363 | BL59: -0.0400181201
A60: ='price data'!A58 -> 2020-10-01 | B60: ='price data'!B58 -> 475.73999 | C60: -0.04979662913 | D60: ='price data'!C58 -> 7.73 | E60: 0.148989378 | F60: ='price data'!D58 -> 144.389999 | G60: -0.135001996 | H60: ='price data'!E58 -> 155.270432 | I60: 0.05161173288 | J60: ='price data'!F58 -> 108.510361 | K60: -0.06188829162 | L60: ='price data'!G58 -> 43.69503 | M60: -0.1564708133 | N60: ='price data'!H58 -> 90.543015 | O60: -0.0941736351 | P60: ='price data'!I58 -> 92.912239 | Q60: 0.02199079686 | R60: ='price data'!J58 -> 201.941315 | S60: -0.03808593102 | T60: ='price data'!K58 -> 35.285732 | U60: -0.09277464913 | V60: ='price data'!L58 -> 68.492188 | W60: -0.03533932741 | X60: ='price data'!M58 -> 1616.109985 | Y60: 0.09775731925 | Z60: ='price data'!N58 -> 96.444054 | AA60: 0.0182188252 | AB60: ='price data'!O58 -> 7.41318 | AC60: 0.1764542033 | AD60: ='price data'!P58 -> 138.244675 | AE60: -0.008325618307 | AF60: ='price data'!Q58 -> 110.064018 | AG60: -0.08585389046 | AH60: ='price data'!R58 -> 121.25 | AI60: -0.02307200517 | AJ60: ='price data'!S58 -> 388.040009 | AK60: -0.1003718017 | AL60: ='price data'!T58 -> 119.951439 | AM60: 0.1170032897 | AN60: ='price data'!U58 -> 55.792328 | AO60: -0.04293246356 | AP60: ='price data'!V58 -> 32.029327 | AQ60: -0.05143298316 | AR60: ='price data'!W58 -> 265.263611 | AS60: -0.03515582883 | AT60: ='price data'!X58 -> 31.851534 | AU60: -0.05109408163 | AV60: ='price data'!Y58 -> 304.046112 | AW60: -0.01738274948 | AX60: ='price data'!Z58 -> 158.58812 | AY60: -0.00137427176 | AZ60: ='price data'!AA58 -> 32.961002 | BA60: -0.03380754425 | BB60: ='price data'!AB58 -> 135.525497 | BC60: -0.01369134623 | BD60: ='price data'!AC58 -> 47.6861 | BE60: -0.01883048195 | BF60: ='price data'!AD58 -> 211.741486 | BG60: -0.03001453642 | BH60: ='price data'!AE58 -> 136.163834 | BI60: -0.08235711051 | BK60: ='price data'!AF58 -> 3269.959961 | BL60: -0.02805569227
A61: ='price data'!A59 -> 2020-11-01 | B61: ='price data'!B59 -> 490.700012 | C61: 0.03096150206 | D61: ='price data'!C59 -> 9.08 | E61: 0.16096533 | F61: ='price data'!D59 -> 210.710007 | G61: 0.3779648487 | H61: ='price data'!E59 -> 172.671295 | I61: 0.106221439 | J61: ='price data'!F59 -> 118.667633 | K61: 0.0894809239 | L61: ='price data'!G59 -> 47.711258 | M61: 0.08793302116 | N61: ='price data'!H59 -> 118.175621 | O61: 0.2663467899 | P61: ='price data'!I59 -> 105.326424 | Q61: 0.1254089469 | R61: ='price data'!J59 -> 213.511017 | S61: 0.05571129782 | T61: ='price data'!K59 -> 42.673916 | U61: 0.1901091775 | V61: ='price data'!L59 -> 85.91581 | W61: 0.2266481683 | X61: ='price data'!M59 -> 1754.400024 | Y61: 0.08210491399 | Z61: ='price data'!N59 -> 117.037125 | AA61: 0.1935281032 | AB61: ='price data'!O59 -> 10.170644 | AC61: 0.3162460345 | AD61: ='price data'!P59 -> 152.233536 | AE61: 0.09639064033 | AF61: ='price data'!Q59 -> 121.754494 | AG61: 0.1009444947 | AH61: ='price data'!R59 -> 148.009995 | AI61: 0.1994252755 | AJ61: ='price data'!S59 -> 567.599976 | AK61: 0.3803084527 | AL61: ='price data'!T59 -> 128.835251 | AM61: 0.07144747823 | AN61: ='price data'!U59 -> 59.770138 | AO61: 0.06886980279 | AP61: ='price data'!V59 -> 32.814896 | AQ61: 0.02423060679 | AR61: ='price data'!W59 -> 275.905609 | AS61: 0.03933472081 | AT61: ='price data'!X59 -> 37.231731 | AU61: 0.1560758374 | AV61: ='price data'!Y59 -> 335.134247 | AW61: 0.09735181475 | AX61: ='price data'!Z59 -> 171.248581 | AY61: 0.07680579 | AZ61: ='price data'!AA59 -> 37.511944 | BA61: 0.1293342839 | BB61: ='price data'!AB59 -> 138.037384 | BC61: 0.01836475466 | BD61: ='price data'!AC59 -> 51.198555 | BE61: 0.07107135818 | BF61: ='price data'!AD59 -> 216.155258 | BG61: 0.02063081159 | BH61: ='price data'!AE59 -> 143.68158 | BI61: 0.05374077867 | BK61: ='price data'!AF59 -> 3621.629883 | BL61: 0.1021464279
A62: ='price data'!A60 -> 2020-12-01 | B62: ='price data'!B60 -> 540.72998 | C62: 0.09708707394 | D62: ='price data'!C60 -> 8.79 | E62: -0.03245948092 | F62: ='price data'!D60 -> 214.059998 | G62: 0.01577352646 | H62: ='price data'!E60 -> 181.056686 | I62: 0.0474204063 | J62: ='price data'!F60 -> 132.49202 | K62: 0.1101958318 | L62: ='price data'!G60 -> 49.519421 | M62: 0.03719754924 | N62: ='price data'!H60 -> 120.487518 | O62: 0.01937433092 | P62: ='price data'!I60 -> 108.559998 | Q62: 0.03023866927 | R62: ='price data'!J60 -> 222.419998 | S62: 0.04087904419 | T62: ='price data'!K60 -> 44.389999 | U62: 0.03942632925 | V62: ='price data'!L60 -> 84.449997 | W62: -0.01720825555 | X62: ='price data'!M60 -> 1752.640015 | Y62: -0.00100370063 | Z62: ='price data'!N60 -> 126.161423 | AA62: 0.07507102976 | AB62: ='price data'!O60 -> 10.790073 | AC62: 0.05912101321 | AD62: ='price data'!P60 -> 143.625 | AE62: -0.05821002664 | AF62: ='price data'!Q60 -> 125.879997 | AG62: 0.03332237538 | AH62: ='price data'!R60 -> 181.179993 | AI62: 0.2022111683 | AJ62: ='price data'!S60 -> 705.669983 | AK62: 0.217730779 | AL62: ='price data'!T60 -> 139.487885 | AM62: 0.0794432875 | AN62: ='price data'!U60 -> 58.12772 | AO62: -0.02786351317 | AP62: ='price data'!V60 -> 31.76 | AQ62: -0.03267492226 | AR62: ='price data'!W60 -> 264.179535 | AS62: -0.04342988202 | AT62: ='price data'!X60 -> 41.220001 | AU62: 0.1017622182 | AV62: ='price data'!Y60 -> 349.422821 | AW62: 0.04175152153 | AX62: ='price data'!Z60 -> 174.789993 | AY62: 0.02046902232 | AZ62: ='price data'!AA60 -> 36.413868 | BA62: -0.02970969783 | BB62: ='price data'!AB60 -> 138.305771 | BC62: 0.001942418906 | BD62: ='price data'!AC60 -> 54.84 | BE62: 0.0687085457 | BF62: ='price data'!AD60 -> 214.580002 | BG62: -0.007314297988 | BH62: ='price data'!AE60 -> 157.380005 | BI62: 0.09106369372 | BK62: ='price data'!AF60 -> 3756.070068 | BL62: 0.03644904769
A63: ='price data'!A61 -> 2021-01-01 | B63: ='price data'!B61 -> 532.390015 | C63: -0.01554370984 | D63: ='price data'!C61 -> 10.53 | E63: 0.1806136144 | F63: ='price data'!D61 -> 194.190002 | G63: -0.09741926869 | H63: ='price data'!E61 -> 181.872345 | I63: 0.004494875326 | J63: ='price data'!F61 -> 131.763107 | K63: -0.005516750853 | L63: ='price data'!G61 -> 55.175091 | M63: 0.1081466654 | N63: ='price data'!H61 -> 115.853767 | O63: -0.03921739597 | P63: ='price data'!I61 -> 101.489998 | Q63: -0.06734274535 | R63: ='price data'!J61 -> 231.960007 | S63: 0.04199749579 | T63: ='price data'!K61 -> 44.221367 | U63: -0.003806107753 | V63: ='price data'!L61 -> 85.199997 | W63: 0.008841790894 | X63: ='price data'!M61 -> 1827.359985 | Y63: 0.04174906294 | Z63: ='price data'!N61 -> 127.749977 | AA63: 0.01251282713 | AB63: ='price data'!O61 -> 10.68 | AC63: -0.01025371124 | AD63: ='price data'!P61 -> 140.490005 | AE63: -0.02206938872 | AF63: ='price data'!Q61 -> 119.110001 | AG63: -0.05528160408 | AH63: ='price data'!R61 -> 168.169998 | AI63: -0.07451561296 | AJ63: ='price data'!S61 -> 793.530029 | AK63: 0.117343701 | AL63: ='price data'!T61 -> 136.300003 | AM63: -0.0231193909 | AN63: ='price data'!U61 -> 54.17009 | AO63: -0.07051374741 | AP63: ='price data'!V61 -> 34.5 | AQ63: 0.08275168766 | AR63: ='price data'!W61 -> 270.820007 | AS63: 0.02482549057 | AT63: ='price data'!X61 -> 44.84 | AU63: 0.08417699848 | AV63: ='price data'!Y61 -> 333.579987 | AW63: -0.04640003271 | AX63: ='price data'!Z61 -> 175.660004 | AY63: 0.004965117961 | AZ63: ='price data'!AA61 -> 35.51366 | BA63: -0.02503227989 | BB63: ='price data'!AB61 -> 127.441307 | BC63: -0.08181104457 | BD63: ='price data'!AC61 -> 48.150002 | BE63: -0.1300986749 | BF63: ='price data'!AD61 -> 207.839996 | BG63: -0.03191410485 | BH63: ='price data'!AE61 -> 163.130005 | BI63: 0.03588416472 | BK63: ='price data'!AF61 -> 3714.23999 | BL63: -0.01119913762
A64: ='price data'!A62 -> 2021-02-01 | B64: ='price data'!B62 -> 550.789978 | C64: 0.03397723969 | D64: ='price data'!C62 -> 11.51 | E64: 0.08898789659 | F64: ='price data'!D62 -> 207.929993 | G64: 0.06836437941 | H64: ='price data'!E62 -> 193 | I64: 0.05938514902 | J64: ='price data'!F62 -> 136.555939 | K64: 0.03572867386 | L64: ='price data'!G62 -> 57.828983 | M64: 0.04697848455 | N64: ='price data'!H62 -> 126.279999 | O64: 0.08617288924 | P64: ='price data'!I62 -> 105.339996 | Q64: 0.03723292433 | R64: ='price data'!J62 -> 242.199997 | S64: 0.04319884555 | T64: ='price data'!K62 -> 48.080002 | U64: 0.08365824326 | V64: ='price data'!L62 -> 89.260002 | W64: 0.04655208298 | X64: ='price data'!M62 -> 2088.830078 | Y64: 0.1337318438 | Z64: ='price data'!N62 -> 137.979996 | AA64: 0.07703366908 | AB64: ='price data'!O62 -> 11.4 | AC64: 0.06524052187 | AD64: ='price data'!P62 -> 144.360001 | AE64: 0.02717383925 | AF64: ='price data'!Q62 -> 121.790001 | AG64: 0.02225081402 | AH64: ='price data'!R62 -> 181.160004 | AI64: 0.07440528013 | AJ64: ='price data'!S62 -> 852.22998 | AK64: 0.071365037 | AL64: ='price data'!T62 -> 144.839996 | AM64: 0.06077129657 | AN64: ='price data'!U62 -> 55.32 | AO64: 0.02100559569 | AP64: ='price data'!V62 -> 33.150002 | AQ64: -0.03991654707 | AR64: ='price data'!W62 -> 278.859985 | AS64: 0.02925539057 | AT64: ='price data'!X62 -> 49.950001 | AU64: 0.1079219269 | AV64: ='price data'!Y62 -> 324.51001 | AW64: -0.02756629455 | AX64: ='price data'!Z62 -> 179.009995 | AY64: 0.01889131101 | AZ64: ='price data'!AA62 -> 34.919998 | BA64: -0.0168577375 | BB64: ='price data'!AB62 -> 129.570007 | BC64: 0.01656540831 | BD64: ='price data'!AC62 -> 49.650002 | BE64: 0.03067725099 | BF64: ='price data'!AD62 -> 212.580002 | BG64: 0.02254986384 | BH64: ='price data'!AE62 -> 164.449997 | BI64: 0.008059094794 | BK64: ='price data'!AF62 -> 3886.830078 | BL64: 0.04541985695
A66: Stand Dev | C66: =STDEV(C5:C64) -> 0.09765170538 | E66: =STDEV(E5:E64) -> 0.0909090787 | G66: =STDEV(G5:G64) -> 0.1262524372 | I66: =STDEV(I5:I64) -> 0.07233920332 | K66: =STDEV(K5:K64) -> 0.0846295846 | M66: =STDEV(M5:M64) -> 0.07287800719 | O66: =STDEV(O5:O64) -> 0.07186241552 | Q66: =STDEV(Q5:Q64) -> 0.06902874721 | S66: =STDEV(S5:S64) -> 0.04979030187 | U66: =STDEV(U5:U64) -> 0.06730977183 | W66: =STDEV(W5:W64) -> 0.0778368861 | Y66: =STDEV(Y5:Y64) -> 0.06267933385 | AA66: =STDEV(AA5:AA64) -> 0.07004514226 | AC66: =STDEV(AC5:AC64) -> 0.1104093661 | AE66: =STDEV(AE5:AE64) -> 0.04975304531 | AG66: =STDEV(AG5:AG64) -> 0.07215732366 | AI66: =STDEV(AI5:AI64) -> 0.0744898933 | AK66: =STDEV(AK5:AK64) -> 0.1674462793 | AM66: =STDEV(AM5:AM64) -> 0.05666947988 | AO66: =STDEV(AO5:AO64) -> 0.0491092161 | AQ66: =STDEV(AQ5:AQ64) -> 0.08087946257 | AS66: =STDEV(AS5:AS64) -> 0.05918580773 | AU66: =STDEV(AU5:AU64) -> 0.08168892696 | AW66: =STDEV(AW5:AW64) -> 0.05894154018 | AY66: =STDEV(AY5:AY64) -> 0.0585125444 | BA66: =STDEV(BA5:BA64) -> 0.05856042794 | BC66: =STDEV(BC5:BC64) -> 0.04242948603 | BE66: =STDEV(BE5:BE64) -> 0.04931336135 | BG66: =STDEV(BG5:BG64) -> 0.04841587028 | BI66: =STDEV(BI5:BI64) -> 0.04857870171 | BL66: =STDEV(BL5:BL64) -> 0.04348583614

Sheet Corr. Matrix
A2: Correlation Matrix
C4: _1 | D4: _2 | E4: _3 | F4: _4 | G4: _5 | H4: _6 | I4: _7 | J4: _8 | K4: _9 | L4: _10 | M4: _11 | N4: _12 | O4: _13 | P4: _14 | Q4: _15 | R4: _16 | S4: _17 | T4: _18 | U4: _19 | V4: _20 | W4: _21 | X4: _22 | Y4: _23 | Z4: _24 | AA4: _25 | AB4: _26 | AC4: _27 | AD4: _28 | AE4: _29 | AF4: _30
C5: ='Returns & Stand Dev'!B2 -> NFLX | D5: ='Returns & Stand Dev'!D2 -> F | E5: ='Returns & Stand Dev'!F2 -> BA | F5: ='Returns & Stand Dev'!H2 -> CAT | G5: ='Returns & Stand Dev'!J2 -> AAPL | H5: ='Returns & Stand Dev'!L2 -> INTC | I5: ='Returns & Stand Dev'!N2 -> AXP | J5: ='Returns & Stand Dev'!P2 -> YUM | K5: ='Returns & Stand Dev'!R2 -> MSFT | L5: ='Returns & Stand Dev'!T2 -> CSCO | M5: ='Returns & Stand Dev'!V2 -> CVX | N5: ='Returns & Stand Dev'!X2 -> GOOGL | O5: ='Returns & Stand Dev'!Z2 -> JPM | P5: ='Returns & Stand Dev'!AB2 -> GE | Q5: ='Returns & Stand Dev'!AD2 -> WMT | R5: ='Returns & Stand Dev'!AF2 -> IBM | S5: ='Returns & Stand Dev'!AH2 -> DIS | T5: ='Returns & Stand Dev'!AJ2 -> TSLA | U5: ='Returns & Stand Dev'!AL2 -> TRV | V5: ='Returns & Stand Dev'!AN2 -> VZ | W5: ='Returns & Stand Dev'!AP2 -> KR | X5: ='Returns & Stand Dev'!AR2 -> HD | Y5: ='Returns & Stand Dev'!AT2 -> XOM | Z5: ='Returns & Stand Dev'!AV2 -> UNH | AA5: ='Returns & Stand Dev'!AX2 -> MMM | AB5: ='Returns & Stand Dev'!AZ2 -> PFE | AC5: ='Returns & Stand Dev'!BB2 -> PG | AD5: ='Returns & Stand Dev'!BD2 -> KO | AE5: ='Returns & Stand Dev'!BF2 -> MCD | AF5: ='Returns & Stand Dev'!BH2 -> JNJ
A6: _1 | B6: =C5 -> NFLX | C6: =CORREL(INDIRECT(C$4),INDIRECT($A6)) -> 1 | D6: 0.06565962806 | E6: 0.2294182773 | F6: 0.1449590458 | G6: 0.3719626375 | H6: 0.1547568765 | I6: 0.157441891 | J6: 0.06796011122 | K6: 0.5251251873 | L6: 0.2706149897 | M6: =CORREL(INDIRECT(M$4),INDIRECT($A6)) -> 0.1196333314 | N6: 0.3626066851 | O6: 0.09996565722 | P6: 0.1492543054 | Q6: 0.06082461882 | R6: 0.3225111507 | S6: 0.1485306577 | T6: 0.1811409986 | U6: 0.1339674449 | V6: -0.0897348098 | W6: =CORREL(INDIRECT(W$4),INDIRECT($A6)) -> 0.2145009333 | X6: 0.1885337168 | Y6: 0.1670403193 | Z6: 0.185281502 | AA6: 0.1350614101 | AB6: -0.04474052453 | AC6: -0.1186023535 | AD6: 0.06726438221 | AE6: -0.0600961687 | AF6: 0.05567544522
A7: _2 | B7: =D5 -> F | C7: 0.06565962806 | D7: 1 | E7: 0.4956298171 | F7: 0.3546684957 | G7: 0.335252007 | H7: 0.1896864627 | I7: 0.6490557751 | J7: 0.5069217462 | K7: 0.30810019 | L7: 0.3546310682 | M7: 0.5467742929 | N7: 0.4124372088 | O7: 0.6484485511 | P7: 0.4690372599 | Q7: 0.1517639891 | R7: 0.3353667309 | S7: 0.5091232799 | T7: 0.2167412411 | U7: 0.5699528886 | V7: 0.1475631764 | W7: 0.01481598938 | X7: 0.4481865669 | Y7: 0.6012668707 | Z7: 0.1677236018 | AA7: 0.2926429945 | AB7: 0.1770822398 | AC7: 0.2239388561 | AD7: 0.348121842 | AE7: 0.4364253806 | AF7: 0.2785330762
A8: _3 | B8: =E5 -> BA | C8: 0.2294182773 | D8: 0.4956298171 | E8: 1 | F8: 0.4041312091 | G8: 0.2357024496 | H8: 0.2542481754 | I8: 0.6919596133 | J8: 0.4712482533 | K8: 0.3356333232 | L8: 0.3252058916 | M8: 0.5739764262 | N8: 0.3280590826 | O8: 0.6094022864 | P8: 0.4854785119 | Q8: 0.1329787807 | R8: 0.4224048123 | S8: 0.5159246543 | T8: 0.2504193066 | U8: 0.5477615352 | V8: 0.1893795363 | W8: 0.07576853331 | X8: 0.3890149207 | Y8: 0.5663924549 | Z8: 0.167848073 | AA8: 0.3802446205 | AB8: 0.09013723203 | AC8: 0.1144865233 | AD8: 0.4354753431 | AE8: 0.3905525873 | AF8: 0.1931545791
A9: _4 | B9: =F5 -> CAT | C9: 0.1449590458 | D9: 0.3546684957 | E9: 0.4041312091 | F9: 1 | G9: 0.2531328386 | H9: 0.350660552 | I9: 0.4228567975 | J9: 0.2473361674 | K9: 0.3873694258 | L9: 0.3359065459 | M9: 0.4632293828 | N9: 0.3696222748 | O9: 0.5038987763 | P9: 0.2737541533 | Q9: 0.1773134953 | R9: 0.532938104 | S9: 0.353820507 | T9: 0.09432182561 | U9: 0.3833414369 | V9: 0.1778085487 | W9: 0.002902167509 | X9: 0.4605804011 | Y9: 0.4459755452 | Z9: 0.3682836386 | AA9: 0.6628716972 | AB9: 0.2868491823 | AC9: 0.1015091288 | AD9: 0.1648030875 | AE9: 0.2073360898 | AF9: 0.2920030828
A10: _5 | B10: =G5 -> AAPL | C10: 0.3719626375 | D10: 0.335252007 | E10: 0.2357024496 | F10: 0.2531328386 | G10: 1 | H10: 0.3352910183 | I10: 0.3725996965 | J10: 0.3988051435 | K10: 0.6757159976 | L10: 0.4064237303 | M10: 0.206555583 | N10: 0.5357903526 | O10: 0.3424635171 | P10: 0.3073542671 | Q10: 0.2623258767 | R10: 0.3838302883 | S10: 0.3522928422 | T10: 0.4935353057 | U10: 0.266612477 | V10: 0.206888378 | W10: 0.1092610347 | X10: 0.3507948407 | Y10: 0.3129333993 | Z10: 0.2463612479 | AA10: 0.3740980222 | AB10: 0.1076522249 | AC10: 0.3791884412 | AD10: 0.2892739606 | AE10: 0.2758118359 | AF10: 0.402855456
A11: _6 | B11: =H5 -> INTC | C11: 0.1547568765 | D11: 0.1896864627 | E11: 0.2542481754 | F11: 0.350660552 | G11: 0.3352910183 | H11: 1 | I11: 0.3606779652 | J11: 0.213747021 | K11: 0.4900987465 | L11: 0.4146748652 | M11: 0.3791091861 | N11: 0.3052036439 | O11: 0.2656214311 | P11: 0.1666517135 | Q11: 0.1445768934 | R11: 0.4178016009 | S11: 0.142524038 | T11: 0.2193869596 | U11: 0.1706338286 | V11: 0.2395876948 | W11: 0.01304648624 | X11: 0.2371778948 | Y11: 0.445866982 | Z11: 0.1547848836 | AA11: 0.4824012983 | AB11: 0.06802849835 | AC11: 0.04781705098 | AD11: 0.08215051272 | AE11: 0.1769515599 | AF11: 0.3898078422
A12: _7 | B12: =I5 -> AXP | C12: 0.157441891 | D12: 0.6490557751 | E12: 0.6919596133 | F12: 0.4228567975 | G12: 0.3725996965 | H12: 0.3606779652 | I12: 1 | J12: 0.6142638557 | K12: 0.4953374806 | L12: 0.5788154429 | M12: 0.6864424034 | N12: 0.4431607793 | O12: 0.8057189918 | P12: 0.4301495164 | Q12: 0.2430437008 | R12: 0.6105720344 | S12: 0.6570683541 | T12: 0.3920440693 | U12: 0.5131748662 | V12: 0.3008155034 | W12: -0.04854785292 | X12: 0.5522286738 | Y12: 0.6424478786 | Z12: 0.4454382329 | AA12: 0.4593366487 | AB12: 0.3966242442 | AC12: 0.2508595715 | AD12: 0.5348763678 | AE12: 0.5900291274 | AF12: 0.4690578122
A13: _8 | B13: =J5 -> YUM | C13: 0.06796011122 | D13: 0.5069217462 | E13: 0.4712482533 | F13: 0.2473361674 | G13: 0.3988051435 | H13: 0.213747021 | I13: 0.6142638557 | J13: 1 | K13: 0.4428917127 | L13: 0.3993283919 | M13: 0.5989413371 | N13: 0.5059648475 | O13: 0.4788704758 | P13: 0.2175317683 | Q13: 0.3761291731 | R13: 0.532521875 | S13: 0.5559436013 | T13: 0.3087217293 | U13: 0.597045397 | V13: 0.4092224173 | W13: -0.01261611027 | X13: 0.5767719659 | Y13: 0.5586310962 | Z13: 0.3270291361 | AA13: 0.3830077783 | AB13: 0.3469377363 | AC13: 0.4281130001 | AD13: 0.6315735626 | AE13: 0.7576391288 | AF13: 0.4224949052
A14: _9 | B14: =K5 -> MSFT | C14: 0.5251251873 | D14: 0.30810019 | E14: 0.3356333232 | F14: 0.3873694258 | G14: 0.6757159976 | H14: 0.4900987465 | I14: 0.4953374806 | J14: 0.4428917127 | K14: 1 | L14: 0.407636455 | M14: 0.3664168475 | N14: 0.6714235169 | O14: 0.4063471867 | P14: 0.1506939108 | Q14: 0.3037424078 | R14: 0.5482779078 | S14: 0.401534018 | T14: 0.397826985 | U14: 0.4583340176 | V14: 0.2117271756 | W14: 0.2241195129 | X14: 0.517391172 | Y14: 0.4351208882 | Z14: 0.2791671616 | AA14: 0.4564195825 | AB14: 0.09230093113 | AC14: 0.2013659117 | AD14: 0.3375954306 | AE14: 0.3743585639 | AF14: 0.4540419924
A15: _10 | B15: =L5 -> CSCO | C15: 0.2706149897 | D15: 0.3546310682 | E15: 0.3252058916 | F15: 0.3359065459 | G15: 0.4064237303 | H15: 0.4146748652 | I15: 0.5788154429 | J15: 0.3993283919 | K15: 0.407636455 | L15: 1 | M15: 0.4759109577 | N15: 0.3561840885 | O15: 0.4964936482 | P15: 0.2128632154 | Q15: 0.269612389 | R15: 0.5702681512 | S15: 0.3548132124 | T15: 0.1164076622 | U15: 0.3587431409 | V15: 0.278224278 | W15: 0.0852916067 | X15: 0.3840063141 | Y15: 0.5081549564 | Z15: 0.3039990914 | AA15: 0.4417726524 | AB15: 0.4494917496 | AC15: 0.1957559139 | AD15: 0.1300896591 | AE15: 0.1521539773 | AF15: 0.379667414
A16: _11 | B16: =M5 -> CVX | C16: =CORREL(INDIRECT(C$4),INDIRECT($A16)) -> 0.1196333314 | D16: 0.5467742929 | E16: 0.5739764262 | F16: 0.4632293828 | G16: 0.206555583 | H16: 0.3791091861 | I16: 0.6864424034 | J16: 0.5989413371 | K16: 0.3664168475 | L16: 0.4759109577 | M16: =CORREL(INDIRECT(M$4),INDIRECT($A16)) -> 1 | N16: 0.4186781919 | O16: 0.6337370451 | P16: 0.3677152313 | Q16: 0.2696232925 | R16: 0.5694293959 | S16: 0.5353513957 | T16: 0.2640951133 | U16: 0.5054672595 | V16: 0.4635636048 | W16: =CORREL(INDIRECT(W$4),INDIRECT($A16)) -> 0.05852503586 | X16: 0.5835963389 | Y16: 0.8748716894 | Z16: 0.4700615212 | AA16: 0.5481146014 | AB16: 0.4914644092 | AC16: 0.2517356443 | AD16: 0.4451533201 | AE16: 0.4771254235 | AF16: 0.4851645689
A17: _12 | B17: =N5 -> GOOGL | C17: 0.3626066851 | D17: 0.4124372088 | E17: 0.3280590826 | F17: 0.3696222748 | G17: 0.5357903526 | H17: 0.3052036439 | I17: 0.4431607793 | J17: 0.5059648475 | K17: 0.6714235169 | L17: 0.3561840885 | M17: 0.4186781919 | N17: 1 | O17: 0.4769856638 | P17: 0.3249581879 | Q17: 0.2737516122 | R17: 0.5266250832 | S17: 0.4077202462 | T17: 0.4096896073 | U17: 0.5094172517 | V17: 0.1336613364 | W17: 0.1386510731 | X17: 0.602781385 | Y17: 0.4652937793 | Z17: 0.3032200295 | AA17: 0.5090129232 | AB17: 0.1703192748 | AC17: 0.2625544665 | AD17: 0.4654250859 | AE17: 0.3443169102 | AF17: 0.2948884612
A18: _13 | B18: =O5 -> JPM | C18: 0.09996565722 | D18: 0.6484485511 | E18: 0.6094022864 | F18: 0.5038987763 | G18: 0.3424635171 | H18: 0.2656214311 | I18: 0.8057189918 | J18: 0.4788704758 | K18: 0.4063471867 | L18: 0.4964936482 | M18: 0.6337370451 | N18: 0.4769856638 | O18: 1 | P18: 0.4888444513 | Q18: 0.2270867904 | R18: 0.5511970126 | S18: 0.6986923103 | T18: 0.2698662854 | U18: 0.6127430815 | V18: 0.2153849174 | W18: 0.05136011174 | X18: 0.477380435 | Y18: 0.6689949511 | Z18: 0.4199071438 | AA18: 0.5415810017 | AB18: 0.4016488452 | AC18: 0.162511993 | AD18: 0.4673263987 | AE18: 0.3722881581 | AF18: 0.4268164729
A19: _14 | B19: =P5 -> GE | C19: 0.1492543054 | D19: 0.4690372599 | E19: 0.4854785119 | F19: 0.2737541533 | G19: 0.3073542671 | H19: 0.1666517135 | I19: 0.4301495164 | J19: 0.2175317683 | K19: 0.1506939108 | L19: 0.2128632154 | M19: 0.3677152313 | N19: 0.3249581879 | O19: 0.4888444513 | P19: 1 | Q19: 0.04312987987 | R19: 0.3550755358 | S19: 0.3962264317 | T19: 0.2671074275 | U19: 0.3607245535 | V19: 0.01997170114 | W19: -0.08627633816 | X19: 0.1799020527 | Y19: 0.4108582634 | Z19: 0.1161228537 | AA19: 0.2083230987 | AB19: 0.01605911386 | AC19: 0.05488906007 | AD19: 0.2206247846 | AE19: 0.06673041942 | AF19: 0.08085497558
A20: _15 | B20: =Q5 -> WMT | C20: 0.06082461882 | D20: 0.1517639891 | E20: 0.1329787807 | F20: 0.1773134953 | G20: 0.2623258767 | H20: 0.1445768934 | I20: 0.2430437008 | J20: 0.3761291731 | K20: 0.3037424078 | L20: 0.269612389 | M20: 0.2696232925 | N20: 0.2737516122 | O20: 0.2270867904 | P20: 0.04312987987 | Q20: 1 | R20: 0.1860301412 | S20: 0.2922389646 | T20: 0.1356308616 | U20: 0.3497305303 | V20: 0.6228487914 | W20: 0.4852587712 | X20: 0.3379720747 | Y20: 0.2690483491 | Z20: 0.3097593935 | AA20: 0.3592463121 | AB20: 0.3614426049 | AC20: 0.4039046347 | AD20: 0.3353801026 | AE20: 0.4239201175 | AF20: 0.4544473194
A21: _16 | B21: =R5 -> IBM | C21: 0.3225111507 | D21: 0.3353667309 | E21: 0.4224048123 | F21: 0.532938104 | G21: 0.3838302883 | H21: 0.4178016009 | I21: 0.6105720344 | J21: 0.532521875 | K21: 0.5482779078 | L21: 0.5702681512 | M21: 0.5694293959 | N21: 0.5266250832 | O21: 0.5511970126 | P21: 0.3550755358 | Q21: 0.1860301412 | R21: 1 | S21: 0.4134743672 | T21: 0.2041512647 | U21: 0.4910127923 | V21: 0.2177474159 | W21: -0.02675792114 | X21: 0.637467487 | Y21: 0.5600129807 | Z21: 0.2982598073 | AA21: 0.6239986426 | AB21: 0.3249966701 | AC21: 0.3108343118 | AD21: 0.3778741891 | AE21: 0.3716362499 | AF21: 0.442210572
A22: _17 | B22: =S5 -> DIS | C22: 0.1485306577 | D22: 0.5091232799 | E22: 0.5159246543 | F22: 0.353820507 | G22: 0.3522928422 | H22: 0.142524038 | I22: 0.6570683541 | J22: 0.5559436013 | K22: 0.401534018 | L22: 0.3548132124 | M22: 0.5353513957 | N22: 0.4077202462 | O22: 0.6986923103 | P22: 0.3962264317 | Q22: 0.2922389646 | R22: 0.4134743672 | S22: 1 | T22: 0.3158798499 | U22: 0.5367941899 | V22: 0.257381618 | W22: 0.167845147 | X22: 0.434503698 | Y22: 0.5747358195 | Z22: 0.3889839979 | AA22: 0.3434185474 | AB22: 0.3235732718 | AC22: 0.3113305484 | AD22: 0.5924410246 | AE22: 0.4311883421 | AF22: 0.4425106292
A23: _18 | B23: =T5 -> TSLA | C23: 0.1811409986 | D23: 0.2167412411 | E23: 0.2504193066 | F23: 0.09432182561 | G23: 0.4935353057 | H23: 0.2193869596 | I23: 0.3920440693 | J23: 0.3087217293 | K23: 0.397826985 | L23: 0.1164076622 | M23: 0.2640951133 | N23: 0.4096896073 | O23: 0.2698662854 | P23: 0.2671074275 | Q23: 0.1356308616 | R23: 0.2041512647 | S23: 0.3158798499 | T23: 1 | U23: 0.07576218014 | V23: 0.1718216531 | W23: 0.1415287552 | X23: 0.3458909135 | Y23: 0.2789646186 | Z23: 0.2534037921 | AA23: 0.3017872752 | AB23: 0.201183708 | AC23: 0.2182778269 | AD23: 0.3428946912 | AE23: 0.3852045033 | AF23: 0.3826344479
A24: _19 | B24: =U5 -> TRV | C24: 0.1339674449 | D24: 0.5699528886 | E24: 0.5477615352 | F24: 0.3833414369 | G24: 0.266612477 | H24: 0.1706338286 | I24: 0.5131748662 | J24: 0.597045397 | K24: 0.4583340176 | L24: 0.3587431409 | M24: 0.5054672595 | N24: 0.5094172517 | O24: 0.6127430815 | P24: 0.3607245535 | Q24: 0.3497305303 | R24: 0.4910127923 | S24: 0.5367941899 | T24: 0.07576218014 | U24: 1 | V24: 0.3394412096 | W24: 0.1169472899 | X24: 0.3915185408 | Y24: 0.5986775922 | Z24: 0.2059215193 | AA24: 0.5183429832 | AB24: 0.1289728056 | AC24: 0.2421939423 | AD24: 0.5294228107 | AE24: 0.479442096 | AF24: 0.3426185685
A25: _20 | B25: =V5 -> VZ | C25: -0.0897348098 | D25: 0.1475631764 | E25: 0.1893795363 | F25: 0.1778085487 | G25: 0.206888378 | H25: 0.2395876948 | I25: 0.3008155034 | J25: 0.4092224173 | K25: 0.2117271756 | L25: 0.278224278 | M25: 0.4635636048 | N25: 0.1336613364 | O25: 0.2153849174 | P25: 0.01997170114 | Q25: 0.6228487914 | R25: 0.2177474159 | S25: 0.257381618 | T25: 0.1718216531 | U25: 0.3394412096 | V25: 1 | W25: 0.3889074535 | X25: 0.3168213794 | Y25: 0.387904388 | Z25: 0.338297962 | AA25: 0.3648143818 | AB25: 0.4437693317 | AC25: 0.5578795172 | AD25: 0.4138100169 | AE25: 0.4380171559 | AF25: 0.4940751274
A26: _21 | B26: =W5 -> KR | C26: =CORREL(INDIRECT(C$4),INDIRECT($A26)) -> 0.2145009333 | D26: 0.01481598938 | E26: 0.07576853331 | F26: 0.002902167509 | G26: 0.1092610347 | H26: 0.01304648624 | I26: -0.04854785292 | J26: -0.01261611027 | K26: 0.2241195129 | L26: 0.0852916067 | M26: =CORREL(INDIRECT(M$4),INDIRECT($A26)) -> 0.05852503586 | N26: 0.1386510731 | O26: 0.05136011174 | P26: -0.08627633816 | Q26: 0.4852587712 | R26: -0.02675792114 | S26: 0.167845147 | T26: 0.1415287552 | U26: 0.1169472899 | V26: 0.3889074535 | W26: =CORREL(INDIRECT(W$4),INDIRECT($A26)) -> 1 | X26: 0.1515255394 | Y26: 0.09450729503 | Z26: 0.1340417205 | AA26: 0.1264960603 | AB26: -0.02313606323 | AC26: 0.08086886477 | AD26: -0.01747434145 | AE26: 0.01273552797 | AF26: 0.1206764732
A27: _22 | B27: =X5 -> HD | C27: 0.1885337168 | D27: 0.4481865669 | E27: 0.3890149207 | F27: 0.4605804011 | G27: 0.3507948407 | H27: 0.2371778948 | I27: 0.5522286738 | J27: 0.5767719659 | K27: 0.517391172 | L27: 0.3840063141 | M27: 0.5835963389 | N27: 0.602781385 | O27: 0.477380435 | P27: 0.1799020527 | Q27: 0.3379720747 | R27: 0.637467487 | S27: 0.434503698 | T27: 0.3458909135 | U27: 0.3915185408 | V27: 0.3168213794 | W27: 0.1515255394 | X27: 1 | Y27: 0.5364184484 | Z27: 0.3038751677 | AA27: 0.4898368519 | AB27: 0.3564481891 | AC27: 0.2663938631 | AD27: 0.4162023789 | AE27: 0.5278002692 | AF27: 0.3510904956
A28: _23 | B28: =Y5 -> XOM | C28: 0.1670403193 | D28: 0.6012668707 | E28: 0.5663924549 | F28: 0.4459755452 | G28: 0.3129333993 | H28: 0.445866982 | I28: 0.6424478786 | J28: 0.5586310962 | K28: 0.4351208882 | L28: 0.5081549564 | M28: 0.8748716894 | N28: 0.4652937793 | O28: 0.6689949511 | P28: 0.4108582634 | Q28: 0.2690483491 | R28: 0.5600129807 | S28: 0.5747358195 | T28: 0.2789646186 | U28: 0.5986775922 | V28: 0.387904388 | W28: 0.09450729503 | X28: 0.5364184484 | Y28: 1 | Z28: 0.3782307821 | AA28: 0.6050045527 | AB28: 0.41506698 | AC28: 0.2315187962 | AD28: 0.4252239667 | AE28: 0.4493004044 | AF28: 0.5710053921
A29: _24 | B29: =Z5 -> UNH | C29: 0.185281502 | D29: 0.1677236018 | E29: 0.167848073 | F29: 0.3682836386 | G29: 0.2463612479 | H29: 0.1547848836 | I29: 0.4454382329 | J29: 0.3270291361 | K29: 0.2791671616 | L29: 0.3039990914 | M29: 0.4700615212 | N29: 0.3032200295 | O29: 0.4199071438 | P29: 0.1161228537 | Q29: 0.3097593935 | R29: 0.2982598073 | S29: 0.3889839979 | T29: 0.2534037921 | U29: 0.2059215193 | V29: 0.338297962 | W29: 0.1340417205 | X29: 0.3038751677 | Y29: 0.3782307821 | Z29: 1 | AA29: 0.4434414146 | AB29: 0.487674732 | AC29: 0.1012411349 | AD29: 0.3222493571 | AE29: 0.3005535505 | AF29: 0.430206234
A30: _25 | B30: =AA5 -> MMM | C30: 0.1350614101 | D30: 0.2926429945 | E30: 0.3802446205 | F30: 0.6628716972 | G30: 0.3740980222 | H30: 0.4824012983 | I30: 0.4593366487 | J30: 0.3830077783 | K30: 0.4564195825 | L30: 0.4417726524 | M30: 0.5481146014 | N30: 0.5090129232 | O30: 0.5415810017 | P30: 0.2083230987 | Q30: 0.3592463121 | R30: 0.6239986426 | S30: 0.3434185474 | T30: 0.3017872752 | U30: 0.5183429832 | V30: 0.3648143818 | W30: 0.1264960603 | X30: 0.4898368519 | Y30: 0.6050045527 | Z30: 0.4434414146 | AA30: 1 | AB30: 0.3885543551 | AC30: 0.322589478 | AD30: 0.2819608178 | AE30: 0.3104800452 | AF30: 0.5855743137
A31: _26 | B31: =AB5 -> PFE | C31: -0.04474052453 | D31: 0.1770822398 | E31: 0.09013723203 | F31: 0.2868491823 | G31: 0.1076522249 | H31: 0.06802849835 | I31: 0.3966242442 | J31: 0.3469377363 | K31: 0.09230093113 | L31: 0.4494917496 | M31: 0.4914644092 | N31: 0.1703192748 | O31: 0.4016488452 | P31: 0.01605911386 | Q31: 0.3614426049 | R31: 0.3249966701 | S31: 0.3235732718 | T31: 0.201183708 | U31: 0.1289728056 | V31: 0.4437693317 | W31: -0.02313606323 | X31: 0.3564481891 | Y31: 0.41506698 | Z31: 0.487674732 | AA31: 0.3885543551 | AB31: 1 | AC31: 0.2304647666 | AD31: 0.2406736657 | AE31: 0.2582194564 | AF31: 0.5842624605
A32: _27 | B32: =AC5 -> PG | C32: -0.1186023535 | D32: 0.2239388561 | E32: 0.1144865233 | F32: 0.1015091288 | G32: 0.3791884412 | H32: 0.04781705098 | I32: 0.2508595715 | J32: 0.4281130001 | K32: 0.2013659117 | L32: 0.1957559139 | M32: 0.2517356443 | N32: 0.2625544665 | O32: 0.162511993 | P32: 0.05488906007 | Q32: 0.4039046347 | R32: 0.3108343118 | S32: 0.3113305484 | T32: 0.2182778269 | U32: 0.2421939423 | V32: 0.5578795172 | W32: 0.08086886477 | X32: 0.2663938631 | Y32: 0.2315187962 | Z32: 0.1012411349 | AA32: 0.322589478 | AB32: 0.2304647666 | AC32: 1 | AD32: 0.5158910367 | AE32: 0.3932807601 | AF32: 0.3959153326
A33: _28 | B33: =AD5 -> KO | C33: 0.06726438221 | D33: 0.348121842 | E33: 0.4354753431 | F33: 0.1648030875 | G33: 0.2892739606 | H33: 0.08215051272 | I33: 0.5348763678 | J33: 0.6315735626 | K33: 0.3375954306 | L33: 0.1300896591 | M33: 0.4451533201 | N33: 0.4654250859 | O33: 0.4673263987 | P33: 0.2206247846 | Q33: 0.3353801026 | R33: 0.3778741891 | S33: 0.5924410246 | T33: 0.3428946912 | U33: 0.5294228107 | V33: 0.4138100169 | W33: -0.01747434145 | X33: 0.4162023789 | Y33: 0.4252239667 | Z33: 0.3222493571 | AA33: 0.2819608178 | AB33: 0.2406736657 | AC33: 0.5158910367 | AD33: 1 | AE33: 0.6694799552 | AF33: 0.4591228003
A34: _29 | B34: =AE5 -> MCD | C34: -0.0600961687 | D34: 0.4364253806 | E34: 0.3905525873 | F34: 0.2073360898 | G34: 0.2758118359 | H34: 0.1769515599 | I34: 0.5900291274 | J34: 0.7576391288 | K34: 0.3743585639 | L34: 0.1521539773 | M34: 0.4771254235 | N34: 0.3443169102 | O34: 0.3722881581 | P34: 0.06673041942 | Q34: 0.4239201175 | R34: 0.3716362499 | S34: 0.4311883421 | T34: 0.3852045033 | U34: 0.479442096 | V34: 0.4380171559 | W34: 0.01273552797 | X34: 0.5278002692 | Y34: 0.4493004044 | Z34: 0.3005535505 | AA34: 0.3104800452 | AB34: 0.2582194564 | AC34: 0.3932807601 | AD34: 0.6694799552 | AE34: 1 | AF34: 0.4847610027
A35: _30 | B35: =AF5 -> JNJ | C35: 0.05567544522 | D35: 0.2785330762 | E35: 0.1931545791 | F35: 0.2920030828 | G35: 0.402855456 | H35: 0.3898078422 | I35: 0.4690578122 | J35: 0.4224949052 | K35: 0.4540419924 | L35: 0.379667414 | M35: 0.4851645689 | N35: 0.2948884612 | O35: 0.4268164729 | P35: 0.08085497558 | Q35: 0.4544473194 | R35: 0.442210572 | S35: 0.4425106292 | T35: 0.3826344479 | U35: 0.3426185685 | V35: 0.4940751274 | W35: 0.1206764732 | X35: 0.3510904956 | Y35: 0.5710053921 | Z35: 0.430206234 | AA35: 0.5855743137 | AB35: 0.5842624605 | AC35: 0.3959153326 | AD35: 0.4591228003 | AE35: 0.4847610027 | AF35: 1
B39: Standard Deviations
B40: ='Returns & Stand Dev'!C66 -> 0.09765170538 | C40: ='Returns & Stand Dev'!BL$66 -> 0.04348583614
B41: ='Returns & Stand Dev'!E66 -> 0.0909090787 | C41: ='Returns & Stand Dev'!BL$66 -> 0.04348583614
B42: ='Returns & Stand Dev'!G66 -> 0.1262524372 | C42: ='Returns & Stand Dev'!BL$66 -> 0.04348583614
B43: ='Returns & Stand Dev'!I66 -> 0.07233920332 | C43: ='Returns & Stand Dev'!BL$66 -> 0.04348583614
B44: ='Returns & Stand Dev'!K66 -> 0.0846295846 | C44: ='Returns & Stand Dev'!BL$66 -> 0.04348583614
B45: ='Returns & Stand Dev'!M66 -> 0.07287800719 | C45: ='Returns & Stand Dev'!BL$66 -> 0.04348583614
B46: ='Returns & Stand Dev'!O66 -> 0.07186241552 | C46: ='Returns & Stand Dev'!BL$66 -> 0.04348583614
B47: ='Returns & Stand Dev'!Q66 -> 0.06902874721 | C47: ='Returns & Stand Dev'!BL$66 -> 0.04348583614
B48: ='Returns & Stand Dev'!S66 -> 0.04979030187 | C48: ='Returns & Stand Dev'!BL$66 -> 0.04348583614
B49: ='Returns & Stand Dev'!U66 -> 0.06730977183 | C49: ='Returns & Stand Dev'!BL$66 -> 0.04348583614
B50: ='Returns & Stand Dev'!W66 -> 0.0778368861 | C50: ='Returns & Stand Dev'!BL$66 -> 0.04348583614
B51: ='Returns & Stand Dev'!Y66 -> 0.06267933385 | C51: ='Returns & Stand Dev'!BL$66 -> 0.04348583614
B52: ='Returns & Stand Dev'!AA66 -> 0.07004514226 | C52: ='Returns & Stand Dev'!BL$66 -> 0.04348583614
B53: ='Returns & Stand Dev'!AC66 -> 0.1104093661 | C53: ='Returns & Stand Dev'!BL$66 -> 0.04348583614
B54: ='Returns & Stand Dev'!AE66 -> 0.04975304531 | C54: ='Returns & Stand Dev'!BL$66 -> 0.04348583614
B55: ='Returns & Stand Dev'!AG66 -> 0.07215732366 | C55: ='Returns & Stand Dev'!BL$66 -> 0.04348583614
B56: ='Returns & Stand Dev'!AI66 -> 0.0744898933 | C56: ='Returns & Stand Dev'!BL$66 -> 0.04348583614
B57: ='Returns & Stand Dev'!AK66 -> 0.1674462793 | C57: ='Returns & Stand Dev'!BL$66 -> 0.04348583614
B58: ='Returns & Stand Dev'!AM66 -> 0.05666947988 | C58: ='Returns & Stand Dev'!BL$66 -> 0.04348583614
B59: ='Returns & Stand Dev'!AO66 -> 0.0491092161 | C59: ='Returns & Stand Dev'!BL$66 -> 0.04348583614
B60: ='Returns & Stand Dev'!AQ66 -> 0.08087946257 | C60: ='Returns & Stand Dev'!BL$66 -> 0.04348583614
B61: ='Returns & Stand Dev'!AS66 -> 0.05918580773 | C61: ='Returns & Stand Dev'!BL$66 -> 0.04348583614
B62: ='Returns & Stand Dev'!AU66 -> 0.08168892696 | C62: ='Returns & Stand Dev'!BL$66 -> 0.04348583614
B63: ='Returns & Stand Dev'!AW66 -> 0.05894154018 | C63: ='Returns & Stand Dev'!BL$66 -> 0.04348583614
B64: ='Returns & Stand Dev'!AY66 -> 0.0585125444 | C64: ='Returns & Stand Dev'!BL$66 -> 0.04348583614
B65: ='Returns & Stand Dev'!BA66 -> 0.05856042794 | C65: ='Returns & Stand Dev'!BL$66 -> 0.04348583614
B66: ='Returns & Stand Dev'!BC66 -> 0.04242948603 | C66: ='Returns & Stand Dev'!BL$66 -> 0.04348583614
B67: ='Returns & Stand Dev'!BE66 -> 0.04931336135 | C67: ='Returns & Stand Dev'!BL$66 -> 0.04348583614
B68: ='Returns & Stand Dev'!BG66 -> 0.04841587028 | C68: ='Returns & Stand Dev'!BL$66 -> 0.04348583614
B69: ='Returns & Stand Dev'!BI66 -> 0.04857870171 | C69: ='Returns & Stand Dev'!BL$66 -> 0.04348583614

Sheet Var-Cov Matrix
A2: Variance/Covariance Matrix
B4: ='Corr. Matrix'!C5 -> NFLX | C4: ='Corr. Matrix'!D5 -> F | D4: ='Corr. Matrix'!E5 -> BA | E4: ='Corr. Matrix'!F5 -> CAT | F4: ='Corr. Matrix'!G5 -> AAPL | G4: ='Corr. Matrix'!H5 -> INTC | H4: ='Corr. Matrix'!I5 -> AXP | I4: ='Corr. Matrix'!J5 -> YUM | J4: ='Corr. Matrix'!K5 -> MSFT | K4: ='Corr. Matrix'!L5 -> CSCO | L4: ='Corr. Matrix'!M5 -> CVX | M4: ='Corr. Matrix'!N5 -> GOOGL | N4: ='Corr. Matrix'!O5 -> JPM | O4: ='Corr. Matrix'!P5 -> GE | P4: ='Corr. Matrix'!Q5 -> WMT | Q4: ='Corr. Matrix'!R5 -> IBM | R4: ='Corr. Matrix'!S5 -> DIS | S4: ='Corr. Matrix'!T5 -> TSLA | T4: ='Corr. Matrix'!U5 -> TRV | U4: ='Corr. Matrix'!V5 -> VZ | V4: ='Corr. Matrix'!W5 -> KR | W4: ='Corr. Matrix'!X5 -> HD | X4: ='Corr. Matrix'!Y5 -> XOM | Y4: ='Corr. Matrix'!Z5 -> UNH | Z4: ='Corr. Matrix'!AA5 -> MMM | AA4: ='Corr. Matrix'!AB5 -> PFE | AB4: ='Corr. Matrix'!AC5 -> PG | AC4: ='Corr. Matrix'!AD5 -> KO | AD4: ='Corr. Matrix'!AE5 -> MCD | AE4: ='Corr. Matrix'!AF5 -> JNJ
A5: ='Corr. Matrix'!B6 -> NFLX | B5: ='Corr. Matrix'!C6*'Corr. Matrix'!B$40*'Corr. Matrix'!B40 -> 0.009535855563 | C5: =B6 -> 0.0005828885267 | D5: =B7 -> 0.002828444212 | E5: =B8 -> 0.00102399745 | F5: =B9 -> 0.003073982281 | G5: =B10 -> 0.001101352334 | H5: =B11 -> 0.001104846491 | I5: =B12 -> 0.0004581038109 | J5: =B13 -> 0.002553215316 | K5: =B14 -> 0.001778729056 | L5: =B15 -> 0.0009093215472 | M5: =B16 -> 0.002219422635 | N5: =B17 -> 0.000683767854 | O5: =B18 -> 0.001609209606 | P5: =B19 -> 0.0002955145689 | Q5: =B20 -> 0.002272505712 | R5: =B21 -> 0.001080421675 | S5: =B22 -> 0.002961911593 | T5: =B23 -> 0.0007413586058 | U5: =B24 -> -0.0004303321374 | V5: =B25 -> 0.001694132114 | W5: =B26 -> 0.001089648538 | X5: =B27 -> 0.001332491155 | Y5: =B28 -> 0.001066432507 | Z5: =B29 -> 0.0007717206042 | AA5: =B30 -> -0.0002558498374 | AB5: =B31 -> -0.0004914065154 | AC5: =B32 -> 0.0003239139083 | AD5: =B33 -> -0.0002841282133 | AE5: =B34 -> 0.000264112791
A6: ='Corr. Matrix'!B7 -> F | B6: ='Corr. Matrix'!C7*'Corr. Matrix'!B$40*'Corr. Matrix'!B41 -> 0.0005828885267 | C6: ='Corr. Matrix'!D7*'Corr. Matrix'!B$41*'Corr. Matrix'!B41 -> 0.008264460591 | D6: =C7 -> 0.005688587634 | E6: =C8 -> 0.002332402998 | F6: =C9 -> 0.002579294026 | G6: =C10 -> 0.001256724504 | H6: =C11 -> 0.004240246322 | I6: =C12 -> 0.003181106216 | J6: =C13 -> 0.001394581764 | K6: =C14 -> 0.002170012098 | L6: =C15 -> 0.003869018422 | M6: =C16 -> 0.002350116912 | N6: =C17 -> 0.004129151356 | O6: =C18 -> 0.004707827237 | P6: =C19 -> 0.0006864290558 | Q6: =C20 -> 0.002199923863 | R6: =C21 -> 0.003447684882 | S6: =C22 -> 0.003299319047 | T6: =C23 -> 0.00293626631 | U6: =C24 -> 0.0006587919042 | V6: =C25 -> 0.0001089371907 | W6: =C26 -> 0.002411480038 | X6: =C27 -> 0.004465167171 | Y6: =C28 -> 0.0008987169168 | Z6: =C29 -> 0.001556662173 | AA6: =C30 -> 0.000942728214 | AB6: =C31 -> 0.0008637826629 | AC6: =C32 -> 0.001560641444 | AD6: =C33 -> 0.001920901071 | AE6: =C34 -> 0.00123007031
A7: ='Corr. Matrix'!B8 -> BA | B7: ='Corr. Matrix'!C8*'Corr. Matrix'!B$40*'Corr. Matrix'!B42 -> 0.002828444212 | C7: ='Corr. Matrix'!D8*'Corr. Matrix'!B$41*'Corr. Matrix'!B42 -> 0.005688587634 | D7: ='Corr. Matrix'!E8*'Corr. Matrix'!B$42*'Corr. Matrix'!B42 -> 0.01593967791 | E7: =$D8 -> 0.003690930627 | F7: =$D9 -> 0.002518407917 | G7: =$D10 -> 0.00233934408 | H7: =$D11 -> 0.006278014713 | I7: =$D12 -> 0.004106950947 | J7: =$D13 -> 0.002109840395 | K7: =$D14 -> 0.002763607063 | L7: =$D15 -> 0.005640521774 | M7: =$D16 -> 0.002596068867 | N7: =$D17 -> 0.005389169853 | O7: =$D18 -> 0.006767304204 | P7: =$D19 -> 0.000835298662 | Q7: =$D20 -> 0.003848123882 | R7: =$D21 -> 0.004852029187 | S7: =$D22 -> 0.005293989568 | T7: =$D23 -> 0.003919047519 | U7: =$D24 -> 0.001174183089 | V7: =$D25 -> 0.0007736898653 | W7: =$D26 -> 0.002906856606 | X7: =$D27 -> 0.005841446741 | Y7: =$D28 -> 0.001249043634 | Z7: =$D29 -> 0.002809000607 | AA7: =$D30 -> 0.0006664203187 | AB7: =$D31 -> 0.0006132843872 | AC7: =$D32 -> 0.0027112399 | AD7: =$D33 -> 0.002387300191 | AE7: =$D34 -> 0.001184651703
A8: ='Corr. Matrix'!B9 -> CAT | B8: ='Corr. Matrix'!C9*'Corr. Matrix'!B$40*'Corr. Matrix'!B43 -> 0.00102399745 | C8: ='Corr. Matrix'!D9*'Corr. Matrix'!B$41*'Corr. Matrix'!B43 -> 0.002332402998 | D8: ='Corr. Matrix'!E9*'Corr. Matrix'!B$42*'Corr. Matrix'!B43 -> 0.003690930627 | E8: ='Corr. Matrix'!F9*'Corr. Matrix'!B$43*'Corr. Matrix'!B43 -> 0.005232960337 | F8: =$E9 -> 0.001549688535 | G8: =$E10 -> 0.001848660331 | H8: =$E11 -> 0.002198208329 | I8: =$E12 -> 0.001235069338 | J8: =$E13 -> 0.001395223623 | K8: =$E14 -> 0.00163557441 | L8: =$E15 -> 0.002608286383 | M8: =$E16 -> 0.001675931367 | N8: =$E17 -> 0.002553260031 | O8: =$E18 -> 0.002186454051 | P8: =$E19 -> 0.0006381682313 | Q8: =$E20 -> 0.002781832078 | R8: =$E21 -> 0.001906575791 | S8: =$E22 -> 0.001142513713 | T8: =$E23 -> 0.00157147948 | U8: =$E24 -> 0.0006316687045 | V8: =$E25 -> 1.697987364e-05 | W8: =$E26 -> 0.001971953883 | X8: =$E27 -> 0.002635408595 | Y8: =$E28 -> 0.001570281908 | Z8: =$E29 -> 0.002805770737 | AA8: =$E30 -> 0.001215154724 | AB8: =$E31 -> 0.0003115635138 | AC8: =$E32 -> 0.0005879002861 | AD8: =$E33 -> 0.0007261667647 | AE8: =$E34 -> 0.001026141051
A9: ='Corr. Matrix'!B10 -> AAPL | B9: ='Corr. Matrix'!C10*'Corr. Matrix'!B$40*'Corr. Matrix'!B44 -> 0.003073982281 | C9: ='Corr. Matrix'!D10*'Corr. Matrix'!B$41*'Corr. Matrix'!B44 -> 0.002579294026 | D9: ='Corr. Matrix'!E10*'Corr. Matrix'!B$42*'Corr. Matrix'!B44 -> 0.002518407917 | E9: ='Corr. Matrix'!F10*'Corr. Matrix'!B$43*'Corr. Matrix'!B44 -> 0.001549688535 | F9: ='Corr. Matrix'!G10*'Corr. Matrix'!B$44*'Corr. Matrix'!B44 -> 0.00716216659 | G9: =$F10 -> 0.002067952779 | H9: =$F11 -> 0.002266034497 | I9: =$F12 -> 0.002329769479 | J9: =$F13 -> 0.002847286504 | K9: =$F14 -> 0.002315151337 | L9: =$F15 -> 0.001360644282 | M9: =$F16 -> 0.002842113849 | N9: =$F17 -> 0.002030086501 | O9: =$F18 -> 0.002871887165 | P9: =$F19 -> 0.001104543974 | Q9: =$F20 -> 0.002343915053 | R9: =$F21 -> 0.002220871243 | S9: =$F22 -> 0.006993843934 | T9: =$F23 -> 0.001278650656 | U9: =$F24 -> 0.0008598472485 | V9: =$F25 -> 0.000747869419 | W9: =$F26 -> 0.001757085867 | X9: =$F27 -> 0.002163402455 | Y9: =$F28 -> 0.001228898699 | Z9: =$F29 -> 0.001852493125 | AA9: =$F30 -> 0.0005335184724 | AB9: =$F31 -> 0.001361585978 | AC9: =$F32 -> 0.001207247063 | AD9: =$F33 -> 0.001130115551 | AE9: =$F34 -> 0.001656217476
A10: ='Corr. Matrix'!B11 -> INTC | B10: ='Corr. Matrix'!C11*'Corr. Matrix'!B$40*'Corr. Matrix'!B45 -> 0.001101352334 | C10: ='Corr. Matrix'!D11*'Corr. Matrix'!B$41*'Corr. Matrix'!B45 -> 0.001256724504 | D10: ='Corr. Matrix'!E11*'Corr. Matrix'!B$42*'Corr. Matrix'!B45 -> 0.00233934408 | E10: ='Corr. Matrix'!F11*'Corr. Matrix'!B$43*'Corr. Matrix'!B45 -> 0.001848660331 | F10: ='Corr. Matrix'!G11*'Corr. Matrix'!B$44*'Corr. Matrix'!B45 -> 0.002067952779 | G10: ='Corr. Matrix'!H11*'Corr. Matrix'!B$45*'Corr. Matrix'!B45 -> 0.005311203932 | H10: =$G11 -> 0.001888938901 | I10: =$G12 -> 0.001075292337 | J10: =$G13 -> 0.001778381123 | K10: =$G14 -> 0.002034146928 | L10: =$G15 -> 0.002150533687 | M10: =$G16 -> 0.001394153442 | N10: =$G17 -> 0.001355931102 | O10: =$G18 -> 0.001340948777 | P10: =$G19 -> 0.0005242217619 | Q10: =$G20 -> 0.002197085738 | R10: =$G21 -> 0.0007737166789 | S10: =$G22 -> 0.002677212227 | T10: =$G23 -> 0.0007047106757 | U10: =$G24 -> 0.0008574800001 | V10: =$G25 -> 7.690034812e-05 | W10: =$G26 -> 0.001023029784 | X10: =$G27 -> 0.002654391589 | Y10: =$G28 -> 0.0006648849669 | Z10: =$G29 -> 0.002057093066 | AA10: =$G30 -> 0.0002903297999 | AB10: =$G31 -> 0.000147858756 | AC10: =$G32 -> 0.0002952374008 | AD10: =$G33 -> 0.0006243651106 | AE10: =$G34 -> 0.001380044099
A11: ='Corr. Matrix'!B12 -> AXP | B11: ='Corr. Matrix'!C12*'Corr. Matrix'!B$40*'Corr. Matrix'!B46 -> 0.001104846491 | C11: ='Corr. Matrix'!D12*'Corr. Matrix'!B$41*'Corr. Matrix'!B46 -> 0.004240246322 | D11: ='Corr. Matrix'!E12*'Corr. Matrix'!B$42*'Corr. Matrix'!B46 -> 0.006278014713 | E11: ='Corr. Matrix'!F12*'Corr. Matrix'!B$43*'Corr. Matrix'!B46 -> 0.002198208329 | F11: ='Corr. Matrix'!G12*'Corr. Matrix'!B$44*'Corr. Matrix'!B46 -> 0.002266034497 | G11: ='Corr. Matrix'!H12*'Corr. Matrix'!B$45*'Corr. Matrix'!B46 -> 0.001888938901 | H11: ='Corr. Matrix'!I12*'Corr. Matrix'!B$46*'Corr. Matrix'!B46 -> 0.005164206764 | I11: =$H12 -> 0.003047100399 | J11: =$H13 -> 0.001772342947 | K11: =$H14 -> 0.002799755066 | L11: =$H15 -> 0.003839647607 | M11: =$H16 -> 0.001996123928 | N11: =$H17 -> 0.004055677687 | O11: =$H18 -> 0.003412928316 | P11: =$H19 -> 0.0008689721325 | Q11: =$H20 -> 0.003166059968 | R11: =$H21 -> 0.003517302448 | S11: =$H22 -> 0.004717503176 | T11: =$H23 -> 0.002089856256 | U11: =$H24 -> 0.001061610067 | V11: =$H25 -> -0.0002821695174 | W11: =$H26 -> 0.002348758383 | X11: =$H27 -> 0.003771402649 | Y11: =$H28 -> 0.001886734461 | Z11: =$H29 -> 0.001931442984 | AA11: =$H30 -> 0.00166911135 | AB11: =$H31 -> 0.0007648922458 | AC11: =$H32 -> 0.001895482711 | AD11: =$H33 -> 0.002052877361 | AE11: =$H34 -> 0.001637472777
A12: ='Corr. Matrix'!B13 -> YUM | B12: ='Corr. Matrix'!C13*'Corr. Matrix'!B$40*'Corr. Matrix'!B47 -> 0.0004581038109 | C12: ='Corr. Matrix'!D13*'Corr. Matrix'!B$41*'Corr. Matrix'!B47 -> 0.003181106216 | D12: ='Corr. Matrix'!E13*'Corr. Matrix'!B$42*'Corr. Matrix'!B47 -> 0.004106950947 | E12: ='Corr. Matrix'!F13*'Corr. Matrix'!B$43*'Corr. Matrix'!B47 -> 0.001235069338 | F12: ='Corr. Matrix'!G13*'Corr. Matrix'!B$44*'Corr. Matrix'!B47 -> 0.002329769479 | G12: ='Corr. Matrix'!H13*'Corr. Matrix'!B$45*'Corr. Matrix'!B47 -> 0.001075292337 | H12: ='Corr. Matrix'!I13*'Corr. Matrix'!B$46*'Corr. Matrix'!B47 -> 0.003047100399 | I12: ='Corr. Matrix'!J13*'Corr. Matrix'!B$47*'Corr. Matrix'!B47 -> 0.004764967941 | J12: =$I13 -> 0.001522202058 | K12: =$I14 -> 0.001855403191 | L12: =$I15 -> 0.003218101463 | M12: =$I16 -> 0.002189145907 | N12: =$I17 -> 0.002315400246 | O12: =$I18 -> 0.001657901019 | P12: =$I19 -> 0.001291774417 | Q12: =$I20 -> 0.002652453998 | R12: =$I21 -> 0.002858630873 | S12: =$I22 -> 0.003568393105 | T12: =$I23 -> 0.002335536036 | U12: =$I24 -> 0.001387242577 | V12: =$I25 -> -7.043584426e-05 | W12: =$I26 -> 0.002356414648 | X12: =$I27 -> 0.003150056111 | Y12: =$I28 -> 0.001330570586 | Z12: =$I29 -> 0.001546986662 | AA12: =$I30 -> 0.001402444791 | AB12: =$I31 -> 0.001253880586 | AC12: =$I32 -> 0.002149901389 | AD12: =$I33 -> 0.002532095785 | AE12: =$I34 -> 0.001416763539
A13: ='Corr. Matrix'!B14 -> MSFT | B13: ='Corr. Matrix'!C14*'Corr. Matrix'!B$40*'Corr. Matrix'!B48 -> 0.002553215316 | C13: ='Corr. Matrix'!D14*'Corr. Matrix'!B$41*'Corr. Matrix'!B48 -> 0.001394581764 | D13: ='Corr. Matrix'!E14*'Corr. Matrix'!B$42*'Corr. Matrix'!B48 -> 0.002109840395 | E13: ='Corr. Matrix'!F14*'Corr. Matrix'!B$43*'Corr. Matrix'!B48 -> 0.001395223623 | F13: ='Corr. Matrix'!G14*'Corr. Matrix'!B$44*'Corr. Matrix'!B48 -> 0.002847286504 | G13: ='Corr. Matrix'!H14*'Corr. Matrix'!B$45*'Corr. Matrix'!B48 -> 0.001778381123 | H13: ='Corr. Matrix'!I14*'Corr. Matrix'!B$46*'Corr. Matrix'!B48 -> 0.001772342947 | I13: ='Corr. Matrix'!J14*'Corr. Matrix'!B$47*'Corr. Matrix'!B48 -> 0.001522202058 | J13: ='Corr. Matrix'!K14*'Corr. Matrix'!B$48*'Corr. Matrix'!B48 -> 0.00247907416 | K13: =$J14 -> 0.001366142159 | L13: =$J15 -> 0.001420056574 | M13: =$J16 -> 0.002095393923 | N13: =$J17 -> 0.001417163761 | O13: =$J18 -> 0.000828411997 | P13: =$J19 -> 0.0007524365077 | Q13: =$J20 -> 0.001969817189 | R13: =$J21 -> 0.001489239189 | S13: =$J22 -> 0.003316763454 | T13: =$J23 -> 0.001293230915 | U13: =$J24 -> 0.0005177073912 | V13: =$J25 -> 0.0009025321599 | W13: =$J26 -> 0.0015246893 | X13: =$J27 -> 0.001769774295 | Y13: =$J28 -> 0.0008192766368 | Z13: =$J29 -> 0.001329713299 | AA13: =$J30 -> 0.0002691256448 | AB13: =$J31 -> 0.0004254009771 | AC13: =$J32 -> 0.0008289072257 | AD13: =$J33 -> 0.0009024440268 | AE13: =$J34 -> 0.001098213262
A14: ='Corr. Matrix'!B15 -> CSCO | B14: ='Corr. Matrix'!C15*'Corr. Matrix'!B$40*'Corr. Matrix'!B49 -> 0.001778729056 | C14: ='Corr. Matrix'!D15*'Corr. Matrix'!B$41*'Corr. Matrix'!B49 -> 0.002170012098 | D14: ='Corr. Matrix'!E15*'Corr. Matrix'!B$42*'Corr. Matrix'!B49 -> 0.002763607063 | E14: ='Corr. Matrix'!F15*'Corr. Matrix'!B$43*'Corr. Matrix'!B49 -> 0.00163557441 | F14: ='Corr. Matrix'!G15*'Corr. Matrix'!B$44*'Corr. Matrix'!B49 -> 0.002315151337 | G14: ='Corr. Matrix'!H15*'Corr. Matrix'!B$45*'Corr. Matrix'!B49 -> 0.002034146928 | H14: ='Corr. Matrix'!I15*'Corr. Matrix'!B$46*'Corr. Matrix'!B49 -> 0.002799755066 | I14: ='Corr. Matrix'!J15*'Corr. Matrix'!B$47*'Corr. Matrix'!B49 -> 0.001855403191 | J14: ='Corr. Matrix'!K15*'Corr. Matrix'!B$48*'Corr. Matrix'!B49 -> 0.001366142159 | K14: ='Corr. Matrix'!L15*'Corr. Matrix'!B$49*'Corr. Matrix'!B49 -> 0.004530605384 | L14: =$K15 -> 0.00249338462 | M14: =$K16 -> 0.001502716328 | N14: =$K17 -> 0.002340829796 | O14: =$K18 -> 0.001581920496 | P14: =$K19 -> 0.0009028957973 | Q14: =$K20 -> 0.002769731387 | R14: =$K21 -> 0.001778997157 | S14: =$K22 -> 0.001312004086 | T14: =$K23 -> 0.001368393338 | U14: =$K24 -> 0.0009196787342 | V14: =$K25 -> 0.0004643256451 | W14: =$K26 -> 0.001529797908 | X14: =$K27 -> 0.002794071244 | Y14: =$K28 -> 0.001206068248 | Z14: =$K29 -> 0.001739906577 | AA14: =$K30 -> 0.001771756704 | AB14: =$K31 -> 0.0005590630386 | AC14: =$K32 -> 0.0004318028459 | AD14: =$K33 -> 0.0004958486903 | AE14: =$K34 -> 0.001241444608
A15: ='Corr. Matrix'!B16 -> CVX | B15: ='Corr. Matrix'!C16*'Corr. Matrix'!B$40*'Corr. Matrix'!B50 -> 0.0009093215472 | C15: ='Corr. Matrix'!D16*'Corr. Matrix'!B$41*'Corr. Matrix'!B50 -> 0.003869018422 | D15: ='Corr. Matrix'!E16*'Corr. Matrix'!B$42*'Corr. Matrix'!B50 -> 0.005640521774 | E15: ='Corr. Matrix'!F16*'Corr. Matrix'!B$43*'Corr. Matrix'!B50 -> 0.002608286383 | F15: ='Corr. Matrix'!G16*'Corr. Matrix'!B$44*'Corr. Matrix'!B50 -> 0.001360644282 | G15: ='Corr. Matrix'!H16*'Corr. Matrix'!B$45*'Corr. Matrix'!B50 -> 0.002150533687 | H15: ='Corr. Matrix'!I16*'Corr. Matrix'!B$46*'Corr. Matrix'!B50 -> 0.003839647607 | I15: ='Corr. Matrix'!J16*'Corr. Matrix'!B$47*'Corr. Matrix'!B50 -> 0.003218101463 | J15: ='Corr. Matrix'!K16*'Corr. Matrix'!B$48*'Corr. Matrix'!B50 -> 0.001420056574 | K15: ='Corr. Matrix'!L16*'Corr. Matrix'!B$49*'Corr. Matrix'!B50 -> 0.00249338462 | L15: ='Corr. Matrix'!M16*'Corr. Matrix'!B$50*'Corr. Matrix'!B50 -> 0.006058580837 | M15: =$L16 -> 0.002042632161 | N15: =$L17 -> 0.003455195056 | O15: =$L18 -> 0.003160115742 | P15: =$L19 -> 0.001044149127 | Q15: =$L20 -> 0.003198200989 | R15: =$L21 -> 0.003104000231 | S15: =$L22 -> 0.003442082858 | T15: =$L23 -> 0.002229603875 | U15: =$L24 -> 0.001771975801 | V15: =$L25 -> 0.0003684388335 | W15: =$L26 -> 0.002688534359 | X15: =$L27 -> 0.005562794388 | Y15: =$L28 -> 0.002156560445 | Z15: =$L29 -> 0.002496351915 | AA15: =$L30 -> 0.002240174079 | AB15: =$L31 -> 0.0008313768703 | AC15: =$L32 -> 0.001708675832 | AD15: =$L33 -> 0.00179806652 | AE15: =$L34 -> 0.001834511483
A16: ='Corr. Matrix'!B17 -> GOOGL | B16: ='Corr. Matrix'!C17*'Corr. Matrix'!B$40*'Corr. Matrix'!B51 -> 0.002219422635 | C16: ='Corr. Matrix'!D17*'Corr. Matrix'!B$41*'Corr. Matrix'!B51 -> 0.002350116912 | D16: ='Corr. Matrix'!E17*'Corr. Matrix'!B$42*'Corr. Matrix'!B51 -> 0.002596068867 | E16: ='Corr. Matrix'!F17*'Corr. Matrix'!B$43*'Corr. Matrix'!B51 -> 0.001675931367 | F16: ='Corr. Matrix'!G17*'Corr. Matrix'!B$44*'Corr. Matrix'!B51 -> 0.002842113849 | G16: ='Corr. Matrix'!H17*'Corr. Matrix'!B$45*'Corr. Matrix'!B51 -> 0.001394153442 | H16: ='Corr. Matrix'!I17*'Corr. Matrix'!B$46*'Corr. Matrix'!B51 -> 0.001996123928 | I16: ='Corr. Matrix'!J17*'Corr. Matrix'!B$47*'Corr. Matrix'!B51 -> 0.002189145907 | J16: ='Corr. Matrix'!K17*'Corr. Matrix'!B$48*'Corr. Matrix'!B51 -> 0.002095393923 | K16: ='Corr. Matrix'!L17*'Corr. Matrix'!B$49*'Corr. Matrix'!B51 -> 0.001502716328 | L16: ='Corr. Matrix'!M17*'Corr. Matrix'!B$50*'Corr. Matrix'!B51 -> 0.002042632161 | M16: ='Corr. Matrix'!N17*'Corr. Matrix'!B$51*'Corr. Matrix'!B51 -> 0.003928698892 | N16: =$M17 -> 0.002094149681 | O16: =$M18 -> 0.002248835938 | P16: =$M19 -> 0.0008536910457 | Q16: =$M20 -> 0.002381805696 | R16: =$M21 -> 0.001903636407 | S16: =$M22 -> 0.004299865007 | T16: =$M23 -> 0.001809452752 | U16: =$M24 -> 0.0004114273638 | V16: =$M25 -> 0.0007028875715 | W16: =$M26 -> 0.00223615438 | X16: =$M27 -> 0.00238240071 | Y16: =$M28 -> 0.001120221072 | Z16: =$M29 -> 0.001866818794 | AA16: =$M30 -> 0.0006251617716 | AB16: =$M31 -> 0.0006982509802 | AC16: =$M32 -> 0.001438595727 | AD16: =$M33 -> 0.001044889746 | AE16: =$M34 -> 0.0008979001732
A17: ='Corr. Matrix'!B18 -> JPM | B17: ='Corr. Matrix'!C18*'Corr. Matrix'!B$40*'Corr. Matrix'!B52 -> 0.000683767854 | C17: ='Corr. Matrix'!D18*'Corr. Matrix'!B$41*'Corr. Matrix'!B52 -> 0.004129151356 | D17: ='Corr. Matrix'!E18*'Corr. Matrix'!B$42*'Corr. Matrix'!B52 -> 0.005389169853 | E17: ='Corr. Matrix'!F18*'Corr. Matrix'!B$43*'Corr. Matrix'!B52 -> 0.002553260031 | F17: ='Corr. Matrix'!G18*'Corr. Matrix'!B$44*'Corr. Matrix'!B52 -> 0.002030086501 | G17: ='Corr. Matrix'!H18*'Corr. Matrix'!B$45*'Corr. Matrix'!B52 -> 0.001355931102 | H17: ='Corr. Matrix'!I18*'Corr. Matrix'!B$46*'Corr. Matrix'!B52 -> 0.004055677687 | I17: ='Corr. Matrix'!J18*'Corr. Matrix'!B$47*'Corr. Matrix'!B52 -> 0.002315400246 | J17: ='Corr. Matrix'!K18*'Corr. Matrix'!B$48*'Corr. Matrix'!B52 -> 0.001417163761 | K17: ='Corr. Matrix'!L18*'Corr. Matrix'!B$49*'Corr. Matrix'!B52 -> 0.002340829796 | L17: ='Corr. Matrix'!M18*'Corr. Matrix'!B$50*'Corr. Matrix'!B52 -> 0.003455195056 | M17: ='Corr. Matrix'!N18*'Corr. Matrix'!B$51*'Corr. Matrix'!B52 -> 0.002094149681 | N17: ='Corr. Matrix'!O18*'Corr. Matrix'!B$52*'Corr. Matrix'!B52 -> 0.004906321954 | O17: =$N18 -> 0.003780546883 | P17: =$N19 -> 0.000791388185 | Q17: =$N20 -> 0.002785898525 | R17: =$N21 -> 0.003645535547 | S17: =$N22 -> 0.003165207271 | T17: =$N23 -> 0.002432235733 | U17: =$N24 -> 0.0007408943988 | V17: =$N25 -> 0.0002909659964 | W17: =$N26 -> 0.001979065721 | X17: =$N27 -> 0.00382793058 | Y17: =$N28 -> 0.001733615435 | Z17: =$N29 -> 0.002219680294 | AA17: =$N30 -> 0.001647512757 | AB17: =$N31 -> 0.0004829822929 | AC17: =$N32 -> 0.001614220813 | AD17: =$N33 -> 0.001262539536 | AE17: =$N34 -> 0.001452329297
A18: ='Corr. Matrix'!B19 -> GE | B18: ='Corr. Matrix'!C19*'Corr. Matrix'!B$40*'Corr. Matrix'!B53 -> 0.001609209606 | C18: ='Corr. Matrix'!D19*'Corr. Matrix'!B$41*'Corr. Matrix'!B53 -> 0.004707827237 | D18: ='Corr. Matrix'!E19*'Corr. Matrix'!B$42*'Corr. Matrix'!B53 -> 0.006767304204 | E18: ='Corr. Matrix'!F19*'Corr. Matrix'!B$43*'Corr. Matrix'!B53 -> 0.002186454051 | F18: ='Corr. Matrix'!G19*'Corr. Matrix'!B$44*'Corr. Matrix'!B53 -> 0.002871887165 | G18: ='Corr. Matrix'!H19*'Corr. Matrix'!B$45*'Corr. Matrix'!B53 -> 0.001340948777 | H18: ='Corr. Matrix'!I19*'Corr. Matrix'!B$46*'Corr. Matrix'!B53 -> 0.003412928316 | I18: ='Corr. Matrix'!J19*'Corr. Matrix'!B$47*'Corr. Matrix'!B53 -> 0.001657901019 | J18: ='Corr. Matrix'!K19*'Corr. Matrix'!B$48*'Corr. Matrix'!B53 -> 0.000828411997 | K18: ='Corr. Matrix'!L19*'Corr. Matrix'!B$49*'Corr. Matrix'!B53 -> 0.001581920496 | L18: ='Corr. Matrix'!M19*'Corr. Matrix'!B$50*'Corr. Matrix'!B53 -> 0.003160115742 | M18: ='Corr. Matrix'!N19*'Corr. Matrix'!B$51*'Corr. Matrix'!B53 -> 0.002248835938 | N18: ='Corr. Matrix'!O19*'Corr. Matrix'!B$52*'Corr. Matrix'!B53 -> 0.003780546883 | O18: ='Corr. Matrix'!P19*'Corr. Matrix'!B$53*'Corr. Matrix'!B53 -> 0.01219022813 | P18: =$O19 -> 0.0002369211508 | Q18: =$O20 -> 0.002828831532 | R18: =$O21 -> 0.003258717494 | S18: =$O22 -> 0.004938185308 | T18: =$O23 -> 0.002256996303 | U18: =$O24 -> 0.0001082889087 | V18: =$O25 -> -0.0007704347751 | W18: =$O26 -> 0.0011756001 | X18: =$O27 -> 0.003705622153 | Y18: =$O28 -> 0.0007556924732 | Z18: =$O29 -> 0.001345836576 | AA18: =$O30 -> 0.0001038321234 | AB18: =$O31 -> 0.0002571339856 | AC18: =$O32 -> 0.001201226271 | AD18: =$O33 -> 0.0003567118311 | AE18: =$O34 -> 0.0004336691919
A19: ='Corr. Matrix'!B20 -> WMT | B19: ='Corr. Matrix'!C20*'Corr. Matrix'!B$40*'Corr. Matrix'!B54 -> 0.0002955145689 | C19: ='Corr. Matrix'!D20*'Corr. Matrix'!B$41*'Corr. Matrix'!B54 -> 0.0006864290558 | D19: ='Corr. Matrix'!E20*'Corr. Matrix'!B$42*'Corr. Matrix'!B54 -> 0.000835298662 | E19: ='Corr. Matrix'!F20*'Corr. Matrix'!B$43*'Corr. Matrix'!B54 -> 0.0006381682313 | F19: ='Corr. Matrix'!G20*'Corr. Matrix'!B$44*'Corr. Matrix'!B54 -> 0.001104543974 | G19: ='Corr. Matrix'!H20*'Corr. Matrix'!B$45*'Corr. Matrix'!B54 -> 0.0005242217619 | H19: ='Corr. Matrix'!I20*'Corr. Matrix'!B$46*'Corr. Matrix'!B54 -> 0.0008689721325 | I19: ='Corr. Matrix'!J20*'Corr. Matrix'!B$47*'Corr. Matrix'!B54 -> 0.001291774417 | J19: ='Corr. Matrix'!K20*'Corr. Matrix'!B$48*'Corr. Matrix'!B54 -> 0.0007524365077 | K19: ='Corr. Matrix'!L20*'Corr. Matrix'!B$49*'Corr. Matrix'!B54 -> 0.0009028957973 | L19: ='Corr. Matrix'!M20*'Corr. Matrix'!B$50*'Corr. Matrix'!B54 -> 0.001044149127 | M19: ='Corr. Matrix'!N20*'Corr. Matrix'!B$51*'Corr. Matrix'!B54 -> 0.0008536910457 | N19: ='Corr. Matrix'!O20*'Corr. Matrix'!B$52*'Corr. Matrix'!B54 -> 0.000791388185 | O19: ='Corr. Matrix'!P20*'Corr. Matrix'!B$53*'Corr. Matrix'!B54 -> 0.0002369211508 | P19: ='Corr. Matrix'!Q20*'Corr. Matrix'!B$54*'Corr. Matrix'!B54 -> 0.002475365518 | Q19: =$P20 -> 0.0006678568746 | R19: =$P21 -> 0.001083066545 | S19: =$P22 -> 0.001129935597 | T19: =$P23 -> 0.0009860579559 | U19: =$P24 -> 0.00152182704 | V19: =$P25 -> 0.001952681085 | W19: =$P26 -> 0.0009952176396 | X19: =$P27 -> 0.00109348591 | Y19: =$P28 -> 0.0009083759634 | Z19: =$P29 -> 0.001045829699 | AA19: =$P30 -> 0.00105308458 | AB19: =$P31 -> 0.0008526411252 | AC19: =$P32 -> 0.0008228516949 | AD19: =$P33 -> 0.001021154459 | AE19: =$P34 -> 0.001098371153
A20: ='Corr. Matrix'!B21 -> IBM | B20: ='Corr. Matrix'!C21*'Corr. Matrix'!B$40*'Corr. Matrix'!B55 -> 0.002272505712 | C20: ='Corr. Matrix'!D21*'Corr. Matrix'!B$41*'Corr. Matrix'!B55 -> 0.002199923863 | D20: ='Corr. Matrix'!E21*'Corr. Matrix'!B$42*'Corr. Matrix'!B55 -> 0.003848123882 | E20: ='Corr. Matrix'!F21*'Corr. Matrix'!B$43*'Corr. Matrix'!B55 -> 0.002781832078 | F20: ='Corr. Matrix'!G21*'Corr. Matrix'!B$44*'Corr. Matrix'!B55 -> 0.002343915053 | G20: ='Corr. Matrix'!H21*'Corr. Matrix'!B$45*'Corr. Matrix'!B55 -> 0.002197085738 | H20: ='Corr. Matrix'!I21*'Corr. Matrix'!B$46*'Corr. Matrix'!B55 -> 0.003166059968 | I20: ='Corr. Matrix'!J21*'Corr. Matrix'!B$47*'Corr. Matrix'!B55 -> 0.002652453998 | J20: ='Corr. Matrix'!K21*'Corr. Matrix'!B$48*'Corr. Matrix'!B55 -> 0.001969817189 | K20: ='Corr. Matrix'!L21*'Corr. Matrix'!B$49*'Corr. Matrix'!B55 -> 0.002769731387 | L20: ='Corr. Matrix'!M21*'Corr. Matrix'!B$50*'Corr. Matrix'!B55 -> 0.003198200989 | M20: ='Corr. Matrix'!N21*'Corr. Matrix'!B$51*'Corr. Matrix'!B55 -> 0.002381805696 | N20: ='Corr. Matrix'!O21*'Corr. Matrix'!B$52*'Corr. Matrix'!B55 -> 0.002785898525 | O20: ='Corr. Matrix'!P21*'Corr. Matrix'!B$53*'Corr. Matrix'!B55 -> 0.002828831532 | P20: ='Corr. Matrix'!Q21*'Corr. Matrix'!B$54*'Corr. Matrix'!B55 -> 0.0006678568746 | Q20: ='Corr. Matrix'!R21*'Corr. Matrix'!B$55*'Corr. Matrix'!B55 -> 0.005206679357 | R20: =$Q21 -> 0.002222421143 | S20: =$Q22 -> 0.002466652627 | T20: =$Q23 -> 0.002007809248 | U20: =$Q24 -> 0.0007716074786 | V20: =$Q25 -> -0.0001561604468 | W20: =$Q26 -> 0.002722425693 | X20: =$Q27 -> 0.003300970945 | Y20: =$Q28 -> 0.001268517987 | Z20: =$Q29 -> 0.002634590038 | AA20: =$Q30 -> 0.001373294149 | AB20: =$Q31 -> 0.0009516497557 | AC20: =$Q32 -> 0.001344597351 | AD20: =$Q33 -> 0.001298333397 | AE20: =$Q34 -> 0.001550084743
A21: ='Corr. Matrix'!B22 -> DIS | B21: ='Corr. Matrix'!C22*'Corr. Matrix'!B$40*'Corr. Matrix'!B56 -> 0.001080421675 | C21: ='Corr. Matrix'!D22*'Corr. Matrix'!B$41*'Corr. Matrix'!B56 -> 0.003447684882 | D21: ='Corr. Matrix'!E22*'Corr. Matrix'!B$42*'Corr. Matrix'!B56 -> 0.004852029187 | E21: ='Corr. Matrix'!F22*'Corr. Matrix'!B$43*'Corr. Matrix'!B56 -> 0.001906575791 | F21: ='Corr. Matrix'!G22*'Corr. Matrix'!B$44*'Corr. Matrix'!B56 -> 0.002220871243 | G21: ='Corr. Matrix'!H22*'Corr. Matrix'!B$45*'Corr. Matrix'!B56 -> 0.0007737166789 | H21: ='Corr. Matrix'!I22*'Corr. Matrix'!B$46*'Corr. Matrix'!B56 -> 0.003517302448 | I21: ='Corr. Matrix'!J22*'Corr. Matrix'!B$47*'Corr. Matrix'!B56 -> 0.002858630873 | J21: ='Corr. Matrix'!K22*'Corr. Matrix'!B$48*'Corr. Matrix'!B56 -> 0.001489239189 | K21: ='Corr. Matrix'!L22*'Corr. Matrix'!B$49*'Corr. Matrix'!B56 -> 0.001778997157 | L21: ='Corr. Matrix'!M22*'Corr. Matrix'!B$50*'Corr. Matrix'!B56 -> 0.003104000231 | M21: ='Corr. Matrix'!N22*'Corr. Matrix'!B$51*'Corr. Matrix'!B56 -> 0.001903636407 | N21: ='Corr. Matrix'!O22*'Corr. Matrix'!B$52*'Corr. Matrix'!B56 -> 0.003645535547 | O21: ='Corr. Matrix'!P22*'Corr. Matrix'!B$53*'Corr. Matrix'!B56 -> 0.003258717494 | P21: ='Corr. Matrix'!Q22*'Corr. Matrix'!B$54*'Corr. Matrix'!B56 -> 0.001083066545 | Q21: ='Corr. Matrix'!R22*'Corr. Matrix'!B$55*'Corr. Matrix'!B56 -> 0.002222421143 | R21: ='Corr. Matrix'!S22*'Corr. Matrix'!B$56*'Corr. Matrix'!B56 -> 0.005548744203 | S21: =$R22 -> 0.003939986891 | T21: =$R23 -> 0.002265971197 | U21: =$R24 -> 0.000941538061 | V21: =$R25 -> 0.001011217083 | W21: =$R26 -> 0.00191561579 | X21: =$R27 -> 0.003497267147 | Y21: =$R28 -> 0.001707853318 | Z21: =$R29 -> 0.001496821742 | AA21: =$R30 -> 0.001411478393 | AB21: =$R31 -> 0.0009839813334 | AC21: =$R32 -> 0.002176241475 | AD21: =$R33 -> 0.001555077742 | AE21: =$R34 -> 0.001601278834
A22: ='Corr. Matrix'!B23 -> TSLA | B22: ='Corr. Matrix'!C23*'Corr. Matrix'!B$40*'Corr. Matrix'!B57 -> 0.002961911593 | C22: ='Corr. Matrix'!D23*'Corr. Matrix'!B$41*'Corr. Matrix'!B57 -> 0.003299319047 | D22: ='Corr. Matrix'!E23*'Corr. Matrix'!B$42*'Corr. Matrix'!B57 -> 0.005293989568 | E22: ='Corr. Matrix'!F23*'Corr. Matrix'!B$43*'Corr. Matrix'!B57 -> 0.001142513713 | F22: ='Corr. Matrix'!G23*'Corr. Matrix'!B$44*'Corr. Matrix'!B57 -> 0.006993843934 | G22: ='Corr. Matrix'!H23*'Corr. Matrix'!B$45*'Corr. Matrix'!B57 -> 0.002677212227 | H22: ='Corr. Matrix'!I23*'Corr. Matrix'!B$46*'Corr. Matrix'!B57 -> 0.004717503176 | I22: ='Corr. Matrix'!J23*'Corr. Matrix'!B$47*'Corr. Matrix'!B57 -> 0.003568393105 | J22: ='Corr. Matrix'!K23*'Corr. Matrix'!B$48*'Corr. Matrix'!B57 -> 0.003316763454 | K22: ='Corr. Matrix'!L23*'Corr. Matrix'!B$49*'Corr. Matrix'!B57 -> 0.001312004086 | L22: ='Corr. Matrix'!M23*'Corr. Matrix'!B$50*'Corr. Matrix'!B57 -> 0.003442082858 | M22: ='Corr. Matrix'!N23*'Corr. Matrix'!B$51*'Corr. Matrix'!B57 -> 0.004299865007 | N22: ='Corr. Matrix'!O23*'Corr. Matrix'!B$52*'Corr. Matrix'!B57 -> 0.003165207271 | O22: ='Corr. Matrix'!P23*'Corr. Matrix'!B$53*'Corr. Matrix'!B57 -> 0.004938185308 | P22: ='Corr. Matrix'!Q23*'Corr. Matrix'!B$54*'Corr. Matrix'!B57 -> 0.001129935597 | Q22: ='Corr. Matrix'!R23*'Corr. Matrix'!B$55*'Corr. Matrix'!B57 -> 0.002466652627 | R22: ='Corr. Matrix'!S23*'Corr. Matrix'!B$56*'Corr. Matrix'!B57 -> 0.003939986891 | S22: ='Corr. Matrix'!T23*'Corr. Matrix'!B$57*'Corr. Matrix'!B57 -> 0.02803825644 | T22: =$S23 -> 0.0007189144151 | U22: =$S24 -> 0.001412916174 | V22: =$S25 -> 0.001916718989 | W22: =$S26 -> 0.003427932283 | X22: =$S27 -> 0.003815819454 | Y22: =$S28 -> 0.002500979267 | Z22: =$S29 -> 0.002956823555 | AA22: =$S30 -> 0.00197275227 | AB22: =$S31 -> 0.001550789651 | AC22: =$S32 -> 0.002831397664 | AD22: =$S33 -> 0.003122874994 | AE22: =$S34 -> 0.003112472134
A23: ='Corr. Matrix'!B24 -> TRV | B23: ='Corr. Matrix'!C24*'Corr. Matrix'!B$40*'Corr. Matrix'!B58 -> 0.0007413586058 | C23: ='Corr. Matrix'!D24*'Corr. Matrix'!B$41*'Corr. Matrix'!B58 -> 0.00293626631 | D23: ='Corr. Matrix'!E24*'Corr. Matrix'!B$42*'Corr. Matrix'!B58 -> 0.003919047519 | E23: ='Corr. Matrix'!F24*'Corr. Matrix'!B$43*'Corr. Matrix'!B58 -> 0.00157147948 | F23: ='Corr. Matrix'!G24*'Corr. Matrix'!B$44*'Corr. Matrix'!B58 -> 0.001278650656 | G23: ='Corr. Matrix'!H24*'Corr. Matrix'!B$45*'Corr. Matrix'!B58 -> 0.0007047106757 | H23: ='Corr. Matrix'!I24*'Corr. Matrix'!B$46*'Corr. Matrix'!B58 -> 0.002089856256 | I23: ='Corr. Matrix'!J24*'Corr. Matrix'!B$47*'Corr. Matrix'!B58 -> 0.002335536036 | J23: ='Corr. Matrix'!K24*'Corr. Matrix'!B$48*'Corr. Matrix'!B58 -> 0.001293230915 | K23: ='Corr. Matrix'!L24*'Corr. Matrix'!B$49*'Corr. Matrix'!B58 -> 0.001368393338 | L23: ='Corr. Matrix'!M24*'Corr. Matrix'!B$50*'Corr. Matrix'!B58 -> 0.002229603875 | M23: ='Corr. Matrix'!N24*'Corr. Matrix'!B$51*'Corr. Matrix'!B58 -> 0.001809452752 | N23: ='Corr. Matrix'!O24*'Corr. Matrix'!B$52*'Corr. Matrix'!B58 -> 0.002432235733 | O23: ='Corr. Matrix'!P24*'Corr. Matrix'!B$53*'Corr. Matrix'!B58 -> 0.002256996303 | P23: ='Corr. Matrix'!Q24*'Corr. Matrix'!B$54*'Corr. Matrix'!B58 -> 0.0009860579559 | Q23: ='Corr. Matrix'!R24*'Corr. Matrix'!B$55*'Corr. Matrix'!B58 -> 0.002007809248 | R23: ='Corr. Matrix'!S24*'Corr. Matrix'!B$56*'Corr. Matrix'!B58 -> 0.002265971197 | S23: ='Corr. Matrix'!T24*'Corr. Matrix'!B$57*'Corr. Matrix'!B58 -> 0.0007189144151 | T23: ='Corr. Matrix'!U24*'Corr. Matrix'!B$58*'Corr. Matrix'!B58 -> 0.00321142995 | U23: =$T24 -> 0.0009446627592 | V23: =$T25 -> 0.0005360158665 | W23: =$T26 -> 0.001313164516 | X23: =$T27 -> 0.00277143962 | Y23: =$T28 -> 0.0006878162634 | Z23: =$T29 -> 0.001718760777 | AA23: =$T30 -> 0.0004280077329 | AB23: =$T31 -> 0.0005823448968 | AC23: =$T32 -> 0.001479505154 | AD23: =$T33 -> 0.001315446327 | AE23: =$T34 -> 0.0009432048533
A24: ='Corr. Matrix'!B25 -> VZ | B24: ='Corr. Matrix'!C25*'Corr. Matrix'!B$40*'Corr. Matrix'!B59 -> -0.0004303321374 | C24: ='Corr. Matrix'!D25*'Corr. Matrix'!B$41*'Corr. Matrix'!B59 -> 0.0006587919042 | D24: ='Corr. Matrix'!E25*'Corr. Matrix'!B$42*'Corr. Matrix'!B59 -> 0.001174183089 | E24: ='Corr. Matrix'!F25*'Corr. Matrix'!B$43*'Corr. Matrix'!B59 -> 0.0006316687045 | F24: ='Corr. Matrix'!G25*'Corr. Matrix'!B$44*'Corr. Matrix'!B59 -> 0.0008598472485 | G24: ='Corr. Matrix'!H25*'Corr. Matrix'!B$45*'Corr. Matrix'!B59 -> 0.0008574800001 | H24: ='Corr. Matrix'!I25*'Corr. Matrix'!B$46*'Corr. Matrix'!B59 -> 0.001061610067 | I24: ='Corr. Matrix'!J25*'Corr. Matrix'!B$47*'Corr. Matrix'!B59 -> 0.001387242577 | J24: ='Corr. Matrix'!K25*'Corr. Matrix'!B$48*'Corr. Matrix'!B59 -> 0.0005177073912 | K24: ='Corr. Matrix'!L25*'Corr. Matrix'!B$49*'Corr. Matrix'!B59 -> 0.0009196787342 | L24: ='Corr. Matrix'!M25*'Corr. Matrix'!B$50*'Corr. Matrix'!B59 -> 0.001771975801 | M24: ='Corr. Matrix'!N25*'Corr. Matrix'!B$51*'Corr. Matrix'!B59 -> 0.0004114273638 | N24: ='Corr. Matrix'!O25*'Corr. Matrix'!B$52*'Corr. Matrix'!B59 -> 0.0007408943988 | O24: ='Corr. Matrix'!P25*'Corr. Matrix'!B$53*'Corr. Matrix'!B59 -> 0.0001082889087 | P24: ='Corr. Matrix'!Q25*'Corr. Matrix'!B$54*'Corr. Matrix'!B59 -> 0.00152182704 | Q24: ='Corr. Matrix'!R25*'Corr. Matrix'!B$55*'Corr. Matrix'!B59 -> 0.0007716074786 | R24: ='Corr. Matrix'!S25*'Corr. Matrix'!B$56*'Corr. Matrix'!B59 -> 0.000941538061 | S24: ='Corr. Matrix'!T25*'Corr. Matrix'!B$57*'Corr. Matrix'!B59 -> 0.001412916174 | T24: ='Corr. Matrix'!U25*'Corr. Matrix'!B$58*'Corr. Matrix'!B59 -> 0.0009446627592 | U24: ='Corr. Matrix'!V25*'Corr. Matrix'!B$59*'Corr. Matrix'!B59 -> 0.002411715106 | V24: =$U25 -> 0.001544712017 | W24: =$U26 -> 0.0009208630801 | X24: =$U27 -> 0.001556147952 | Y24: =$U28 -> 0.0009792280907 | Z24: =$U29 -> 0.001048296019 | AA24: =$U30 -> 0.001276217011 | AB24: =$U31 -> 0.001162441722 | AC24: =$U32 -> 0.001002140485 | AD24: =$U33 -> 0.001041458252 | AE24: =$U34 -> 0.001178696237
A25: ='Corr. Matrix'!B26 -> KR | B25: ='Corr. Matrix'!C26*'Corr. Matrix'!B$40*'Corr. Matrix'!B60 -> 0.001694132114 | C25: ='Corr. Matrix'!D26*'Corr. Matrix'!B$41*'Corr. Matrix'!B60 -> 0.0001089371907 | D25: ='Corr. Matrix'!E26*'Corr. Matrix'!B$42*'Corr. Matrix'!B60 -> 0.0007736898653 | E25: ='Corr. Matrix'!F26*'Corr. Matrix'!B$43*'Corr. Matrix'!B60 -> 1.697987364e-05 | F25: ='Corr. Matrix'!G26*'Corr. Matrix'!B$44*'Corr. Matrix'!B60 -> 0.000747869419 | G25: ='Corr. Matrix'!H26*'Corr. Matrix'!B$45*'Corr. Matrix'!B60 -> 7.690034812e-05 | H25: ='Corr. Matrix'!I26*'Corr. Matrix'!B$46*'Corr. Matrix'!B60 -> -0.0002821695174 | I25: ='Corr. Matrix'!J26*'Corr. Matrix'!B$47*'Corr. Matrix'!B60 -> -7.043584426e-05 | J25: ='Corr. Matrix'!K26*'Corr. Matrix'!B$48*'Corr. Matrix'!B60 -> 0.0009025321599 | K25: ='Corr. Matrix'!L26*'Corr. Matrix'!B$49*'Corr. Matrix'!B60 -> 0.0004643256451 | L25: ='Corr. Matrix'!M26*'Corr. Matrix'!B$50*'Corr. Matrix'!B60 -> 0.0003684388335 | M25: ='Corr. Matrix'!N26*'Corr. Matrix'!B$51*'Corr. Matrix'!B60 -> 0.0007028875715 | N25: ='Corr. Matrix'!O26*'Corr. Matrix'!B$52*'Corr. Matrix'!B60 -> 0.0002909659964 | O25: ='Corr. Matrix'!P26*'Corr. Matrix'!B$53*'Corr. Matrix'!B60 -> -0.0007704347751 | P25: ='Corr. Matrix'!Q26*'Corr. Matrix'!B$54*'Corr. Matrix'!B60 -> 0.001952681085 | Q25: ='Corr. Matrix'!R26*'Corr. Matrix'!B$55*'Corr. Matrix'!B60 -> -0.0001561604468 | R25: ='Corr. Matrix'!S26*'Corr. Matrix'!B$56*'Corr. Matrix'!B60 -> 0.001011217083 | S25: ='Corr. Matrix'!T26*'Corr. Matrix'!B$57*'Corr. Matrix'!B60 -> 0.001916718989 | T25: ='Corr. Matrix'!U26*'Corr. Matrix'!B$58*'Corr. Matrix'!B60 -> 0.0005360158665 | U25: ='Corr. Matrix'!V26*'Corr. Matrix'!B$59*'Corr. Matrix'!B60 -> 0.001544712017 | V25: ='Corr. Matrix'!W26*'Corr. Matrix'!B$60*'Corr. Matrix'!B60 -> 0.006541487465 | W25: =$V26 -> 0.0007253400776 | X25: =$V27 -> 0.0006244055882 | Y25: =$V28 -> 0.0006389983406 | Z25: =$V29 -> 0.0005986379435 | AA25: =$V30 -> -0.0001095801678 | AB25: =$V31 -> 0.0002775155828 | AC25: =$V32 -> -6.96953303e-05 | AD25: =$V33 -> 4.98704117e-05 | AE25: =$V34 -> 0.0004741401907
A26: ='Corr. Matrix'!B27 -> HD | B26: ='Corr. Matrix'!C27*'Corr. Matrix'!B$40*'Corr. Matrix'!B61 -> 0.001089648538 | C26: ='Corr. Matrix'!D27*'Corr. Matrix'!B$41*'Corr. Matrix'!B61 -> 0.002411480038 | D26: ='Corr. Matrix'!E27*'Corr. Matrix'!B$42*'Corr. Matrix'!B61 -> 0.002906856606 | E26: ='Corr. Matrix'!F27*'Corr. Matrix'!B$43*'Corr. Matrix'!B61 -> 0.001971953883 | F26: ='Corr. Matrix'!G27*'Corr. Matrix'!B$44*'Corr. Matrix'!B61 -> 0.001757085867 | G26: ='Corr. Matrix'!H27*'Corr. Matrix'!B$45*'Corr. Matrix'!B61 -> 0.001023029784 | H26: ='Corr. Matrix'!I27*'Corr. Matrix'!B$46*'Corr. Matrix'!B61 -> 0.002348758383 | I26: ='Corr. Matrix'!J27*'Corr. Matrix'!B$47*'Corr. Matrix'!B61 -> 0.002356414648 | J26: ='Corr. Matrix'!K27*'Corr. Matrix'!B$48*'Corr. Matrix'!B61 -> 0.0015246893 | K26: ='Corr. Matrix'!L27*'Corr. Matrix'!B$49*'Corr. Matrix'!B61 -> 0.001529797908 | L26: ='Corr. Matrix'!M27*'Corr. Matrix'!B$50*'Corr. Matrix'!B61 -> 0.002688534359 | M26: ='Corr. Matrix'!N27*'Corr. Matrix'!B$51*'Corr. Matrix'!B61 -> 0.00223615438 | N26: ='Corr. Matrix'!O27*'Corr. Matrix'!B$52*'Corr. Matrix'!B61 -> 0.001979065721 | O26: ='Corr. Matrix'!P27*'Corr. Matrix'!B$53*'Corr. Matrix'!B61 -> 0.0011756001 | P26: ='Corr. Matrix'!Q27*'Corr. Matrix'!B$54*'Corr. Matrix'!B61 -> 0.0009952176396 | Q26: ='Corr. Matrix'!R27*'Corr. Matrix'!B$55*'Corr. Matrix'!B61 -> 0.002722425693 | R26: ='Corr. Matrix'!S27*'Corr. Matrix'!B$56*'Corr. Matrix'!B61 -> 0.00191561579 | S26: ='Corr. Matrix'!T27*'Corr. Matrix'!B$57*'Corr. Matrix'!B61 -> 0.003427932283 | T26: ='Corr. Matrix'!U27*'Corr. Matrix'!B$58*'Corr. Matrix'!B61 -> 0.001313164516 | U26: ='Corr. Matrix'!V27*'Corr. Matrix'!B$59*'Corr. Matrix'!B61 -> 0.0009208630801 | V26: ='Corr. Matrix'!W27*'Corr. Matrix'!B$60*'Corr. Matrix'!B61 -> 0.0007253400776 | W26: ='Corr. Matrix'!X27*'Corr. Matrix'!B$61*'Corr. Matrix'!B61 -> 0.003502959836 | X26: =$W27 -> 0.002593489392 | Y26: =$W28 -> 0.001060069332 | Z26: =$W29 -> 0.001696359979 | AA26: =$W30 -> 0.001235430257 | AB26: =$W31 -> 0.0006689745031 | AC26: =$W32 -> 0.001214749541 | AD26: =$W33 -> 0.001512428767 | AE26: =$W34 -> 0.001009444754
A27: ='Corr. Matrix'!B28 -> XOM | B27: ='Corr. Matrix'!C28*'Corr. Matrix'!B$40*'Corr. Matrix'!B62 -> 0.001332491155 | C27: ='Corr. Matrix'!D28*'Corr. Matrix'!B$41*'Corr. Matrix'!B62 -> 0.004465167171 | D27: ='Corr. Matrix'!E28*'Corr. Matrix'!B$42*'Corr. Matrix'!B62 -> 0.005841446741 | E27: ='Corr. Matrix'!F28*'Corr. Matrix'!B$43*'Corr. Matrix'!B62 -> 0.002635408595 | F27: ='Corr. Matrix'!G28*'Corr. Matrix'!B$44*'Corr. Matrix'!B62 -> 0.002163402455 | G27: ='Corr. Matrix'!H28*'Corr. Matrix'!B$45*'Corr. Matrix'!B62 -> 0.002654391589 | H27: ='Corr. Matrix'!I28*'Corr. Matrix'!B$46*'Corr. Matrix'!B62 -> 0.003771402649 | I27: ='Corr. Matrix'!J28*'Corr. Matrix'!B$47*'Corr. Matrix'!B62 -> 0.003150056111 | J27: ='Corr. Matrix'!K28*'Corr. Matrix'!B$48*'Corr. Matrix'!B62 -> 0.001769774295 | K27: ='Corr. Matrix'!L28*'Corr. Matrix'!B$49*'Corr. Matrix'!B62 -> 0.002794071244 | L27: ='Corr. Matrix'!M28*'Corr. Matrix'!B$50*'Corr. Matrix'!B62 -> 0.005562794388 | M27: ='Corr. Matrix'!N28*'Corr. Matrix'!B$51*'Corr. Matrix'!B62 -> 0.00238240071 | N27: ='Corr. Matrix'!O28*'Corr. Matrix'!B$52*'Corr. Matrix'!B62 -> 0.00382793058 | O27: ='Corr. Matrix'!P28*'Corr. Matrix'!B$53*'Corr. Matrix'!B62 -> 0.003705622153 | P27: ='Corr. Matrix'!Q28*'Corr. Matrix'!B$54*'Corr. Matrix'!B62 -> 0.00109348591 | Q27: ='Corr. Matrix'!R28*'Corr. Matrix'!B$55*'Corr. Matrix'!B62 -> 0.003300970945 | R27: ='Corr. Matrix'!S28*'Corr. Matrix'!B$56*'Corr. Matrix'!B62 -> 0.003497267147 | S27: ='Corr. Matrix'!T28*'Corr. Matrix'!B$57*'Corr. Matrix'!B62 -> 0.003815819454 | T27: ='Corr. Matrix'!U28*'Corr. Matrix'!B$58*'Corr. Matrix'!B62 -> 0.00277143962 | U27: ='Corr. Matrix'!V28*'Corr. Matrix'!B$59*'Corr. Matrix'!B62 -> 0.001556147952 | V27: ='Corr. Matrix'!W28*'Corr. Matrix'!B$60*'Corr. Matrix'!B62 -> 0.0006244055882 | W27: ='Corr. Matrix'!X28*'Corr. Matrix'!B$61*'Corr. Matrix'!B62 -> 0.002593489392 | X27: ='Corr. Matrix'!Y28*'Corr. Matrix'!B$62*'Corr. Matrix'!B62 -> 0.006673080787 | Y27: =$X28 -> 0.001821132489 | Z27: =$X29 -> 0.002891817075 | AA27: =$X30 -> 0.001985571901 | AB27: =$X31 -> 0.0008024485893 | AC27: =$X32 -> 0.001712953336 | AD27: =$X33 -> 0.001777001292 | AE27: =$X34 -> 0.002265944689
A28: ='Corr. Matrix'!B29 -> UNH | B28: ='Corr. Matrix'!C29*'Corr. Matrix'!B$40*'Corr. Matrix'!B63 -> 0.001066432507 | C28: ='Corr. Matrix'!D29*'Corr. Matrix'!B$41*'Corr. Matrix'!B63 -> 0.0008987169168 | D28: ='Corr. Matrix'!E29*'Corr. Matrix'!B$42*'Corr. Matrix'!B63 -> 0.001249043634 | E28: ='Corr. Matrix'!F29*'Corr. Matrix'!B$43*'Corr. Matrix'!B63 -> 0.001570281908 | F28: ='Corr. Matrix'!G29*'Corr. Matrix'!B$44*'Corr. Matrix'!B63 -> 0.001228898699 | G28: ='Corr. Matrix'!H29*'Corr. Matrix'!B$45*'Corr. Matrix'!B63 -> 0.0006648849669 | H28: ='Corr. Matrix'!I29*'Corr. Matrix'!B$46*'Corr. Matrix'!B63 -> 0.001886734461 | I28: ='Corr. Matrix'!J29*'Corr. Matrix'!B$47*'Corr. Matrix'!B63 -> 0.001330570586 | J28: ='Corr. Matrix'!K29*'Corr. Matrix'!B$48*'Corr. Matrix'!B63 -> 0.0008192766368 | K28: ='Corr. Matrix'!L29*'Corr. Matrix'!B$49*'Corr. Matrix'!B63 -> 0.001206068248 | L28: ='Corr. Matrix'!M29*'Corr. Matrix'!B$50*'Corr. Matrix'!B63 -> 0.002156560445 | M28: ='Corr. Matrix'!N29*'Corr. Matrix'!B$51*'Corr. Matrix'!B63 -> 0.001120221072 | N28: ='Corr. Matrix'!O29*'Corr. Matrix'!B$52*'Corr. Matrix'!B63 -> 0.001733615435 | O28: ='Corr. Matrix'!P29*'Corr. Matrix'!B$53*'Corr. Matrix'!B63 -> 0.0007556924732 | P28: ='Corr. Matrix'!Q29*'Corr. Matrix'!B$54*'Corr. Matrix'!B63 -> 0.0009083759634 | Q28: ='Corr. Matrix'!R29*'Corr. Matrix'!B$55*'Corr. Matrix'!B63 -> 0.001268517987 | R28: ='Corr. Matrix'!S29*'Corr. Matrix'!B$56*'Corr. Matrix'!B63 -> 0.001707853318 | S28: ='Corr. Matrix'!T29*'Corr. Matrix'!B$57*'Corr. Matrix'!B63 -> 0.002500979267 | T28: ='Corr. Matrix'!U29*'Corr. Matrix'!B$58*'Corr. Matrix'!B63 -> 0.0006878162634 | U28: ='Corr. Matrix'!V29*'Corr. Matrix'!B$59*'Corr. Matrix'!B63 -> 0.0009792280907 | V28: ='Corr. Matrix'!W29*'Corr. Matrix'!B$60*'Corr. Matrix'!B63 -> 0.0006389983406 | W28: ='Corr. Matrix'!X29*'Corr. Matrix'!B$61*'Corr. Matrix'!B63 -> 0.001060069332 | X28: ='Corr. Matrix'!Y29*'Corr. Matrix'!B$62*'Corr. Matrix'!B63 -> 0.001821132489 | Y28: ='Corr. Matrix'!Z29*'Corr. Matrix'!B$63*'Corr. Matrix'!B63 -> 0.003474105159 | Z28: =$Y29 -> 0.001529349392 | AA28: =$Y30 -> 0.001683278498 | AB28: =$Y31 -> 0.0002531898292 | AC28: =$Y32 -> 0.0009366517437 | AD28: =$Y33 -> 0.0008576914596 | AE28: =$Y34 -> 0.001231811015
A29: ='Corr. Matrix'!B30 -> MMM | B29: ='Corr. Matrix'!C30*'Corr. Matrix'!B$40*'Corr. Matrix'!B64 -> 0.0007717206042 | C29: ='Corr. Matrix'!D30*'Corr. Matrix'!B$41*'Corr. Matrix'!B64 -> 0.001556662173 | D29: ='Corr. Matrix'!E30*'Corr. Matrix'!B$42*'Corr. Matrix'!B64 -> 0.002809000607 | E29: ='Corr. Matrix'!F30*'Corr. Matrix'!B$43*'Corr. Matrix'!B64 -> 0.002805770737 | F29: ='Corr. Matrix'!G30*'Corr. Matrix'!B$44*'Corr. Matrix'!B64 -> 0.001852493125 | G29: ='Corr. Matrix'!H30*'Corr. Matrix'!B$45*'Corr. Matrix'!B64 -> 0.002057093066 | H29: ='Corr. Matrix'!I30*'Corr. Matrix'!B$46*'Corr. Matrix'!B64 -> 0.001931442984 | I29: ='Corr. Matrix'!J30*'Corr. Matrix'!B$47*'Corr. Matrix'!B64 -> 0.001546986662 | J29: ='Corr. Matrix'!K30*'Corr. Matrix'!B$48*'Corr. Matrix'!B64 -> 0.001329713299 | K29: ='Corr. Matrix'!L30*'Corr. Matrix'!B$49*'Corr. Matrix'!B64 -> 0.001739906577 | L29: ='Corr. Matrix'!M30*'Corr. Matrix'!B$50*'Corr. Matrix'!B64 -> 0.002496351915 | M29: ='Corr. Matrix'!N30*'Corr. Matrix'!B$51*'Corr. Matrix'!B64 -> 0.001866818794 | N29: ='Corr. Matrix'!O30*'Corr. Matrix'!B$52*'Corr. Matrix'!B64 -> 0.002219680294 | O29: ='Corr. Matrix'!P30*'Corr. Matrix'!B$53*'Corr. Matrix'!B64 -> 0.001345836576 | P29: ='Corr. Matrix'!Q30*'Corr. Matrix'!B$54*'Corr. Matrix'!B64 -> 0.001045829699 | Q29: ='Corr. Matrix'!R30*'Corr. Matrix'!B$55*'Corr. Matrix'!B64 -> 0.002634590038 | R29: ='Corr. Matrix'!S30*'Corr. Matrix'!B$56*'Corr. Matrix'!B64 -> 0.001496821742 | S29: ='Corr. Matrix'!T30*'Corr. Matrix'!B$57*'Corr. Matrix'!B64 -> 0.002956823555 | T29: ='Corr. Matrix'!U30*'Corr. Matrix'!B$58*'Corr. Matrix'!B64 -> 0.001718760777 | U29: ='Corr. Matrix'!V30*'Corr. Matrix'!B$59*'Corr. Matrix'!B64 -> 0.001048296019 | V29: ='Corr. Matrix'!W30*'Corr. Matrix'!B$60*'Corr. Matrix'!B64 -> 0.0005986379435 | W29: ='Corr. Matrix'!X30*'Corr. Matrix'!B$61*'Corr. Matrix'!B64 -> 0.001696359979 | X29: ='Corr. Matrix'!Y30*'Corr. Matrix'!B$62*'Corr. Matrix'!B64 -> 0.002891817075 | Y29: ='Corr. Matrix'!Z30*'Corr. Matrix'!B$63*'Corr. Matrix'!B64 -> 0.001529349392 | Z29: ='Corr. Matrix'!AA30*'Corr. Matrix'!B$64*'Corr. Matrix'!B64 -> 0.003423717852 | AA29: =$Z30 -> 0.001331389129 | AB29: =$Z31 -> 0.0008008790855 | AC29: =$Z32 -> 0.0008135839108 | AD29: =$Z33 -> 0.0008795700226 | AE29: =$Z34 -> 0.001664473579
A30: ='Corr. Matrix'!B31 -> PFE | B30: ='Corr. Matrix'!C31*'Corr. Matrix'!B$40*'Corr. Matrix'!B65 -> -0.0002558498374 | C30: ='Corr. Matrix'!D31*'Corr. Matrix'!B$41*'Corr. Matrix'!B65 -> 0.000942728214 | D30: ='Corr. Matrix'!E31*'Corr. Matrix'!B$42*'Corr. Matrix'!B65 -> 0.0006664203187 | E30: ='Corr. Matrix'!F31*'Corr. Matrix'!B$43*'Corr. Matrix'!B65 -> 0.001215154724 | F30: ='Corr. Matrix'!G31*'Corr. Matrix'!B$44*'Corr. Matrix'!B65 -> 0.0005335184724 | G30: ='Corr. Matrix'!H31*'Corr. Matrix'!B$45*'Corr. Matrix'!B65 -> 0.0002903297999 | H30: ='Corr. Matrix'!I31*'Corr. Matrix'!B$46*'Corr. Matrix'!B65 -> 0.00166911135 | I30: ='Corr. Matrix'!J31*'Corr. Matrix'!B$47*'Corr. Matrix'!B65 -> 0.001402444791 | J30: ='Corr. Matrix'!K31*'Corr. Matrix'!B$48*'Corr. Matrix'!B65 -> 0.0002691256448 | K30: ='Corr. Matrix'!L31*'Corr. Matrix'!B$49*'Corr. Matrix'!B65 -> 0.001771756704 | L30: ='Corr. Matrix'!M31*'Corr. Matrix'!B$50*'Corr. Matrix'!B65 -> 0.002240174079 | M30: ='Corr. Matrix'!N31*'Corr. Matrix'!B$51*'Corr. Matrix'!B65 -> 0.0006251617716 | N30: ='Corr. Matrix'!O31*'Corr. Matrix'!B$52*'Corr. Matrix'!B65 -> 0.001647512757 | O30: ='Corr. Matrix'!P31*'Corr. Matrix'!B$53*'Corr. Matrix'!B65 -> 0.0001038321234 | P30: ='Corr. Matrix'!Q31*'Corr. Matrix'!B$54*'Corr. Matrix'!B65 -> 0.00105308458 | Q30: ='Corr. Matrix'!R31*'Corr. Matrix'!B$55*'Corr. Matrix'!B65 -> 0.001373294149 | R30: ='Corr. Matrix'!S31*'Corr. Matrix'!B$56*'Corr. Matrix'!B65 -> 0.001411478393 | S30: ='Corr. Matrix'!T31*'Corr. Matrix'!B$57*'Corr. Matrix'!B65 -> 0.00197275227 | T30: ='Corr. Matrix'!U31*'Corr. Matrix'!B$58*'Corr. Matrix'!B65 -> 0.0004280077329 | U30: ='Corr. Matrix'!V31*'Corr. Matrix'!B$59*'Corr. Matrix'!B65 -> 0.001276217011 | V30: ='Corr. Matrix'!W31*'Corr. Matrix'!B$60*'Corr. Matrix'!B65 -> -0.0001095801678 | W30: ='Corr. Matrix'!X31*'Corr. Matrix'!B$61*'Corr. Matrix'!B65 -> 0.001235430257 | X30: ='Corr. Matrix'!Y31*'Corr. Matrix'!B$62*'Corr. Matrix'!B65 -> 0.001985571901 | Y30: ='Corr. Matrix'!Z31*'Corr. Matrix'!B$63*'Corr. Matrix'!B65 -> 0.001683278498 | Z30: ='Corr. Matrix'!AA31*'Corr. Matrix'!B$64*'Corr. Matrix'!B65 -> 0.001331389129 | AA30: ='Corr. Matrix'!AB31*'Corr. Matrix'!B$65*'Corr. Matrix'!B65 -> 0.003429323721 | AB30: =$AA31 -> 0.000572633238 | AC30: =$AA32 -> 0.00069502019 | AD30: =$AA33 -> 0.000732117768 | AE30: =$AA34 -> 0.001662103748
A31: ='Corr. Matrix'!B32 -> PG | B31: ='Corr. Matrix'!C32*'Corr. Matrix'!B$40*'Corr. Matrix'!B66 -> -0.0004914065154 | C31: ='Corr. Matrix'!D32*'Corr. Matrix'!B$41*'Corr. Matrix'!B66 -> 0.0008637826629 | D31: ='Corr. Matrix'!E32*'Corr. Matrix'!B$42*'Corr. Matrix'!B66 -> 0.0006132843872 | E31: ='Corr. Matrix'!F32*'Corr. Matrix'!B$43*'Corr. Matrix'!B66 -> 0.0003115635138 | F31: ='Corr. Matrix'!G32*'Corr. Matrix'!B$44*'Corr. Matrix'!B66 -> 0.001361585978 | G31: ='Corr. Matrix'!H32*'Corr. Matrix'!B$45*'Corr. Matrix'!B66 -> 0.000147858756 | H31: ='Corr. Matrix'!I32*'Corr. Matrix'!B$46*'Corr. Matrix'!B66 -> 0.0007648922458 | I31: ='Corr. Matrix'!J32*'Corr. Matrix'!B$47*'Corr. Matrix'!B66 -> 0.001253880586 | J31: ='Corr. Matrix'!K32*'Corr. Matrix'!B$48*'Corr. Matrix'!B66 -> 0.0004254009771 | K31: ='Corr. Matrix'!L32*'Corr. Matrix'!B$49*'Corr. Matrix'!B66 -> 0.0005590630386 | L31: ='Corr. Matrix'!M32*'Corr. Matrix'!B$50*'Corr. Matrix'!B66 -> 0.0008313768703 | M31: ='Corr. Matrix'!N32*'Corr. Matrix'!B$51*'Corr. Matrix'!B66 -> 0.0006982509802 | N31: ='Corr. Matrix'!O32*'Corr. Matrix'!B$52*'Corr. Matrix'!B66 -> 0.0004829822929 | O31: ='Corr. Matrix'!P32*'Corr. Matrix'!B$53*'Corr. Matrix'!B66 -> 0.0002571339856 | P31: ='Corr. Matrix'!Q32*'Corr. Matrix'!B$54*'Corr. Matrix'!B66 -> 0.0008526411252 | Q31: ='Corr. Matrix'!R32*'Corr. Matrix'!B$55*'Corr. Matrix'!B66 -> 0.0009516497557 | R31: ='Corr. Matrix'!S32*'Corr. Matrix'!B$56*'Corr. Matrix'!B66 -> 0.0009839813334 | S31: ='Corr. Matrix'!T32*'Corr. Matrix'!B$57*'Corr. Matrix'!B66 -> 0.001550789651 | T31: ='Corr. Matrix'!U32*'Corr. Matrix'!B$58*'Corr. Matrix'!B66 -> 0.0005823448968 | U31: ='Corr. Matrix'!V32*'Corr. Matrix'!B$59*'Corr. Matrix'!B66 -> 0.001162441722 | V31: ='Corr. Matrix'!W32*'Corr. Matrix'!B$60*'Corr. Matrix'!B66 -> 0.0002775155828 | W31: ='Corr. Matrix'!X32*'Corr. Matrix'!B$61*'Corr. Matrix'!B66 -> 0.0006689745031 | X31: ='Corr. Matrix'!Y32*'Corr. Matrix'!B$62*'Corr. Matrix'!B66 -> 0.0008024485893 | Y31: ='Corr. Matrix'!Z32*'Corr. Matrix'!B$63*'Corr. Matrix'!B66 -> 0.0002531898292 | Z31: ='Corr. Matrix'!AA32*'Corr. Matrix'!B$64*'Corr. Matrix'!B66 -> 0.0008008790855 | AA31: ='Corr. Matrix'!AB32*'Corr. Matrix'!B$65*'Corr. Matrix'!B66 -> 0.000572633238 | AB31: ='Corr. Matrix'!AC32*'Corr. Matrix'!B$66*'Corr. Matrix'!B66 -> 0.001800261285 | AC31: =$AB32 -> 0.001079419749 | AD31: =$AB33 -> 0.0008079011276 | AE31: =$AB34 -> 0.000816048547
A32: ='Corr. Matrix'!B33 -> KO | B32: ='Corr. Matrix'!C33*'Corr. Matrix'!B$40*'Corr. Matrix'!B67 -> 0.0003239139083 | C32: ='Corr. Matrix'!D33*'Corr. Matrix'!B$41*'Corr. Matrix'!B67 -> 0.001560641444 | D32: ='Corr. Matrix'!E33*'Corr. Matrix'!B$42*'Corr. Matrix'!B67 -> 0.0027112399 | E32: ='Corr. Matrix'!F33*'Corr. Matrix'!B$43*'Corr. Matrix'!B67 -> 0.0005879002861 | F32: ='Corr. Matrix'!G33*'Corr. Matrix'!B$44*'Corr. Matrix'!B67 -> 0.001207247063 | G32: ='Corr. Matrix'!H33*'Corr. Matrix'!B$45*'Corr. Matrix'!B67 -> 0.0002952374008 | H32: ='Corr. Matrix'!I33*'Corr. Matrix'!B$46*'Corr. Matrix'!B67 -> 0.001895482711 | I32: ='Corr. Matrix'!J33*'Corr. Matrix'!B$47*'Corr. Matrix'!B67 -> 0.002149901389 | J32: ='Corr. Matrix'!K33*'Corr. Matrix'!B$48*'Corr. Matrix'!B67 -> 0.0008289072257 | K32: ='Corr. Matrix'!L33*'Corr. Matrix'!B$49*'Corr. Matrix'!B67 -> 0.0004318028459 | L32: ='Corr. Matrix'!M33*'Corr. Matrix'!B$50*'Corr. Matrix'!B67 -> 0.001708675832 | M32: ='Corr. Matrix'!N33*'Corr. Matrix'!B$51*'Corr. Matrix'!B67 -> 0.001438595727 | N32: ='Corr. Matrix'!O33*'Corr. Matrix'!B$52*'Corr. Matrix'!B67 -> 0.001614220813 | O32: ='Corr. Matrix'!P33*'Corr. Matrix'!B$53*'Corr. Matrix'!B67 -> 0.001201226271 | P32: ='Corr. Matrix'!Q33*'Corr. Matrix'!B$54*'Corr. Matrix'!B67 -> 0.0008228516949 | Q32: ='Corr. Matrix'!R33*'Corr. Matrix'!B$55*'Corr. Matrix'!B67 -> 0.001344597351 | R32: ='Corr. Matrix'!S33*'Corr. Matrix'!B$56*'Corr. Matrix'!B67 -> 0.002176241475 | S32: ='Corr. Matrix'!T33*'Corr. Matrix'!B$57*'Corr. Matrix'!B67 -> 0.002831397664 | T32: ='Corr. Matrix'!U33*'Corr. Matrix'!B$58*'Corr. Matrix'!B67 -> 0.001479505154 | U32: ='Corr. Matrix'!V33*'Corr. Matrix'!B$59*'Corr. Matrix'!B67 -> 0.001002140485 | V32: ='Corr. Matrix'!W33*'Corr. Matrix'!B$60*'Corr. Matrix'!B67 -> -6.96953303e-05 | W32: ='Corr. Matrix'!X33*'Corr. Matrix'!B$61*'Corr. Matrix'!B67 -> 0.001214749541 | X32: ='Corr. Matrix'!Y33*'Corr. Matrix'!B$62*'Corr. Matrix'!B67 -> 0.001712953336 | Y32: ='Corr. Matrix'!Z33*'Corr. Matrix'!B$63*'Corr. Matrix'!B67 -> 0.0009366517437 | Z32: ='Corr. Matrix'!AA33*'Corr. Matrix'!B$64*'Corr. Matrix'!B67 -> 0.0008135839108 | AA32: ='Corr. Matrix'!AB33*'Corr. Matrix'!B$65*'Corr. Matrix'!B67 -> 0.00069502019 | AB32: ='Corr. Matrix'!AC33*'Corr. Matrix'!B$66*'Corr. Matrix'!B67 -> 0.001079419749 | AC32: ='Corr. Matrix'!AD33*'Corr. Matrix'!B$67*'Corr. Matrix'!B67 -> 0.002431807607 | AD32: =AC33 -> 0.001598416403 | AE32: =AC34 -> 0.001099864972
A33: ='Corr. Matrix'!B34 -> MCD | B33: ='Corr. Matrix'!C34*'Corr. Matrix'!B$40*'Corr. Matrix'!B68 -> -0.0002841282133 | C33: ='Corr. Matrix'!D34*'Corr. Matrix'!B$41*'Corr. Matrix'!B68 -> 0.001920901071 | D33: ='Corr. Matrix'!E34*'Corr. Matrix'!B$42*'Corr. Matrix'!B68 -> 0.002387300191 | E33: ='Corr. Matrix'!F34*'Corr. Matrix'!B$43*'Corr. Matrix'!B68 -> 0.0007261667647 | F33: ='Corr. Matrix'!G34*'Corr. Matrix'!B$44*'Corr. Matrix'!B68 -> 0.001130115551 | G33: ='Corr. Matrix'!H34*'Corr. Matrix'!B$45*'Corr. Matrix'!B68 -> 0.0006243651106 | H33: ='Corr. Matrix'!I34*'Corr. Matrix'!B$46*'Corr. Matrix'!B68 -> 0.002052877361 | I33: ='Corr. Matrix'!J34*'Corr. Matrix'!B$47*'Corr. Matrix'!B68 -> 0.002532095785 | J33: ='Corr. Matrix'!K34*'Corr. Matrix'!B$48*'Corr. Matrix'!B68 -> 0.0009024440268 | K33: ='Corr. Matrix'!L34*'Corr. Matrix'!B$49*'Corr. Matrix'!B68 -> 0.0004958486903 | L33: ='Corr. Matrix'!M34*'Corr. Matrix'!B$50*'Corr. Matrix'!B68 -> 0.00179806652 | M33: ='Corr. Matrix'!N34*'Corr. Matrix'!B$51*'Corr. Matrix'!B68 -> 0.001044889746 | N33: ='Corr. Matrix'!O34*'Corr. Matrix'!B$52*'Corr. Matrix'!B68 -> 0.001262539536 | O33: ='Corr. Matrix'!P34*'Corr. Matrix'!B$53*'Corr. Matrix'!B68 -> 0.0003567118311 | P33: ='Corr. Matrix'!Q34*'Corr. Matrix'!B$54*'Corr. Matrix'!B68 -> 0.001021154459 | Q33: ='Corr. Matrix'!R34*'Corr. Matrix'!B$55*'Corr. Matrix'!B68 -> 0.001298333397 | R33: ='Corr. Matrix'!S34*'Corr. Matrix'!B$56*'Corr. Matrix'!B68 -> 0.001555077742 | S33: ='Corr. Matrix'!T34*'Corr. Matrix'!B$57*'Corr. Matrix'!B68 -> 0.003122874994 | T33: ='Corr. Matrix'!U34*'Corr. Matrix'!B$58*'Corr. Matrix'!B68 -> 0.001315446327 | U33: ='Corr. Matrix'!V34*'Corr. Matrix'!B$59*'Corr. Matrix'!B68 -> 0.001041458252 | V33: ='Corr. Matrix'!W34*'Corr. Matrix'!B$60*'Corr. Matrix'!B68 -> 4.98704117e-05 | W33: ='Corr. Matrix'!X34*'Corr. Matrix'!B$61*'Corr. Matrix'!B68 -> 0.001512428767 | X33: ='Corr. Matrix'!Y34*'Corr. Matrix'!B$62*'Corr. Matrix'!B68 -> 0.001777001292 | Y33: ='Corr. Matrix'!Z34*'Corr. Matrix'!B$63*'Corr. Matrix'!B68 -> 0.0008576914596 | Z33: ='Corr. Matrix'!AA34*'Corr. Matrix'!B$64*'Corr. Matrix'!B68 -> 0.0008795700226 | AA33: ='Corr. Matrix'!AB34*'Corr. Matrix'!B$65*'Corr. Matrix'!B68 -> 0.000732117768 | AB33: ='Corr. Matrix'!AC34*'Corr. Matrix'!B$66*'Corr. Matrix'!B68 -> 0.0008079011276 | AC33: ='Corr. Matrix'!AD34*'Corr. Matrix'!B$67*'Corr. Matrix'!B68 -> 0.001598416403 | AD33: ='Corr. Matrix'!AE34*'Corr. Matrix'!B$68*'Corr. Matrix'!B68 -> 0.002344096495 | AE33: =AD34 -> 0.001140148242
A34: ='Corr. Matrix'!B35 -> JNJ | B34: ='Corr. Matrix'!C35*'Corr. Matrix'!B$40*'Corr. Matrix'!B69 -> 0.000264112791 | C34: ='Corr. Matrix'!D35*'Corr. Matrix'!B$41*'Corr. Matrix'!B69 -> 0.00123007031 | D34: ='Corr. Matrix'!E35*'Corr. Matrix'!B$42*'Corr. Matrix'!B69 -> 0.001184651703 | E34: ='Corr. Matrix'!F35*'Corr. Matrix'!B$43*'Corr. Matrix'!B69 -> 0.001026141051 | F34: ='Corr. Matrix'!G35*'Corr. Matrix'!B$44*'Corr. Matrix'!B69 -> 0.001656217476 | G34: ='Corr. Matrix'!H35*'Corr. Matrix'!B$45*'Corr. Matrix'!B69 -> 0.001380044099 | H34: ='Corr. Matrix'!I35*'Corr. Matrix'!B$46*'Corr. Matrix'!B69 -> 0.001637472777 | I34: ='Corr. Matrix'!J35*'Corr. Matrix'!B$47*'Corr. Matrix'!B69 -> 0.001416763539 | J34: ='Corr. Matrix'!K35*'Corr. Matrix'!B$48*'Corr. Matrix'!B69 -> 0.001098213262 | K34: ='Corr. Matrix'!L35*'Corr. Matrix'!B$49*'Corr. Matrix'!B69 -> 0.001241444608 | L34: ='Corr. Matrix'!M35*'Corr. Matrix'!B$50*'Corr. Matrix'!B69 -> 0.001834511483 | M34: ='Corr. Matrix'!N35*'Corr. Matrix'!B$51*'Corr. Matrix'!B69 -> 0.0008979001732 | N34: ='Corr. Matrix'!O35*'Corr. Matrix'!B$52*'Corr. Matrix'!B69 -> 0.001452329297 | O34: ='Corr. Matrix'!P35*'Corr. Matrix'!B$53*'Corr. Matrix'!B69 -> 0.0004336691919 | P34: ='Corr. Matrix'!Q35*'Corr. Matrix'!B$54*'Corr. Matrix'!B69 -> 0.001098371153 | Q34: ='Corr. Matrix'!R35*'Corr. Matrix'!B$55*'Corr. Matrix'!B69 -> 0.001550084743 | R34: ='Corr. Matrix'!S35*'Corr. Matrix'!B$56*'Corr. Matrix'!B69 -> 0.001601278834 | S34: ='Corr. Matrix'!T35*'Corr. Matrix'!B$57*'Corr. Matrix'!B69 -> 0.003112472134 | T34: ='Corr. Matrix'!U35*'Corr. Matrix'!B$58*'Corr. Matrix'!B69 -> 0.0009432048533 | U34: ='Corr. Matrix'!V35*'Corr. Matrix'!B$59*'Corr. Matrix'!B69 -> 0.001178696237 | V34: ='Corr. Matrix'!W35*'Corr. Matrix'!B$60*'Corr. Matrix'!B69 -> 0.0004741401907 | W34: ='Corr. Matrix'!X35*'Corr. Matrix'!B$61*'Corr. Matrix'!B69 -> 0.001009444754 | X34: ='Corr. Matrix'!Y35*'Corr. Matrix'!B$62*'Corr. Matrix'!B69 -> 0.002265944689 | Y34: ='Corr. Matrix'!Z35*'Corr. Matrix'!B$63*'Corr. Matrix'!B69 -> 0.001231811015 | Z34: ='Corr. Matrix'!AA35*'Corr. Matrix'!B$64*'Corr. Matrix'!B69 -> 0.001664473579 | AA34: ='Corr. Matrix'!AB35*'Corr. Matrix'!B$65*'Corr. Matrix'!B69 -> 0.001662103748 | AB34: ='Corr. Matrix'!AC35*'Corr. Matrix'!B$66*'Corr. Matrix'!B69 -> 0.000816048547 | AC34: ='Corr. Matrix'!AD35*'Corr. Matrix'!B$67*'Corr. Matrix'!B69 -> 0.001099864972 | AD34: ='Corr. Matrix'!AE35*'Corr. Matrix'!B$68*'Corr. Matrix'!B69 -> 0.001140148242 | AE34: ='Corr. Matrix'!AF35*'Corr. Matrix'!B69*'Corr. Matrix'!B69 -> 0.00235989026
A36: Portfolio Standard Deviation
A37: N | B37: 1/N | C37: (1/N)^2 | D37: Sum | E37: Variance | F37: Stand Dev
A38: 1 | B38: =1/A38 -> 1 | C38: =B38^2 -> 1 | D38: =SUM(B5) -> 0.009535855563 | E38: =C38*D38 -> 0.009535855563 | F38: =SQRT(E38) -> 0.09765170538
A39: 2 | B39: 0.5 | C39: 0.25 | D39: =SUM(B5:C6) -> 0.01896609321 | E39: 0.004741523302 | F39: 0.06885871987
A40: 3 | B40: 0.3333333333 | C40: 0.1111111111 | D40: =SUM(B5:D7) -> 0.05193983481 | E40: 0.005771092757 | F40: 0.07596770864
A41: 4 | B41: 0.25 | C41: 0.0625 | D41: =SUM(B5:E8) -> 0.0712674573 | E41: 0.004454216081 | F41: 0.0667399137
A42: 5 | B42: 0.2 | C42: 0.04 | D42: =SUM(B5:F9) -> 0.09787236941 | E42: 0.003914894776 | F42: 0.06256911999
A43: 6 | B43: 0.1666666667 | C43: 0.02777777778 | D43: =SUM(B5:G10) -> 0.1204116414 | E43: 0.003344767816 | F43: 0.05783396767
A44: 7 | B44: 0.1428571429 | C44: 0.02040816327 | D44: =SUM(B5:H11) -> 0.1615284267 | E44: 0.003296498503 | F44: 0.05741514176
A45: 8 | B45: 0.125 | C45: 0.015625 | D45: =SUM(B5:I12) -> 0.1971601797 | E45: 0.003080627807 | F45: 0.05550340356
A46: 9 | B46: 0.1111111111 | C46: 0.01234567901 | D46: =SUM(B5:J13) -> 0.2303854013 | E46: 0.002844264213 | F46: 0.05333164364
A47: 10 | B47: 0.1 | C47: 0.01 | D47: =SUM(B5:K14) -> 0.2723530493 | E47: 0.002723530493 | F47: 0.05218745532
A48: 11 | B48: 0.09090909091 | C48: 0.00826446281 | D48: =SUM(B5:L15) -> 0.3334306628 | E48: 0.002755625313 | F48: 0.05249405026
A49: 12 | B49: 0.08333333333 | C49: 0.006944444444 | D49: =SUM(B5:M16) -> 0.3831670004 | E49: 0.002660881947 | F49: 0.05158373723
A50: 13 | B50: 0.07692307692 | C50: 0.005917159763 | D50: =SUM(B5:N17) -> 0.4517128882 | E50: 0.002672857326 | F50: 0.05169968401
A51: 14 | B51: 0.07142857143 | C51: 0.005102040816 | D51: =SUM(B5:O18) -> 0.5362116992 | E51: 0.002735773975 | F51: 0.05230462671
A52: 15 | B52: 0.06666666667 | C52: 0.004444444444 | D52: =SUM(B5:P19) -> 0.5603398739 | E52: 0.00249039944 | F52: 0.04990390205
A53: 16 | B53: 0.0625 | C53: 0.00390625 | D53: =SUM(B5:Q20) -> 0.6416746382 | E53: 0.002506541556 | F53: 0.05006537282
A54: 17 | B54: 0.05882352941 | C54: 0.003460207612 | D54: =SUM(B5:R21) -> 0.7255090754 | E54: 0.002510412026 | F54: 0.05010401207
A55: 18 | B55: 0.05555555556 | C55: 0.003086419753 | D55: =SUM(B5:S22) -> 0.8708780708 | E55: 0.00268789528 | F55: 0.05184491566
A56: 19 | B56: 0.05263157895 | C56: 0.002770083102 | D56: =SUM(B5:T23) -> 0.9399806433 | E56: 0.002603824497 | F56: 0.05102768363
A57: 20 | B57: 0.05 | C57: 0.0025 | D57: =SUM(B5:U24) -> 0.9749183895 | E57: 0.002437295974 | F57: 0.04936897785
A58: 21 | B58: 0.04761904762 | C58: 0.002267573696 | D58: =SUM(B5:V25) -> 1.005119484 | E58: 0.002279182503 | F58: 0.04774078448
A59: 22 | B59: 0.04545454545 | C59: 0.002066115702 | D59: =SUM(B5:W26) -> 1.086661701 | E59: 0.002245168804 | F59: 0.04738321225
A60: 23 | B60: 0.04347826087 | C60: 0.001890359168 | D60: =SUM(B5:X27) -> 1.223953553 | E60: 0.002313711821 | F60: 0.04810105842
A61: 24 | B61: 0.04166666667 | C61: 0.001736111111 | D61: =SUM(B5:Y28) -> 1.285947597 | E61: 0.002232547911 | F61: 0.04724984562
A62: 25 | B62: 0.04 | C62: 0.0016 | D62: =SUM(B5:Z29) -> 1.377264842 | E62: 0.002203623747 | F62: 0.04694277098
A63: 26 | B63: 0.03846153846 | C63: 0.001479289941 | D63: =SUM(B5:AA30) -> 1.434218855 | E63: 0.002121625525 | F63: 0.04606110642
A64: 27 | B64: 0.03703703704 | C64: 0.001371742112 | D64: =SUM(B5:AB31) -> 1.471097394 | E64: 0.002017966247 | F64: 0.04492177921
A65: 28 | B65: 0.03571428571 | C65: 0.001275510204 | D65: =SUM(B5:AC32) -> 1.541518021 | E65: 0.001966221966 | F65: 0.04434210151
A66: 29 | B66: 0.03448275862 | C66: 0.001189060642 | D66: =SUM(B5:AD33) -> 1.612901191 | E66: 0.001917837325 | F66: 0.04379311961
A67: 30 | B67: 0.03333333333 | C67: 0.001111111111 | D67: =SUM(B5:AE34) -> 1.69046434 | E67: 0.001878293711 | F67: 0.043339286

Sheet Graph
P1: Stock | R1: Average | S1: Portfolio
N2: Stocks | P2: Stand Dev | Q2: Ave Corr | R2: Stand Dev | S2: Stand Dev
N3: 1 | O3: ='Var-Cov Matrix'!A5 -> NFLX | P3: ='Corr. Matrix'!B40 -> 0.09765170538 | Q3: =(AVERAGE('Corr. Matrix'!C6:AF6)-(1/30))*(30/29) -> 0.1471212878 | R3: =AVERAGE($P$3:P3) -> 0.09765170538 | S3: ='Var-Cov Matrix'!F38 -> 0.09765170538
N4: 2 | O4: ='Var-Cov Matrix'!A6 -> F | P4: ='Corr. Matrix'!B41 -> 0.0909090787 | Q4: =(AVERAGE('Corr. Matrix'!C7:AF7)-(1/30))*(30/29) -> 0.3536396975 | R4: =AVERAGE($P$3:P4) -> 0.09428039204 | S4: ='Var-Cov Matrix'!F39 -> 0.06885871987
N5: 3 | O5: ='Var-Cov Matrix'!A7 -> BA | P5: ='Corr. Matrix'!B42 -> 0.1262524372 | Q5: =(AVERAGE('Corr. Matrix'!C8:AF8)-(1/30))*(30/29) -> 0.3552426486 | R5: =AVERAGE($P$3:P5) -> 0.1049377404 | S5: ='Var-Cov Matrix'!F40 -> 0.07596770864
N6: 4 | O6: ='Var-Cov Matrix'!A8 -> CAT | P6: ='Corr. Matrix'!B43 -> 0.07233920332 | Q6: =(AVERAGE('Corr. Matrix'!C9:AF9)-(1/30))*(30/29) -> 0.3180752967 | R6: =AVERAGE($P$3:P6) -> 0.09678810616 | S6: ='Var-Cov Matrix'!F41 -> 0.0667399137
N7: 5 | O7: ='Var-Cov Matrix'!A9 -> AAPL | P7: ='Corr. Matrix'!B44 -> 0.0846295846 | Q7: =(AVERAGE('Corr. Matrix'!C10:AF10)-(1/30))*(30/29) -> 0.33071603 | R7: =AVERAGE($P$3:P7) -> 0.09435640185 | S7: ='Var-Cov Matrix'!F42 -> 0.06256911999
N8: 6 | O8: ='Var-Cov Matrix'!A10 -> INTC | P8: ='Corr. Matrix'!B45 -> 0.07287800719 | Q8: =(AVERAGE('Corr. Matrix'!C11:AF11)-(1/30))*(30/29) -> 0.2521714373 | R8: =AVERAGE($P$3:P8) -> 0.09077666941 | S8: ='Var-Cov Matrix'!F43 -> 0.05783396767
N9: 7 | O9: ='Var-Cov Matrix'!A11 -> AXP | P9: ='Corr. Matrix'!B46 -> 0.07186241552 | Q9: =(AVERAGE('Corr. Matrix'!C12:AF12)-(1/30))*(30/29) -> 0.4730189463 | R9: =AVERAGE($P$3:P9) -> 0.08807463314 | S9: ='Var-Cov Matrix'!F44 -> 0.05741514176
N10: 8 | O10: ='Var-Cov Matrix'!A12 -> YUM | P10: ='Corr. Matrix'!B47 -> 0.06902874721 | Q10: =(AVERAGE('Corr. Matrix'!C13:AF13)-(1/30))*(30/29) -> 0.4263095594 | R10: =AVERAGE($P$3:P10) -> 0.0856938974 | S10: ='Var-Cov Matrix'!F45 -> 0.05550340356
N11: 9 | O11: ='Var-Cov Matrix'!A13 -> MSFT | P11: ='Corr. Matrix'!B48 -> 0.04979030187 | Q11: =(AVERAGE('Corr. Matrix'!C14:AF14)-(1/30))*(30/29) -> 0.3915901255 | R11: =AVERAGE($P$3:P11) -> 0.081704609 | S11: ='Var-Cov Matrix'!F46 -> 0.05333164364
N12: 10 | O12: ='Var-Cov Matrix'!A14 -> CSCO | P12: ='Corr. Matrix'!B49 -> 0.06730977183 | Q12: =(AVERAGE('Corr. Matrix'!C15:AF15)-(1/30))*(30/29) -> 0.34528074 | R12: =AVERAGE($P$3:P12) -> 0.08026512529 | S12: ='Var-Cov Matrix'!F47 -> 0.05218745532
N13: 11 | O13: ='Var-Cov Matrix'!A15 -> CVX | P13: ='Corr. Matrix'!B50 -> 0.0778368861 | Q13: =(AVERAGE('Corr. Matrix'!C16:AF16)-(1/30))*(30/29) -> 0.4527745804 | R13: =AVERAGE($P$3:P13) -> 0.08004437627 | S13: ='Var-Cov Matrix'!F48 -> 0.05249405026
N14: 12 | O14: ='Var-Cov Matrix'!A16 -> GOOGL | P14: ='Corr. Matrix'!B51 -> 0.06267933385 | Q14: =(AVERAGE('Corr. Matrix'!C17:AF17)-(1/30))*(30/29) -> 0.3906345879 | R14: =AVERAGE($P$3:P14) -> 0.0785972894 | S14: ='Var-Cov Matrix'!F49 -> 0.05158373723
N15: 13 | O15: ='Var-Cov Matrix'!A17 -> JPM | P15: ='Corr. Matrix'!B52 -> 0.07004514226 | Q15: =(AVERAGE('Corr. Matrix'!C18:AF18)-(1/30))*(30/29) -> 0.4421235721 | R15: =AVERAGE($P$3:P15) -> 0.07793943193 | S15: ='Var-Cov Matrix'!F50 -> 0.05169968401
N16: 14 | O16: ='Var-Cov Matrix'!A18 -> GE | P16: ='Corr. Matrix'!B53 -> 0.1104093661 | Q16: =(AVERAGE('Corr. Matrix'!C19:AF19)-(1/30))*(30/29) -> 0.2329175967 | R16: =AVERAGE($P$3:P16) -> 0.08025871294 | S16: ='Var-Cov Matrix'!F51 -> 0.05230462671
N17: 15 | O17: ='Var-Cov Matrix'!A19 -> WMT | P17: ='Corr. Matrix'!B54 -> 0.04975304531 | Q17: =(AVERAGE('Corr. Matrix'!C20:AF20)-(1/30))*(30/29) -> 0.284922823 | R17: =AVERAGE($P$3:P17) -> 0.07822500177 | S17: ='Var-Cov Matrix'!F52 -> 0.04990390205
N18: 16 | O18: ='Var-Cov Matrix'!A20 -> IBM | P18: ='Corr. Matrix'!B55 -> 0.07215732366 | Q18: =(AVERAGE('Corr. Matrix'!C21:AF21)-(1/30))*(30/29) -> 0.417647195 | R18: =AVERAGE($P$3:P18) -> 0.07784577189 | S18: ='Var-Cov Matrix'!F53 -> 0.05006537282
N19: 17 | O19: ='Var-Cov Matrix'!A21 -> DIS | P19: ='Corr. Matrix'!B56 -> 0.0744898933 | Q19: =(AVERAGE('Corr. Matrix'!C22:AF22)-(1/30))*(30/29) -> 0.4088229505 | R19: =AVERAGE($P$3:P19) -> 0.07764836726 | S19: ='Var-Cov Matrix'!F54 -> 0.05010401207
N20: 18 | O20: ='Var-Cov Matrix'!A22 -> TSLA | P20: ='Corr. Matrix'!B57 -> 0.1674462793 | Q20: =(AVERAGE('Corr. Matrix'!C23:AF23)-(1/30))*(30/29) -> 0.2633214089 | R20: =AVERAGE($P$3:P20) -> 0.08263714015 | S20: ='Var-Cov Matrix'!F55 -> 0.05184491566
N21: 19 | O21: ='Var-Cov Matrix'!A23 -> TRV | P21: ='Corr. Matrix'!B58 -> 0.05666947988 | Q21: =(AVERAGE('Corr. Matrix'!C24:AF24)-(1/30))*(30/29) -> 0.3908523527 | R21: =AVERAGE($P$3:P21) -> 0.08127042119 | S21: ='Var-Cov Matrix'!F56 -> 0.05102768363
N22: 20 | O22: ='Var-Cov Matrix'!A24 -> VZ | P22: ='Corr. Matrix'!B59 -> 0.0491092161 | Q22: =(AVERAGE('Corr. Matrix'!C25:AF25)-(1/30))*(30/29) -> 0.2985379607 | R22: =AVERAGE($P$3:P22) -> 0.07966236094 | S22: ='Var-Cov Matrix'!F57 -> 0.04936897785
N23: 21 | O23: ='Var-Cov Matrix'!A25 -> KR | P23: ='Corr. Matrix'!B60 -> 0.08087946257 | Q23: =(AVERAGE('Corr. Matrix'!C26:AF26)-(1/30))*(30/29) -> 0.09637147433 | R23: =AVERAGE($P$3:P23) -> 0.07972031816 | S23: ='Var-Cov Matrix'!F58 -> 0.04774078448
N24: 22 | O24: ='Var-Cov Matrix'!A26 -> HD | P24: ='Corr. Matrix'!B61 -> 0.05918580773 | Q24: =(AVERAGE('Corr. Matrix'!C27:AF27)-(1/30))*(30/29) -> 0.407314206 | R24: =AVERAGE($P$3:P24) -> 0.07878693132 | S24: ='Var-Cov Matrix'!F59 -> 0.04738321225
N25: 23 | O25: ='Var-Cov Matrix'!A27 -> XOM | P25: ='Corr. Matrix'!B62 -> 0.08168892696 | Q25: =(AVERAGE('Corr. Matrix'!C28:AF28)-(1/30))*(30/29) -> 0.464809291 | R25: =AVERAGE($P$3:P25) -> 0.07891310504 | S25: ='Var-Cov Matrix'!F60 -> 0.04810105842
N26: 24 | O26: ='Var-Cov Matrix'!A28 -> UNH | P26: ='Corr. Matrix'!B63 -> 0.05894154018 | Q26: =(AVERAGE('Corr. Matrix'!C29:AF29)-(1/30))*(30/29) -> 0.298323058 | R26: =AVERAGE($P$3:P26) -> 0.07808095651 | S26: ='Var-Cov Matrix'!F61 -> 0.04724984562
N27: 25 | O27: ='Var-Cov Matrix'!A29 -> MMM | P27: ='Corr. Matrix'!B64 -> 0.0585125444 | Q27: =(AVERAGE('Corr. Matrix'!C30:AF30)-(1/30))*(30/29) -> 0.4117391159 | R27: =AVERAGE($P$3:P27) -> 0.07729822002 | S27: ='Var-Cov Matrix'!F62 -> 0.04694277098
N28: 26 | O28: ='Var-Cov Matrix'!A30 -> PFE | P28: ='Corr. Matrix'!B65 -> 0.05856042794 | Q28: =(AVERAGE('Corr. Matrix'!C31:AF31)-(1/30))*(30/29) -> 0.2680007618 | R28: =AVERAGE($P$3:P28) -> 0.07657753571 | S28: ='Var-Cov Matrix'!F63 -> 0.04606110642
N29: 27 | O29: ='Var-Cov Matrix'!A31 -> PG | P29: ='Corr. Matrix'!B66 -> 0.04242948603 | Q29: =(AVERAGE('Corr. Matrix'!C32:AF32)-(1/30))*(30/29) -> 0.2461623456 | R29: =AVERAGE($P$3:P29) -> 0.07531279313 | S29: ='Var-Cov Matrix'!F64 -> 0.04492177921
N30: 28 | O30: ='Var-Cov Matrix'!A32 -> KO | P30: ='Corr. Matrix'!B67 -> 0.04931336135 | Q30: =(AVERAGE('Corr. Matrix'!C33:AF33)-(1/30))*(30/29) -> 0.3629278003 | R30: =AVERAGE($P$3:P30) -> 0.074384242 | S30: ='Var-Cov Matrix'!F65 -> 0.04434210151
N31: 29 | O31: ='Var-Cov Matrix'!A33 -> MCD | P31: ='Corr. Matrix'!B68 -> 0.04841587028 | Q31: =(AVERAGE('Corr. Matrix'!C34:AF34)-(1/30))*(30/29) -> 0.36198767 | R31: =AVERAGE($P$3:P31) -> 0.0734887809 | S31: ='Var-Cov Matrix'!F66 -> 0.04379311961
N32: 30 | O32: ='Var-Cov Matrix'!A34 -> JNJ | P32: ='Corr. Matrix'!B69 -> 0.04857870171 | Q32: =(AVERAGE('Corr. Matrix'!C35:AF35)-(1/30))*(30/29) -> 0.3850388708 | R32: =AVERAGE($P$3:P32) -> 0.07265844493 | S32: ='Var-Cov Matrix'!F67 -> 0.043339286
